Workbook

Sheet Info
A1: Presentation of the eco-fee code generator
A6: Create codes for application of the eco-fee to DIY and Gardening Products
A7: Version 1.4 - 5th November 2024
A9: Who is this tool intended for?
A10: This tool is intended for marketers of DIY and Gardening Products.
A12: What is it for?
A13: This file allows you to generate the product codes used to declare information linked to placing products on the market. These product codes make it possible to apply the eco-fee rate to Construction and Building Products and Materials as well as DIY and Gardening Products, according to their characteristics.
A14: To understand how this 11-digit product code is composed, click on the "Understanding the coding system" tab.
A16: How do you generate a product code?
A17: To generate a product code, click on the "Product code generator" tab.
A18: Please note: To be sure of entering the correct codes when submitting your declaration, use the "Product code generator" tab and the copy-paste function, selecting "Paste absolute value".
A20: Declaring eco-fees
A22: When should you issue your declaration?
A23: The first declaration based on product codes must be issued in April 2023 for products placed on the market for the first quarter of 2023.
A24: Important note for DIY and Gardening Products: a simplified declaration must be issued in January 2023 based on the turnover excl. VAT of products placed on the market in December 2022. More information can be found in the member's guide.
A25: Quarterly declarations must be issued in the month after each calendar quarter (April for Q1, July for Q2, October for Q3, and January for Q4).
A27: How do you issue your declaration (with product codes)?
A28: The declaration of products placed on the market with product codes is issued via data input or by uploading a file* in .csv format to the Extranet: https://espace-services.eco-mobilier.fr/ *You can download the standard file from the Declarations area.
A31: > To find out how to issue your declaration, consult the complete operating procedures: https://espace-services.eco-mobilier.fr/mode-operatoire-declarer

Sheet Scope
B1: Scope
B4: DIY AND GARDENING PRODUCTS | E4: FOR INFORMATION PURPOSES - CERTIFICATION UNDERWAY (end 2027)
B6: Articles de bricolage
B8: 100 | C8: Hand tools and their accessories
C10: Rayon | D10: Catégorie | E10: Exemples de produits (non-exhaustif)
C11: =$B$6 -> Articles de bricolage | D11: =$C$8 -> Hand tools and their accessories | E11: abrasifs
C12: Articles de bricolage | D12: =$C$8 -> Hand tools and their accessories | E12: abrasifs en feuilles
C13: Articles de bricolage | D13: =$C$8 -> Hand tools and their accessories | E13: abrasifs en rouleaux
C14: Articles de bricolage | D14: =$C$8 -> Hand tools and their accessories | E14: agrafeuse
C15: Articles de bricolage | D15: Hand tools and their accessories | E15: arrache-liteaux
C16: Articles de bricolage | D16: Hand tools and their accessories | E16: barre à creuser
C17: Articles de bricolage | D17: Hand tools and their accessories | E17: barre à mine
C18: Articles de bricolage | D18: Hand tools and their accessories | E18: bédane
C19: Articles de bricolage | D19: Hand tools and their accessories | E19: bande de ponçage
C20: Articles de bricolage | D20: Hand tools and their accessories | E20: boites et scies a onglets
C21: Articles de bricolage | D21: Hand tools and their accessories | E21: burin
C22: Articles de bricolage | D22: =$C$8 -> Hand tools and their accessories | E22: cale de ponçage
C23: Articles de bricolage | D23: =$C$8 -> Hand tools and their accessories | E23: chevillette
C24: Articles de bricolage | D24: Hand tools and their accessories | E24: ciseaux
C25: Articles de bricolage | D25: Hand tools and their accessories | E25: ciseaux à bois
C26: =$B$6 -> Articles de bricolage | D26: =$C$8 -> Hand tools and their accessories | E26: ciseaux à brique
C27: Articles de bricolage | D27: Hand tools and their accessories | E27: clé à molette
C28: Articles de bricolage | D28: Hand tools and their accessories | E28: clé à pipe
C29: Articles de bricolage | D29: Hand tools and their accessories | E29: éponge abrasive
C30: Articles de bricolage | D30: Hand tools and their accessories | E30: clé diverses
C31: Articles de bricolage | D31: Hand tools and their accessories | E31: clé dynamométrique
C32: Articles de bricolage | D32: Hand tools and their accessories | E32: clé mixte
C33: Articles de bricolage | D33: Hand tools and their accessories | E33: clés
C34: Articles de bricolage | D34: Hand tools and their accessories | E34: cliquets
C35: Articles de bricolage | D35: Hand tools and their accessories | E35: coupe tube
C36: Articles de bricolage | D36: Hand tools and their accessories | E36: couteau à enduire
C37: Articles de bricolage | D37: Hand tools and their accessories | E37: couteau, couteau de poche
C38: Articles de bricolage | D38: Hand tools and their accessories | E38: cutter
C39: Articles de bricolage | D39: Hand tools and their accessories | E39: douilles
C40: Articles de bricolage | D40: Hand tools and their accessories | E40: embouts de vissage
C41: Articles de bricolage | D41: Hand tools and their accessories | E41: emporte pieces
C42: Articles de bricolage | D42: =$C$8 -> Hand tools and their accessories | E42: épuisette de fond
C43: Articles de bricolage | D43: =$C$8 -> Hand tools and their accessories | E43: equerre (outil)
C44: Articles de bricolage | D44: =$C$8 -> Hand tools and their accessories | E44: etais
C45: Articles de bricolage | D45: =$C$8 -> Hand tools and their accessories | E45: etancheur
C46: Articles de bricolage | D46: Hand tools and their accessories | E46: fil à plomb
C47: Articles de bricolage | D47: =$C$8 -> Hand tools and their accessories | E47: grattoirs
C48: Articles de bricolage | D48: =$C$8 -> Hand tools and their accessories | E48: grattoirs à béton
C49: Articles de bricolage | D49: =$C$8 -> Hand tools and their accessories | E49: griffe à cintrer
C50: Articles de bricolage | D50: =$C$8 -> Hand tools and their accessories | E50: griffe de zingueur
C51: Articles de bricolage | D51: Hand tools and their accessories | E51: griffes
C52: Articles de bricolage | D52: Hand tools and their accessories | E52: lame
C53: Articles de bricolage | D53: Hand tools and their accessories | E53: lame de scie
C54: Articles de bricolage | D54: Hand tools and their accessories | E54: lime
C55: Articles de bricolage | D55: Hand tools and their accessories | E55: limes de précision
C56: Articles de bricolage | D56: Hand tools and their accessories | E56: lisseur de joints
C57: Articles de bricolage | D57: Hand tools and their accessories | E57: maillet
C58: Articles de bricolage | D58: Hand tools and their accessories | E58: marteau
C59: Articles de bricolage | D59: Hand tools and their accessories | E59: massette
C60: Articles de bricolage | D60: Hand tools and their accessories | E60: mesure de précision
C61: Articles de bricolage | D61: Hand tools and their accessories | E61: mètre
C62: Articles de bricolage | D62: =$C$8 -> Hand tools and their accessories | E62: métrologie
C63: Articles de bricolage | D63: Hand tools and their accessories | E63: niveau à bulle
C64: Articles de bricolage | D64: Hand tools and their accessories | E64: outillage aep
C65: Articles de bricolage | D65: Hand tools and their accessories | E65: outillage de fontainerie
C66: Articles de bricolage | D66: Hand tools and their accessories | E66: outillage d'électricien
C67: Articles de bricolage | D67: Hand tools and their accessories | E67: outillage du couvreur
C68: Articles de bricolage | D68: Hand tools and their accessories | E68: outillage du maçon
C69: Articles de bricolage | D69: Hand tools and their accessories | E69: outillage pour le travail du bois
C70: Articles de bricolage | D70: Hand tools and their accessories | E70: outillage spécifique du plâtrier-plaquiste
C71: Articles de bricolage | D71: Hand tools and their accessories | E71: outils de mesure et de traçage
C72: Articles de bricolage | D72: Hand tools and their accessories | E72: outils du plombier
C73: Articles de bricolage | D73: Hand tools and their accessories | E73: outils et accessoires du carreleur
C74: Articles de bricolage | D74: Hand tools and their accessories | E74: outils pour travaux d'étanchéité
C75: Articles de bricolage | D75: Hand tools and their accessories | E75: ouvre-caisse
C76: Articles de bricolage | D76: Hand tools and their accessories | E76: pince à bec
C77: Articles de bricolage | D77: Hand tools and their accessories | E77: pince à décoffrer
C78: Articles de bricolage | D78: Hand tools and their accessories | E78: pince à sertir
C79: Articles de bricolage | D79: Hand tools and their accessories | E79: pince coupe-boulon
C80: Articles de bricolage | D80: Hand tools and their accessories | E80: pince de carrelleur
C81: Articles de bricolage | D81: Hand tools and their accessories | E81: pince rivet
C82: Articles de bricolage | D82: Hand tools and their accessories | E82: pinces
C83: Articles de bricolage | D83: Hand tools and their accessories | E83: pioche de terrassement
C84: Articles de bricolage | D84: Hand tools and their accessories | E84: pistolet à cartouche
C85: Articles de bricolage | D85: Hand tools and their accessories | E85: pistolet à colle
C86: Articles de bricolage | D86: Hand tools and their accessories | E86: pistolet à poche
C87: Articles de bricolage | D87: Hand tools and their accessories | E87: pistolets
C88: =$B$6 -> Articles de bricolage | D88: Hand tools and their accessories | E88: pointe à tracer
C89: Articles de bricolage | D89: Hand tools and their accessories | E89: pointeau
C90: Articles de bricolage | D90: Hand tools and their accessories | E90: pointerolle
C91: Articles de bricolage | D91: =$C$8 -> Hand tools and their accessories | E91: pointes
C92: Articles de bricolage | D92: Hand tools and their accessories | E92: presses
C93: Articles de bricolage | D93: Hand tools and their accessories | E93: rabot
C94: Articles de bricolage | D94: Hand tools and their accessories | E94: rape
C95: Articles de bricolage | D95: Hand tools and their accessories | E95: règle aluminium
C96: Articles de bricolage | D96: Hand tools and their accessories | E96: riflard
C97: Articles de bricolage | D97: Hand tools and their accessories | E97: scie
C98: Articles de bricolage | D98: Hand tools and their accessories | E98: scie à bois
C99: Articles de bricolage | D99: Hand tools and their accessories | E99: scie à métaux
C100: Articles de bricolage | D100: Hand tools and their accessories | E100: serre-joint
C101: Articles de bricolage | D101: Hand tools and their accessories | E101: souflette
C102: Articles de bricolage | D102: Hand tools and their accessories | E102: taloche
C103: Articles de bricolage | D103: Hand tools and their accessories | E103: tamis
C104: Articles de bricolage | D104: Hand tools and their accessories | E104: tenaille
C105: Articles de bricolage | D105: Hand tools and their accessories | E105: tournevis
C106: =$B$6 -> Articles de bricolage | D106: =$C$8 -> Hand tools and their accessories | E106: traçage et topographie
C107: =$B$6 -> Articles de bricolage | D107: =$C$8 -> Hand tools and their accessories | E107: treteaux de sciage
C108: Articles de bricolage | D108: Hand tools and their accessories | E108: truelle
C109: =$B$6 -> Articles de bricolage | D109: =$C$8 -> Hand tools and their accessories | E109: trusquin
C110: =$B$6 -> Articles de bricolage | D110: =$C$8 -> Hand tools and their accessories | E110: tyrolienne
C111: =$B$6 -> Articles de bricolage | D111: =$C$8 -> Hand tools and their accessories | E111: couteau à asphalte
C112: Articles de bricolage | D112: Hand tools and their accessories | E112: marteau de pavage
C113: =$B$6 -> Articles de bricolage | D113: =$C$8 -> Hand tools and their accessories | E113: maillet de pavage
C114: Articles de bricolage | D114: Hand tools and their accessories | E114: masses
C115: Articles de bricolage | D115: Hand tools and their accessories | E115: massettes
C116: Articles de bricolage | D116: Hand tools and their accessories | E116: pied de biche
C117: Articles de bricolage | D117: Hand tools and their accessories | E117: pince monseigneur
C118: Articles de bricolage | D118: Hand tools and their accessories | E118: pioche à bec, pioche de terrassement
B121: 101 | C121: Large non-electric, non-combustion items and machines, and their accessories
C123: Rayon | D123: Catégorie | E123: Exemples de produits (non-exhaustif)
C124: =$B$6 -> Articles de bricolage | D124: =$C$121 -> Large non-electric, non-combustion items and machines, and their accessories | E124: coupe carreaux manuel
C125: Articles de bricolage | D125: Large non-electric, non-combustion items and machines, and their accessories | E125: outillage lourd de carreleur
C126: Articles de bricolage | D126: Large non-electric, non-combustion items and machines, and their accessories | E126: outillage de serrage et découpage
C127: Articles de bricolage | D127: Large non-electric, non-combustion items and machines, and their accessories | E127: racleur pehd
C128: Articles de bricolage | D128: Large non-electric, non-combustion items and machines, and their accessories | E128: outils de terrassement
C129: =$B$6 -> Articles de bricolage | D129: =$C$121 -> Large non-electric, non-combustion items and machines, and their accessories | E129: outils pneumatiques
C130: =$B$6 -> Articles de bricolage | D130: =$C$121 -> Large non-electric, non-combustion items and machines, and their accessories | E130: lissarde à béton
C131: Articles de bricolage | D131: Large non-electric, non-combustion items and machines, and their accessories | E131: enclumes
C132: Articles de bricolage | D132: Large non-electric, non-combustion items and machines, and their accessories | E132: etaux
C133: Articles de bricolage | D133: Large non-electric, non-combustion items and machines, and their accessories | E133: mire
C134: Articles de bricolage | D134: Large non-electric, non-combustion items and machines, and their accessories | E134: nivelle pour mire
C135: Articles de bricolage | D135: Large non-electric, non-combustion items and machines, and their accessories | E135: mesure longue
C136: Articles de bricolage | D136: Large non-electric, non-combustion items and machines, and their accessories | E136: règle à niveau
C137: Articles de bricolage | D137: Large non-electric, non-combustion items and machines, and their accessories | E137: extracteur
C138: Articles de bricolage | D138: Large non-electric, non-combustion items and machines, and their accessories | E138: leviers de force
C139: Articles de bricolage | D139: Large non-electric, non-combustion items and machines, and their accessories | E139: marteau burineur
C140: Articles de bricolage | D140: Large non-electric, non-combustion items and machines, and their accessories | E140: outillage pour tuyauterie
C141: Articles de bricolage | D141: Large non-electric, non-combustion items and machines, and their accessories | E141: chariot de manutention
C142: Articles de bricolage | D142: Large non-electric, non-combustion items and machines, and their accessories | E142: boites encastrement pour appareillage et accessoires
B145: 102 | C145: Tools and supports for working at height
C147: Rayon | D147: Catégorie | E147: Exemples de produits (non-exhaustif)
C148: =$B$6 -> Articles de bricolage | D148: =$C$145 -> Tools and supports for working at height | E148: escabeaux
C149: Articles de bricolage | D149: Tools and supports for working at height | E149: marche pied, marchepied
C150: Articles de bricolage | D150: Tools and supports for working at height | E150: echelle simple
C151: Articles de bricolage | D151: Tools and supports for working at height | E151: echelle coulissante
C152: Articles de bricolage | D152: Tools and supports for working at height | E152: echelle transformable
C153: Articles de bricolage | D153: Tools and supports for working at height | E153: echelles
C154: =$B$6 -> Articles de bricolage | D154: =$C$145 -> Tools and supports for working at height | E154: échafaudages et structures tubulaires
C155: =$B$6 -> Articles de bricolage | D155: =$C$145 -> Tools and supports for working at height | E155: échelles pour chantiers
C156: =$B$6 -> Articles de bricolage | D156: =$C$145 -> Tools and supports for working at height | E156: échafaudages mobiles
C157: Articles de bricolage | D157: Tools and supports for working at height | E157: treuil
C158: Articles de bricolage | D158: Tools and supports for working at height | E158: accessoires de levage
C159: Articles de bricolage | D159: Tools and supports for working at height | E159: accessoires de manutention
C160: Articles de bricolage | D160: Tools and supports for working at height | E160: anneau de levage
C161: Articles de bricolage | D161: Tools and supports for working at height | E161: crochet de levage
C162: Articles de bricolage | D162: Tools and supports for working at height | E162: rampes de chargement
C163: Articles de bricolage | D163: Tools and supports for working at height | E163: tables élévatrices
C164: Articles de bricolage | D164: Tools and supports for working at height | E164: rayonnage
B167: 103 | C167: Personal protection equipment and accessories for DIY
C169: Rayon | D169: Catégorie | E169: Exemples de produits (non-exhaustif)
C170: =$B$6 -> Articles de bricolage | D170: =$C$167 -> Personal protection equipment and accessories for DIY | E170: masques
C171: Articles de bricolage | D171: =$C$167 -> Personal protection equipment and accessories for DIY | E171: lunettes de protection
C172: Articles de bricolage | D172: Personal protection equipment and accessories for DIY | E172: casques de chantier
C173: Articles de bricolage | D173: Personal protection equipment and accessories for DIY | E173: bouchons anti-bruit
C174: Articles de bricolage | D174: Personal protection equipment and accessories for DIY | E174: cartouches pour masques
C175: Articles de bricolage | D175: Personal protection equipment and accessories for DIY | E175: gants de protection pour le bricolage
C176: Articles de bricolage | D176: Personal protection equipment and accessories for DIY | E176: casque de soudeur
C177: Articles de bricolage | D177: Personal protection equipment and accessories for DIY | E177: chaussure de protection (ISO 20346 et 20345 : SB, SBP, S1, S1P, S2 et S3)
C178: Articles de bricolage | D178: Personal protection equipment and accessories for DIY | E178: equipement du corps (visière, genouillère, jambière…)
C179: Articles de bricolage | D179: Personal protection equipment and accessories for DIY | E179: protection des yeux
C180: Articles de bricolage | D180: Personal protection equipment and accessories for DIY | E180: protection auditive
C181: Articles de bricolage | D181: Personal protection equipment and accessories for DIY | E181: protection des voies respiratoires
B183: 104 | C183: Tarpaulins, covers, nets, and films for DIY
C185: Rayon | D185: Catégorie | E185: Exemples de produits (non-exhaustif)
C186: =B6 -> Articles de bricolage | D186: =$C$183 -> Tarpaulins, covers, nets, and films for DIY | E186: bâche de bricolage
H188: =TRIM((LOWER(E188))) -> 
H189: =TRIM((LOWER(E189))) -> 
H190: =TRIM((LOWER(E190))) -> 
B191: Entretien et aménagement du jardin | H191: =TRIM((LOWER(E191))) -> 
H192: =TRIM((LOWER(E192))) -> 
B193: 150 | C193: Garden upkeep hand tools and small accessories
C195: Rayon | D195: Catégorie | E195: Exemples de produits (non-exhaustif)
C196: =$B$191 -> Entretien et aménagement du jardin | D196: =$C$193 -> Garden upkeep hand tools and small accessories | E196: accessoires de culture
C197: Entretien et aménagement du jardin | D197: Garden upkeep hand tools and small accessories | E197: agraphes de grillages
C198: Entretien et aménagement du jardin | D198: Garden upkeep hand tools and small accessories | E198: arrosage goutte à goutte
C199: Entretien et aménagement du jardin | D199: Garden upkeep hand tools and small accessories | E199: arroseur
C200: Entretien et aménagement du jardin | D200: Garden upkeep hand tools and small accessories | E200: arrosoir
C201: Entretien et aménagement du jardin | D201: Garden upkeep hand tools and small accessories | E201: autres grands outils de jardin
C202: Entretien et aménagement du jardin | D202: Garden upkeep hand tools and small accessories | E202: balai à gazon
C203: Entretien et aménagement du jardin | D203: Garden upkeep hand tools and small accessories | E203: bêche
C204: Entretien et aménagement du jardin | D204: Garden upkeep hand tools and small accessories | E204: bisaigue
C205: Entretien et aménagement du jardin | D205: Garden upkeep hand tools and small accessories | E205: broche
C206: =$B$191 -> Entretien et aménagement du jardin | D206: =$C$193 -> Garden upkeep hand tools and small accessories | E206: brosse
C207: Entretien et aménagement du jardin | D207: Garden upkeep hand tools and small accessories | E207: brouette
C208: Entretien et aménagement du jardin | D208: Garden upkeep hand tools and small accessories | E208: bucheronnage
C209: Entretien et aménagement du jardin | D209: Garden upkeep hand tools and small accessories | E209: buse
C210: Entretien et aménagement du jardin | D210: Garden upkeep hand tools and small accessories | E210: cisaille
C211: Entretien et aménagement du jardin | D211: Garden upkeep hand tools and small accessories | E211: cognée
C212: Entretien et aménagement du jardin | D212: Garden upkeep hand tools and small accessories | E212: coin éclateur
C213: Entretien et aménagement du jardin | D213: Garden upkeep hand tools and small accessories | E213: composteur
C214: Entretien et aménagement du jardin | D214: Garden upkeep hand tools and small accessories | E214: coupe branche
C215: Entretien et aménagement du jardin | D215: Garden upkeep hand tools and small accessories | E215: coupe-bordure
C216: Entretien et aménagement du jardin | D216: Garden upkeep hand tools and small accessories | E216: cueille fruits
C217: Entretien et aménagement du jardin | D217: Garden upkeep hand tools and small accessories | E217: devidoir, enrouleur
C218: Entretien et aménagement du jardin | D218: Garden upkeep hand tools and small accessories | E218: divers arrosage et pulvérisation
... 143 more rows

Sheet Understanding codification
B1: Ecomaison codification system
B4: ► A tool is available for creating tables of correspondence between your catalogue and the Ecomaison product catalogue.
B5: ► Furniture waste codes are not shown below.
B8: General code structure
B20: Department code: XX 000 00 000 0
B22: EPR | C22: _ | D22: Department | E22: _2 | F22: Department code
B24: DIY and Gardening Products | D24: DIY products | F24: 21
B25: DIY and Gardening Products | D25: Garden upkeep and landscaping | F25: 22
B27: Product category code: 00 XXX 00 000 0
B29: EPR | C29: _ | D29: Department | E29: Category | F29: Product code
B31: DIY and gardening products | D31: =$D$24 -> DIY products | E31: Hand tools and their accessories | F31: 100
B33: DIY and gardening products | D33: =$D$24 -> DIY products | E33: Large non-electric, non-combustion items and machines, and their accessories | F33: =F31+1 -> 101
B34: DIY and gardening products | D34: DIY products | E34: Tools and supports for working at height | F34: =F33+1 -> 102
B35: DIY and gardening products | D35: DIY products | E35: Personal protection equipment and accessories for DIY | F35: 103
B36: DIY and gardening products | D36: DIY products | E36: Tarpaulins, covers, nets, and films for DIY | F36: 104
B37: DIY and gardening products | D37: DIY products | E37: Buckets, troughs and containers | F37: 105
B38: DIY and gardening products | D38: =$D$25 -> Garden upkeep and landscaping | E38: Garden upkeep hand tools and small accessories | F38: 150
B39: DIY and gardening products | D39: =$D$25 -> Garden upkeep and landscaping | E39: Personal protection equipment and accessories for gardening | F39: =F38+1 -> 151
B40: DIY and gardening products | D40: =$D$25 -> Garden upkeep and landscaping | E40: Flower pots and containers | F40: =F39+1 -> 152
B41: DIY and gardening products | D41: Garden upkeep and landscaping | E41: Tarpaulins, covers, nets, and films for gardening | F41: 153
B42: DIY and gardening products | D42: Garden upkeep and landscaping | E42: Outdoor equipment and accessories (excl. tarpaulins, nets, and covers) | F42: 154
B43: DIY and gardening products | D43: Garden upkeep and landscaping | E43: Non-masonry outdoor structures | F43: 155
B45: Material code: 00 000 XX 000 0
B47: Material type | C47: _ | D47: Materials | E47: Examples of materials | F47: Material code
B49: 1 - Metal | D49: Metal >90% | E49: Ferrous metals (steel, stainless steel, wrought iron, cast iron, carbon steel, zinc-plated steel, sheet steel, alloys, etc.) and non-ferrous metals (aluminium, lead, zinc, tin, chrome, copper, bronze, silver, zamac, nickel, titanium, brass, etc.) | F49: 28
B50: 1 - Metal | D50: Assembly of metal >50% and other materials | E50: Assembly of metal/wood, metal/plastic, metal/inert substance, etc. | F50: 02
B52: 2 - Wood and wood derivatives | D52: Solid wood and related products certified >90% | E52: All species (Douglas fir, fir, oak, beech, maritime pine, Scots pine, African pearwood, larch, teak, spruce, etc.), including engineered wood, plywood, laminated timber, and veneer | F52: 52
B53: 2 - Wood and wood derivatives | D53: Solid wood and related products certified >75% | E53: All species (Douglas fir, fir, oak, beech, maritime pine, Scots pine, African pearwood, larch, teak, spruce, etc.), including engineered wood, plywood, laminated timber, and veneer | F53: 20
B54: 2 - Wood and wood derivatives | D54: Solid wood and related products >90% | E54: All species (Douglas fir, fir, oak, beech, maritime pine, Scots pine, African pearwood, larch, teak, spruce, etc.), including engineered wood, plywood, laminated timber, and veneer | F54: 53
B55: 2 - Wood and wood derivatives | D55: Solid wood and related products >75% | E55: All species (Douglas fir, fir, oak, beech, maritime pine, Scots pine, African pearwood, larch, teak, spruce, etc.), including engineered wood, plywood, laminated timber, and veneer | F55: 21
B56: 2 - Wood and wood derivatives | D56: Chipboard or OSB certified >90% | E56: Chipboard and OSB | F56: 59
B57: 2 - Wood and wood derivatives | D57: Chipboard or OSB certified >75% | E57: Chipboard and OSB | F57: 60
B58: 2 - Wood and wood derivatives | D58: Chipboard or OSB >90% | E58: Chipboard and OSB | F58: 61
B59: 2 - Wood and wood derivatives | D59: Chipboard or OSB >75% | E59: Chipboard and OSB | F59: 25
B60: 2 - Wood and wood derivatives | D60: Wood derivatives >90% | E60: Composite wood, MDF, HDF, alveolar, laminate, HPL, etc. | F60: 62
B61: 2 - Wood and wood derivatives | D61: Assembly of wood and/or wood derivatives >50% and other materials or composite wood (excl. glass) | E61: Assembly of wood/metal, wood/plastic, etc. | F61: 01
B63: 3 - Cardboard | D63: Cardboard >50% and other materials (excl. glass) | E63: Paper, cardboard,compact paper, Kraft paper | F63: 19
B65: 4 - Materials and fibres of plant or animal origin excl. wood, paper, and cardboard | D65: Biosourced materials or non-synthetic textiles >90% | E65: Plant stalks (bamboo, rattan, wicker, jute, straw, cork), natural textiles of unmixed plant origin (cotton, linen, hemp, silk, ramie, coconut fibre, raffia, etc.) | F65: 55
B66: 4 - Materials and fibres of plant or animal origin excl. wood, paper, and cardboard | D66: Biosourced materials or non-synthetic textiles >50% | E66: Assembly of biosourced materials and plastic, metal, etc. | F66: 04
B67: 4 - Materials and fibres of plant or animal origin excl. wood, paper, and cardboard | D67: Natural rubber >90% | E67: Rubber and latex | F67: 63
B68: 4 - Materials and fibres of plant or animal origin excl. wood, paper, and cardboard | D68: Natural rubber >50% | E68: Rubber and latex | F68: 64
B69: 4 - Materials and fibres of plant or animal origin excl. wood, paper, and cardboard | D69: Materials of animal origin >50% | E69: Textile materials or padding of animal origin (wool, felt, mohair, feathers, down, hair, leather, etc.) | F69: 06
B71: 5 - Plastic, synthetic fibres and materials | D71: Plastic (single-resin) >90% | E71: Plastic and other synthetic materials: acrylic, PP, PE, PS, XPS, EPS, PEX, nylon, polyamide, PU, PVC, vinyl, epoxy, synthetic fibres, PL, composite materials, carbon, etc. | F71: 41
B72: 5 - Plastic, synthetic fibres and materials | D72: PE or PP or PP/PE mix >90% | E72: Polyethylene (PE), Polypropylene (PP), PP/PE mix | F72: 45
B73: 5 - Plastic, synthetic fibres and materials | D73: PVC >90% | F73: 48
B74: 5 - Plastic, synthetic fibres and materials | D74: Polyethylene terephthalate (PET) >90% | F74: 42
B75: 5 - Plastic, synthetic fibres and materials | D75: ABS >90% | F75: 46
B76: 5 - Plastic, synthetic fibres and materials | D76: Polystyrene >90% | F76: 47
B77: 5 - Plastic, synthetic fibres and materials | D77: Plastics or other synthetic materials >50% | E77: Assembly of synthetic textiles and materials | F77: 05
B78: 5 - Plastic, synthetic fibres and materials | D78: Synthetic rubber >90% | E78: Rubber | F78: 49
B79: 5 - Plastic, synthetic fibres and materials | D79: Elements containing latex | E79: Latex | F79: 10
B80: 5 - Plastic, synthetic fibres and materials | D80: Assembly of synthetic rubber or latex >50% and other materials | E80: Rubber, latex with other synthetic materials, wood, metal, etc. | F80: 40
B81: 5 - Plastic, synthetic fibres and materials | D81: Synthetic fibres or materials >90% | E81: Polyamides, nylon, polyester (PES) and polyethylene terephthalate (PET), viscose, elastane, foam, etc. | F81: 65
B82: 5 - Plastic, synthetic fibres and materials | D82: Textile and polyester padding >90% | E82: Polyester | F82: 66
B83: 5 - Plastic, synthetic fibres and materials | D83: Elements containing foam | F83: 09
B84: 5 - Plastic, synthetic fibres and materials | D84: Textile elements containing springs | F84: 11
B85: 5 - Plastic, synthetic fibres and materials | D85: Assembly of synthetic fibres and/or materials >50% and other materials | E85: Assembly of synthetic textiles and/or materials and metal, wood, etc. | F85: 67
B87: 6 - Glass and glass partitions | D87: Glass >90% | E87: Flat glass, glass bricks, etc. | F87: 68
B88: 6 - Glass and glass partitions | D88: Assembly of glass >50% and metal | E88: Assembly of glass and metals | F88: 70
B89: 6 - Glass and glass partitions | D89: Assembly of glass >50% and inert substances | E89: Assembly of glass and inert substances | F89: 71
B90: 6 - Glass and glass partitions | D90: Assembly of glass >50% and wood or wood derivatives | E90: Assembly of glass and wood or biosourced materials | F90: 72
B91: 6 - Glass and glass partitions | D91: Assembly of glass >50% and plastic | E91: Assembly of glass and plastic | F91: 73
B92: 6 - Glass and glass partitions | D92: Mirror >90% | E92: Mirror | F92: 69
B94: 7 - Plaster | D94: Plaster >90% | E94: Plaster material, plasterboard, and gypsum fibreboard | F94: 75
B95: 7 - Plaster | D95: Plaster >50% | E95: Elements composed mainly of plaster and associated with other materials | F95: 76
B97: 8 - Glass wool and rockwool | D97: Rockwool >90% | E97: Insulating materials made from natural materials resulting from volcanic activity | F97: 77
B98: 8 - Glass wool and rockwool | D98: Glass wool >90% | E98: Materials composed of glass fibres, used as a filter or insulator | F98: 78
B99: 8 - Glass wool and rockwool | D99: Assembly of glass wool or rockwool >50% and other materials | E99: Elements mainly composed of mineral wool | F99: 79
B101: 9 - Bitumen membranes | D101: Bitumen membranes >90% | E101: Synthetic sealing membrane | F101: 80
B103: 10 - Other mixes of materials or unclassified or unspecified materials | D103: Assembly of wood, wood derivatives, and metal with a combination representing >90% | F103: 81
B104: 10 - Other mixes of materials or unclassified or unspecified materials | D104: Assembly of 3 or more materials, with no material representing >50% | E104: Elements composed of parts made from various materials, often but not exclusively with a plastic or synthetic textile part | F104: 82
B105: 10 - Other mixes of materials or unclassified or unspecified materials | D105: Unknown or unspecified by the company | E105: Unknown or unspecified by the company | F105: 00
B107: 11 - Mortars, coatings, paints, varnishes, resins, and preparation products | D107: Liquid products, incl. hazardous products >90% | E107: Undercoats, floor preparations and sealing elements, exterior paints, treatments for floors and roofs, interior paints, glues and adhesives, PU and expansive resins (aerosols), PU sealants, seals and foams, additives, treatments for wood, treatment for materials (aerosols), treatments for non-wood materials, Varnishes and sealers and derivatives, varnishes and sealers and derivatives (aerosols), powder coatings, paste coatings | F107: 83
B109: 12 - Inert materials | D109: Assembly of materials with inert substances >50% | F109: 08
B110: 12 - Inert materials | D110: Composites and other reconstituted mineral materials >50% | F110: 15
B111: 12 - Inert materials | D111: Slate >90% | E111: Slate | F111: 84
B112: 12 - Inert materials | D112: Non-stone aggregate >90% | E112: Small mineral materials (aggregate, gravel, sand, grit, chippings, rubble, etc.), excl. stone | F112: 85
B113: 12 - Inert materials | D113: Limestone >90% | E113: Large mineral materials, excl. aggregate, gravel, sand, and specific stones such as slate | F113: 86
B114: 12 - Inert materials | D114: Lava stone >90% | F114: 87
B115: 12 - Inert materials | D115: Bituminous mix >90% | E115: Bitumen-based liquid materials | F115: 88
B116: 12 - Inert materials | D116: Raw earth or terracotta >90% | E116: Terracotta materials | F116: 89
B117: 12 - Inert materials | D117: Concrete >90% | E117: Assembly of aggregates (gravel, grit, sand, etc.), a binder (cement, bitumen, clay), additives, and water | F117: 74
B118: 12 - Inert materials | D118: Cellular concrete >90% | F118: 96
B119: 12 - Inert materials | D119: Cement >90% | F119: 90
B120: 12 - Inert materials | D120: Granite >90% | F120: 91
B121: 12 - Inert materials | D121: Ceramic >90% | E121: Earthenware or sandstone-based materials | F121: 97
B122: 12 - Inert materials | D122: Mortar >90% | F122: 92
B123: 12 - Inert materials | D123: Additives >90% | F123: 93
B124: 12 - Inert materials | D124: Sandstone >90% | F124: 94
B125: 12 - Inert materials | D125: Lime >90% | F125: 95
B126: 12 - Inert materials | D126: Artificial stone >90% | E126: Materials obtained by moulding various aggregates, fillers, and binders (concrete, reconstituted stone) or through chemical synthesis | F126: 98
B129: Measurement code: 00 000 00 XXX 0
B131: Measurement type | C131: Concat. | D131: Calculation method | E131: Applied product scopes | F131: Measurement code
C132: =[2]!Tbl_Code_Mesure[[#This Row],[Calculation method]]&#REF! -> 
B133: General | C133: =[2]!Tbl_Code_Mesure[[#This Row],[Calculation method]]&#REF! ->  | D133: € / ton | E133: Elements of all sizes and weights | F133: 000
B134: General | C134: =[3]!Tbl_Code_Mesure[[#This Row],[Mode de calcul]]&[3]!Tbl_Code_Mesure[[#This Row],[Périmètres produits d''application]] ->  | D134: € / Unit | E134: Must not exceed 0.5 kg | F134: 020
B135: General | C135: =[3]!Tbl_Code_Mesure[[#This Row],[Mode de calcul]]&[3]!Tbl_Code_Mesure[[#This Row],[Périmètres produits d''application]] ->  | D135: € / Unit | E135: Between 0.5 kg and < 1 kg | F135: 021
B136: General | C136: =[3]!Tbl_Code_Mesure[[#This Row],[Mode de calcul]]&[3]!Tbl_Code_Mesure[[#This Row],[Périmètres produits d''application]] ->  | D136: € / Unit | E136: Between 1 kg and < 2 kg | F136: 022
B137: General | C137: =[3]!Tbl_Code_Mesure[[#This Row],[Mode de calcul]]&[3]!Tbl_Code_Mesure[[#This Row],[Périmètres produits d''application]] ->  | D137: € / Unit | E137: Between 2 kg and < 3 kg | F137: 052
B138: General | C138: =[3]!Tbl_Code_Mesure[[#This Row],[Mode de calcul]]&[3]!Tbl_Code_Mesure[[#This Row],[Périmètres produits d''application]] ->  | D138: € / Unit | E138: Between 3 kg and < 5 kg | F138: 053
B139: General | C139: =[3]!Tbl_Code_Mesure[[#This Row],[Mode de calcul]]&[3]!Tbl_Code_Mesure[[#This Row],[Périmètres produits d''application]] ->  | D139: € / Unit | E139: Between 5 kg and < 7 kg | F139: 054
B140: General | C140: =[3]!Tbl_Code_Mesure[[#This Row],[Mode de calcul]]&[3]!Tbl_Code_Mesure[[#This Row],[Périmètres produits d''application]] ->  | D140: € / Unit | E140: Between 7 kg and < 10 kg | F140: 055
B141: General | C141: =[3]!Tbl_Code_Mesure[[#This Row],[Mode de calcul]]&[3]!Tbl_Code_Mesure[[#This Row],[Périmètres produits d''application]] ->  | D141: € / Unit | E141: Between 10 kg and < 15 kg | F141: 056
B142: General | C142: =[3]!Tbl_Code_Mesure[[#This Row],[Mode de calcul]]&[3]!Tbl_Code_Mesure[[#This Row],[Périmètres produits d''application]] ->  | D142: € / Unit | E142: Between 15 kg and < 20 kg | F142: 057
B143: General | C143: =[3]!Tbl_Code_Mesure[[#This Row],[Mode de calcul]]&[3]!Tbl_Code_Mesure[[#This Row],[Périmètres produits d''application]] ->  | D143: € / Unit | E143: Between 20 kg and < 25 kg | F143: 058
B144: General | C144: =[3]!Tbl_Code_Mesure[[#This Row],[Mode de calcul]]&[3]!Tbl_Code_Mesure[[#This Row],[Périmètres produits d''application]] ->  | D144: € / Unit | E144: Between 25 kg and < 30 kg | F144: 059
B145: General | C145: =[3]!Tbl_Code_Mesure[[#This Row],[Mode de calcul]]&[3]!Tbl_Code_Mesure[[#This Row],[Périmètres produits d''application]] ->  | D145: € / Unit | E145: Between 30 kg and < 40 kg | F145: 027
B146: General | C146: =[3]!Tbl_Code_Mesure[[#This Row],[Mode de calcul]]&[3]!Tbl_Code_Mesure[[#This Row],[Périmètres produits d''application]] ->  | D146: € / Unit | E146: Between 40 kg and < 50 kg | F146: 060
B147: General | C147: =[3]!Tbl_Code_Mesure[[#This Row],[Mode de calcul]]&[3]!Tbl_Code_Mesure[[#This Row],[Périmètres produits d''application]] ->  | D147: € / Set of 10 | E147: Set of 10 | F147: 090
B148: General | C148: =[3]!Tbl_Code_Mesure[[#This Row],[Mode de calcul]]&[3]!Tbl_Code_Mesure[[#This Row],[Périmètres produits d''application]] ->  | D148: € / Unit | E148: Small producer codes | F148: 89

Sheet Small Producer codes
A1: Simplified codification for small producers
A3: Eco-participation per unit | B3: Amount per unit | C3: Code
A6: DIY products
A7: Hand tools and their accessories | B7: 0.16 | C7: 21100000890
A8: Large non-electric, non-combustion items and machines, and their accessories | B8: 1.50 | C8: 21101000890
A9: Tools and supports for working at height | B9: 1.13 | C9: 21102000890
A10: Personal protection equipment and accessories for DIY | B10: 0.05 | C10: 21103000890
A11: Tarpaulins, covers, nets, and films for DIY | B11: 0.86 | C11: 21104000890
A12: Buckets, troughs and containers | B12: 0.04 | C12: 21105000890
A14: Garden upkeep and landscaping
A15: Garden upkeep hand tools and small accessories | B15: 0.32 | C15: 22150000890
A16: Personal protection equipment and accessories for gardening | B16: 0.32 | C16: 22151000890
A17: Flower pots and containers | B17: 0.43 | C17: 22152000890
A18: Tarpaulins, covers, nets, and films for gardening | B18: 0.32 | C18: 22153000890
A19: Outdoor equipment and accessories (excl. tarpaulins, nets, and covers) | B19: 0.75 | C19: 22154000890
A20: Non-masonry outdoor structures | B20: 1.13 | C20: 22155000890

Sheet Code Generator
A1: Product code generator – DIY and Gardening Products | H1: MASQUER | I1: MASQUER | K1: =Info!$A$7 -> Version 1.4 - 5th November 2024
A2: Select the elements in the green boxes Remember to press the "RESET" button before generating a new item. The amount including VAT of the eco-tax is given as an indication; the applicable scale is the scale excluding VAT.
G4: Code: | I4: A
A6: 1 - Select an EPR: | G6: =IF(D6="","",VLOOKUP(D6,'Param masqué'!$D$3:$E$4,2,FALSE)) ->  | H6: =LEFT(A6,1)+0 -> 1 | I6: =I4&"_"&G6 -> A_
A8: 2 - Select a Department: | E8: _ | G8: =IF(D8="","",VLOOKUP(D8,'Param masqué'!$J$3:$K$14,2,FALSE)) ->  | H8: =LEFT(A8,1)+0 -> 2 | I8: =I4&"_"&G8 -> A_
A10: =H8+1&" - Select a product category: " -> 3 - Select a product category: | H10: =LEFT(A10,1)+0 -> 3 | I10: =IFERROR(VLOOKUP($D$10,'Param masqué'!$AT$2:$AU$13,2,FALSE),0) -> 0
I11: =IF(D10="Prix en fonction d'une autre unité fonctionelle",I8&"F","") -> 
A12: =H10+1&" - Select a material: " -> 4 - Select a material: | G12: =IF(D12="","",VLOOKUP(D12,'Param masqué'!$R$3:$T$79,3,FALSE)) ->  | H12: =LEFT(A12,1)+0 -> 4 | I12: =IF($D$10="Prix en fonction d'une autre unité fonctionelle",VLOOKUP(I11,'Param masqué'!AG:AJ,4,FALSE),VLOOKUP(I8,'Param masqué'!AG:AJ,4,FALSE)) -> 
A14: =H12+1&" - Choose the characteristic (or packaging) according to the type of product: " -> 5 - Choose the characteristic (or packaging) according to the type of product: | G14: =IF(D14="","",VLOOKUP(D14,'Param masqué'!$AD$1:$AE$17,2,FALSE)) ->  | H14: =LEFT(A14,1)+0 -> 5
D16: =IF($G$8=155,"Attention, ce produit relève peut-être d'une autre filière REP. Pensez à bien vérifier son appartenance à la REP ABJ","") -> 
A18: Hence the product code: | D18: =IF(OR(D14="",D12="",D8="",D6=""),"",CONCATENATE(G6,G8,G12,G14,0)) -> 
D19: =IF(D18="","",D6&" - "&D8&" en "&D12&" "&D14) -> 
A20: =IF(D10="forfait","The eco-fee amount is (€/conditionnement retenu)","The eco-fee amount (€/T) is :") -> The eco-fee amount (€/T) is :
G21: and its eco-fee code:
A22: You can set the VAT rate | C22: Excl. VAT: | D22: =IFERROR(VLOOKUP('Code Generator'!$D$18,Codes!$C:$J,8,FALSE),"") ->  | F22: =IFERROR(VLOOKUP('Code Generator'!$D$18,Codes!$C:$J,7,FALSE),"") ->  | G22: =IFERROR(VLOOKUP(D18,Codes!$C:$K,9,FALSE),"") -> 
B23: 0.2 | C23: Incl. VAT: | D23: =IF(D22="","",D22*(1+$B$23)) ->  | F23: =IFERROR(VLOOKUP('Code Generator'!$D$18,Codes!$C:$J,7,FALSE),"") -> 
A25: =IF(G14="000","If applicable, indicate the weight of your product here in kg:","") -> 
D27: =IFERROR(IF(D25="","",IF(F22="€ / Tonne",IF(D25*D22/1000<0.01,"Attention, le prix unitaire calculé est inférieur à 1ct, vous ne pouvez pas afficher l'éco-participation unitaire",""),"")),"") -> 
C28: i.e. | D28: =IFERROR(IF(D25="","",IF(F22="€ / Tonne",IF(D25*D22/1000<0.01,"<0,01€",D25*D22/1000),D25*D22)),"") ->  | F28: Excl. VAT

Sheet Eco-fee overview tables
A1: Eco-participation per ton | B1: Single-material (> 90%) | D1: Primary material (> 50%) | F1: Single-material (> 90%) | H1: Primary material (> 50%) | I1: Other materials or assembled materials
B2: Inert materials, excl. Ceramics | C2: Ceramic | D2: Metal | E2: Wood or mixed wood/metal | F2: Nonsynthetic textiles or biosourced materials | G2: Synthetic textile, polymer, or single-resin plastic | H2: Synthetic textile, polymer, or single-resin plastic
A4: DIY products
A5: Hand tools and their accessories | B5: - | C5: - | D5: 10 | E5: 45 | F5: 50 | G5: 165 | H5: 215 | I5: 215
A6: Large non-electric, non-combustion items and machines, and their accessories | B6: - | C6: - | D6: 3 | E6: 10 | F6: 30 | G6: 50 | H6: 75 | I6: 75
A7: Tools and supports for working at height | B7: - | C7: - | D7: 3 | E7: 10 | F7: 30 | G7: 50 | H7: 75 | I7: 75
A8: Personal protection equipment and accessories for DIY | B8: - | C8: - | D8: 10 | E8: 45 | F8: 50 | G8: 165 | H8: 215 | I8: 215
A9: Tarpaulins, covers, nets, and films for DIY | B9: - | C9: - | D9: - | E9: - | F9: 50 | G9: 165 | H9: 215 | I9: 215
A10: Buckets, troughs and containers | B10: 5 | C10: 10 | D10: 10 | E10: 20 | F10: 50 | G10: 130 | H10: 170 | I10: 170
A12: Garden upkeep and landscaping
A13: Garden upkeep hand tools and small accessories | B13: 5 | C13: 10 | D13: 10 | E13: 45 | F13: 50 | G13: 165 | H13: 215 | I13: 215
A14: Personal protection equipment and accessories for gardening | B14: - | C14: - | D14: 10 | E14: 45 | F14: 50 | G14: 165 | H14: 215 | I14: 215
A15: Flower pots and containers | B15: 5 | C15: 10 | D15: 10 | E15: 20 | F15: 50 | G15: 130 | H15: 170 | I15: 170
A16: Tarpaulins, covers, nets, and films for gardening | B16: - | C16: - | D16: - | E16: - | F16: 50 | G16: 165 | H16: 215 | I16: 215
A17: Outdoor equipment and accessories (excl. tarpaulins, nets, and covers) | B17: 5 | C17: 10 | D17: 3 | E17: 10 | F17: 30 | G17: 50 | H17: 75 | I17: 75
A18: Non-masonry outdoor structures | B18: 5 | C18: 10 | D18: 3 | E18: 10 | F18: 30 | G18: 50 | H18: 75 | I18: 75
A20: Alternative scale by weight range
A23: Large non-electric, non-combustion items and machines, and their accessories, Outdoor equipment and accessories (excl. tarpaulins, nets, and covers), Non-masonry outdoor structures and Tools and supports for working at height | B23: Single-material (> 90%) | D23: Primary material (> 50%) | F23: Single-material (> 90%) | H23: Primary material (> 50%) | I23: Other materials or assembled materials
B24: Inert materials, excl. Ceramics | C24: Ceramic | D24: Metal | E24: Wood or mixed wood/metal | F24: Nonsynthetic textiles or biosourced materials | G24: Synthetic textile, polymer, or single-resin plastic | H24: Synthetic textile, polymer, or single-resin plastic
A25: Must not exceed 0.5 kg | B25: 0.01 | C25: 0.01 | D25: 0.01 | E25: 0.01 | F25: 0.01 | G25: 0.01 | H25: 0.02 | I25: 0.02
A26: Between 0.5 kg and < 1 kg | B26: 0.01 | C26: 0.01 | D26: 0.01 | E26: 0.01 | F26: 0.02 | G26: 0.04 | H26: 0.06 | I26: 0.06
A27: Between 1 kg and < 2 kg | B27: 0.01 | C27: 0.02 | D27: 0.01 | E27: 0.02 | F27: 0.05 | G27: 0.08 | H27: 0.11 | I27: 0.11
A28: Between 2 kg and < 3 kg | B28: 0.01 | C28: 0.03 | D28: 0.01 | E28: 0.03 | F28: 0.08 | G28: 0.13 | H28: 0.19 | I28: 0.19
A29: Between 3 kg and < 5 kg | B29: 0.02 | C29: 0.04 | D29: 0.01 | E29: 0.04 | F29: 0.12 | G29: 0.2 | H29: 0.3 | I29: 0.3
A30: Between 5 kg and < 7 kg | B30: 0.04 | C30: 0.07 | D30: 0.02 | E30: 0.07 | F30: 0.21 | G30: 0.35 | H30: 0.53 | I30: 0.53
A31: Between 7 kg and < 10 kg | B31: 0.05 | C31: 0.1 | D31: 0.03 | E31: 0.1 | F31: 0.3 | G31: 0.5 | H31: 0.75 | I31: 0.75
A32: Between 10 kg and < 15 kg | B32: 0.08 | C32: 0.15 | D32: 0.05 | E32: 0.15 | F32: 0.45 | G32: 0.75 | H32: 1.13 | I32: 1.13
A33: Between 15 kg and < 20 kg | B33: 0.1 | C33: 0.2 | D33: 0.06 | E33: 0.2 | F33: 0.6 | G33: 1 | H33: 1.5 | I33: 1.5
A34: Between 20 kg and < 25 kg | B34: 0.13 | C34: 0.25 | D34: 0.08 | E34: 0.25 | F34: 0.75 | G34: 1.25 | H34: 1.88 | I34: 1.88
A35: Between 25 kg and < 30 kg | B35: 0.15 | C35: 0.3 | D35: 0.09 | E35: 0.3 | F35: 0.9 | G35: 1.5 | H35: 2.25 | I35: 2.25
A36: Between 30 kg and < 40 kg | B36: 0.2 | C36: 0.4 | D36: 0.12 | E36: 0.4 | F36: 1.2 | G36: 2 | H36: 3 | I36: 3
A37: Between 40 kg and < 50 kg | B37: 0.25 | C37: 0.5 | D37: 0.15 | E37: 0.5 | F37: 1.5 | G37: 2.5 | H37: 3.75 | I37: 3.75
A40: Hand tools and their accessories, Tarpaulins, covers, nets, and films for DIY, Personal protection equipment and accessories | B40: Single-material (> 90%) | D40: Primary material (> 50%) | F40: Single-material (> 90%) | H40: Primary material (> 50%) | I40: Other materials or assembled materials
B41: Inert materials, excl. Ceramics | C41: Ceramic | D41: Metal | E41: Wood or mixed wood/metal | F41: Nonsynthetic textiles or biosourced materials | G41: Synthetic textile, polymer, or single-resin plastic | H41: Synthetic textile, polymer, or single-resin plastic
A42: Must not exceed 0.5 kg | B42: 0.01 | C42: 0.01 | D42: 0.01 | E42: 0.01 | F42: 0.01 | G42: 0.04 | H42: 0.05 | I42: 0.05
A43: Between 0.5 kg and < 1 kg | B43: 0.01 | C43: 0.01 | D43: 0.01 | E43: 0.03 | F43: 0.04 | G43: 0.12 | H43: 0.16 | I43: 0.16
A44: Between 1 kg and < 2 kg | B44: 0.01 | C44: 0.02 | D44: 0.02 | E44: 0.07 | F44: 0.08 | G44: 0.25 | H44: 0.32 | I44: 0.32
A45: Between 2 kg and < 3 kg | B45: 0.01 | C45: 0.03 | D45: 0.03 | E45: 0.11 | F45: 0.13 | G45: 0.41 | H45: 0.54 | I45: 0.54
A46: Between 3 kg and < 5 kg | B46: 0.02 | C46: 0.04 | D46: 0.04 | E46: 0.18 | F46: 0.2 | G46: 0.66 | H46: 0.86 | I46: 0.86
A47: Between 5 kg and < 7 kg | B47: 0.04 | C47: 0.07 | D47: 0.07 | E47: 0.32 | F47: 0.35 | G47: 1.16 | H47: 1.51 | I47: 1.51
A50: Flower pots, Buckets, troughs and containers | B50: Single-material (> 90%) | D50: Primary material (> 50%) | F50: Single-material (> 90%) | H50: Primary material (> 50%) | I50: Other materials or assembled materials
B51: Inert materials, excl. Ceramics | C51: Ceramic | D51: Metal | E51: Wood or mixed wood/metal | F51: Nonsynthetic textiles or biosourced materials | G51: Synthetic textile, polymer, or single-resin plastic | H51: Synthetic textile, polymer, or single-resin plastic
A52: Must not exceed 0.5 kg | B52: 0.01 | C52: 0.01 | D52: 0.01 | E52: 0.01 | F52: 0.01 | G52: 0.03 | H52: 0.04 | I52: 0.04
A53: Between 0.5 kg and < 1 kg | B53: 0.01 | C53: 0.01 | D53: 0.01 | E53: 0.02 | F53: 0.04 | G53: 0.1 | H53: 0.13 | I53: 0.13
A54: Between 1 kg and < 2 kg | B54: 0.01 | C54: 0.02 | D54: 0.02 | E54: 0.03 | F54: 0.08 | G54: 0.2 | H54: 0.26 | I54: 0.26
A55: Between 2 kg and < 3 kg | B55: 0.01 | C55: 0.03 | D55: 0.03 | E55: 0.05 | F55: 0.13 | G55: 0.33 | H55: 0.43 | I55: 0.43
A56: Between 3 kg and < 5 kg | B56: 0.02 | C56: 0.04 | D56: 0.04 | E56: 0.08 | F56: 0.2 | G56: 0.52 | H56: 0.68 | I56: 0.68
A57: Between 5 kg and < 7 kg | B57: 0.04 | C57: 0.07 | D57: 0.07 | E57: 0.14 | F57: 0.35 | G57: 0.91 | H57: 1.19 | I57: 1.19
A58: Between 7 kg and < 10 kg | B58: 0.05 | C58: 0.1 | D58: 0.1 | E58: 0.2 | F58: 0.5 | G58: 1.3 | H58: 1.7 | I58: 1.7
A59: Between 10 kg and < 15 kg | B59: 0.08 | C59: 0.15 | D59: 0.15 | E59: 0.3 | F59: 0.75 | G59: 1.95 | H59: 2.55 | I59: 2.55
A60: Between 15 kg and < 20 kg | B60: 0.1 | C60: 0.2 | D60: 0.2 | E60: 0.4 | F60: 1 | G60: 2.6 | H60: 3.4 | I60: 3.4
A63: Simplified codification for small producers
A65: Eco-participation per set of 10 units | B65: Amount for a set of 10 | C65: Code
A68: DIY products
A69: Hand tools and their accessories | B69: 4.3 | C69: 21100000900
A70: Large non-electric, non-combustion items and machines, and their accessories | B70: 11.25 | C70: 21101000900
A71: Tools and supports for working at height | B71: 11.25 | C71: 21102000900
A72: Personal protection equipment and accessories for DIY | B72: 4.3 | C72: 21103000900
A73: Tarpaulins, covers, nets, and films for DIY | B73: 15.05 | C73: 21104000900
A74: Buckets, troughs and containers | B74: 10.2 | C74: 21105000900
A76: Garden upkeep and landscaping
A77: Garden upkeep hand tools and small accessories | B77: 4.3 | C77: 22150000900
A78: Personal protection equipment and accessories for gardening | B78: 4.3 | C78: 22151000900
A79: Flower pots and containers | B79: 10.2 | C79: 22152000900
A80: Tarpaulins, covers, nets, and films for gardening | B80: 15.05 | C80: 22153000900
A81: Outdoor equipment and accessories (excl. tarpaulins, nets, and covers) | B81: 30 | C81: 22154000900
A82: Non-masonry outdoor structures | B82: 150 | C82: 22155000900

Sheet Codes éco-part
B1: Eco-fee code | F1: 0
B3: Eco-participation code | C3: Amount € excl. tax / item | D3: Amount € incl. tax / item (VAT rate = 20%)
B4: 002 | C4: 0.04 | D4: 0.05 | E4: =B4 -> 002
B5: 003 | C5: 0.08 | D5: 0.1 | E5: =B5 -> 003
B6: 004 | C6: 0.13 | D6: 0.16 | E6: 004
B7: 005 | C7: 0.17 | D7: 0.2 | E7: 005
B8: 006 | C8: 0.33 | D8: 0.4 | E8: 006
B9: 008 | C9: 0.83 | D9: 1 | E9: 008
B10: 009 | C10: 1.25 | D10: 1.5 | E10: 009
B11: 010 | C11: 1.67 | D11: 2 | E11: 010
B12: 011 | C12: 2.08 | D12: 2.5 | E12: 011
B13: 012 | C13: 2.5 | D13: 3 | E13: 012
B14: 013 | C14: 2.92 | D14: 3.5 | E14: 013
B15: 014 | C15: 3.33 | D15: 4 | E15: 014
B16: 015 | C16: 3.75 | D16: 4.5 | E16: 015
B17: 016 | C17: 4.17 | D17: 5 | E17: 016
B18: 017 | C18: 5.42 | D18: 6.5 | E18: 017
B19: 018 | C19: 5.83 | D19: 7 | E19: 018
B20: 019 | C20: 6.67 | D20: 8 | E20: 019
B21: 020 | C21: 7.5 | D21: 9 | E21: 020
B22: 021 | C22: 8.33 | D22: 10 | E22: 021
B23: 022 | C23: 10.83 | D23: 13 | E23: 022
B24: 023 | C24: 15 | D24: 18 | E24: 023
B25: 024 | C25: 19.17 | D25: 23 | E25: 024
B26: 026 | C26: 27.5 | D26: 33 | E26: 026
B27: 027 | C27: 31.67 | D27: 38 | E27: 027
B28: 029 | C28: 40 | D28: 48 | E28: 029
B29: 032 | C29: 52.5 | D29: 63 | E29: 032
B30: 036 | C30: 69.17 | D30: 83 | E30: 036
B31: 042 | C31: 5 | D31: 6 | E31: 042
B32: 043 | C32: 0.34 | D32: 0.41 | E32: 043
B33: 044 | C33: 0.68 | D33: 0.82 | E33: 044
B34: 047 | C34: 0.02 | D34: 0.02 | E34: 047
B35: 048 | C35: 0.05 | D35: 0.06 | E35: 048
B36: 049 | C36: 0.09 | D36: 0.11 | E36: 049
B37: 050 | C37: 0.15 | D37: 0.18 | E37: 050
B38: 051 | C38: 0.21 | D38: 0.25 | E38: 051
B39: 053 | C39: 0.5 | D39: 0.6 | E39: 053
B40: 054 | C40: 0.92 | D40: 1.1 | E40: 054
B41: 055 | C41: 0.96 | D41: 1.15 | E41: 055
B42: 056 | C42: 1 | D42: 1.2 | E42: 056
B43: 057 | C43: 1.42 | D43: 1.7 | E43: 057
B44: 058 | C44: 1.46 | D44: 1.75 | E44: 058
B45: 059 | C45: 1.5 | D45: 1.8 | E45: 059
B46: 060 | C46: 1.92 | D46: 2.3 | E46: 060
B47: 061 | C47: 2 | D47: 2.4 | E47: 061
B48: 062 | C48: 2.33 | D48: 2.8 | E48: 062
B49: 065 | C49: 4.58 | D49: 5.5 | E49: 065
B50: 067 | C50: 7.08 | D50: 8.5 | E50: 067
B51: 068 | C51: 7.92 | D51: 9.5 | E51: 068
B52: 069 | C52: 8.75 | D52: 10.5 | E52: 069
B53: 070 | C53: 9.17 | D53: 11 | E53: 070
B54: 072 | C54: 12.5 | D54: 15 | E54: 072
B55: 073 | C55: 17.5 | D55: 21 | E55: 073
B56: 074 | C56: 21.67 | D56: 26 | E56: 074
B57: 075 | C57: 26.67 | D57: 32 | E57: 075
B58: 079 | C58: 51.67 | D58: 62 | E58: 079
B59: 080 | C59: 61.67 | D59: 74 | E59: 080
B60: 083 | C60: 76.67 | D60: 92 | E60: 083
B61: 084 | C61: 86.67 | D61: 104 | E61: 084
B62: 088 | C62: 106.67 | D62: 128 | E62: 088
B63: 092 | C63: 0.03 | D63: 0.04 | E63: 092
B64: 094 | C64: 0.1 | D64: 0.12 | E64: 094
B65: 095 | C65: 0.25 | D65: 0.3 | E65: 095
B66: 096 | C66: 0.06 | D66: 0.07 | E66: 096
B67: 097 | C67: 0.12 | D67: 0.14 | E67: 097
B68: 098 | C68: 0.14 | D68: 0.17 | E68: 098
B69: 099 | C69: 0.16 | D69: 0.19 | E69: =B69 -> 099
B70: 100 | C70: 0.18 | D70: 0.22 | E70: 100
B71: 101 | C71: 0.2 | D71: 0.24 | E71: 101
B72: 103 | C72: 0.27 | D72: 0.32 | E72: 103
B73: 104 | C73: 0.31 | D73: 0.37 | E73: 104
B74: 105 | C74: 0.4 | D74: 0.48 | E74: 105
B75: 106 | C75: 0.46 | D75: 0.55 | E75: 106
B76: 107 | C76: 0.47 | D76: 0.56 | E76: 107
B77: 108 | C77: 0.49 | D77: 0.59 | E77: 108
B78: 109 | C78: 0.51 | D78: 0.61 | E78: 109
B79: 110 | C79: 0.67 | D79: 0.8 | E79: 110
B80: 111 | C80: 0.69 | D80: 0.83 | E80: 111
B81: 112 | C81: 0.81 | D81: 0.97 | E81: 112
B82: 113 | C82: 1.08 | D82: 1.3 | E82: 113
B83: 114 | C83: 1.21 | D83: 1.45 | E83: 114
B84: 115 | C84: 1.33 | D84: 1.6 | E84: 115
B85: 116 | C85: 1.71 | D85: 2.05 | E85: 116
B86: 117 | C86: 1.83 | D86: 2.2 | E86: 117
B87: 118 | C87: 2.25 | D87: 2.7 | E87: 118
B88: 119 | C88: 2.67 | D88: 3.2 | E88: 119
B89: 120 | C89: 2.75 | D89: 3.3 | E89: 120
B90: 121 | C90: 3.08 | D90: 3.7 | E90: 121
B91: 122 | C91: 3.25 | D91: 3.9 | E91: 122
B92: 123 | C92: 3.58 | D92: 4.3 | E92: 123
B93: 124 | C93: 3.67 | D93: 4.4 | E93: 124
B94: 125 | C94: 3.92 | D94: 4.7 | E94: 125
B95: 126 | C95: 4.42 | D95: 5.3 | E95: 126
B96: 127 | C96: 4.5 | D96: 5.4 | E96: 127
B97: 128 | C97: 4.67 | D97: 5.6 | E97: 128
B98: 129 | C98: 4.75 | D98: 5.7 | E98: 129
B99: 130 | C99: 4.83 | D99: 5.8 | E99: 130
B100: 131 | C100: 5.17 | D100: 6.2 | E100: 131
B101: 132 | C101: 5.33 | D101: 6.4 | E101: 132
B102: 133 | C102: 5.58 | D102: 6.7 | E102: 133
B103: 134 | C103: 6.08 | D103: 7.3 | E103: 134
B104: 135 | C104: 6.25 | D104: 7.5 | E104: 135
B105: 136 | C105: 6.92 | D105: 8.3 | E105: 136
B106: 137 | C106: 8.83 | D106: 10.6 | E106: 137
B107: 138 | C107: 10 | D107: 12 | E107: 138
B108: 139 | C108: 10.42 | D108: 12.5 | E108: 139
B109: 140 | C109: 11.25 | D109: 13.5 | E109: 140
B110: 141 | C110: 11.67 | D110: 14 | E110: 141
B111: 142 | C111: 13.33 | D111: 16 | E111: 142
B112: 143 | C112: 14.17 | D112: 17 | E112: 143
B113: 144 | C113: 15.42 | D113: 18.5 | E113: 144
B114: 145 | C114: 16.25 | D114: 19.5 | E114: 145
B115: 146 | C115: 17.08 | D115: 20.5 | E115: 146
B116: 147 | C116: 18.33 | D116: 22 | E116: 147
B117: 148 | C117: 20 | D117: 24 | E117: 148
B118: 149 | C118: 20.83 | D118: 25 | E118: 149
B119: 150 | C119: 22.5 | D119: 27 | E119: 150
B120: 151 | C120: 25 | D120: 30 | E120: 151
B121: 152 | C121: 26.92 | D121: 32.3 | E121: 152
B122: 153 | C122: 30 | D122: 36 | E122: 153
B123: 154 | C123: 30.83 | D123: 37 | E123: 154
B124: 155 | C124: 31.25 | D124: 37.5 | E124: 155
B125: 156 | C125: 32.17 | D125: 38.6 | E125: 156
B126: 157 | C126: 32.5 | D126: 39 | E126: 157
B127: 158 | C127: 34.17 | D127: 41 | E127: 158
B128: 159 | C128: 35 | D128: 42 | E128: 159
B129: 160 | C129: 35.42 | D129: 42.5 | E129: 160
B130: 161 | C130: 37.42 | D130: 44.9 | E130: 161
B131: 162 | C131: 37.5 | D131: 45 | E131: 162
B132: 163 | C132: 39.17 | D132: 47 | E132: 163
B133: 164 | C133: 42.5 | D133: 51 | E133: =B133 -> 164
B134: 165 | C134: 42.67 | D134: 51.2 | E134: 165
B135: 166 | C135: 42.92 | D135: 51.5 | E135: 166
B136: 167 | C136: 43.33 | D136: 52 | E136: 167
B137: 168 | C137: 43.75 | D137: 52.5 | E137: 168
B138: 169 | C138: 45 | D138: 54 | E138: 169
B139: 170 | C139: 45.42 | D139: 54.5 | E139: 170
B140: 171 | C140: 47.5 | D140: 57 | E140: 171
B141: 172 | C141: 47.92 | D141: 57.5 | E141: 172
B142: 173 | C142: 50 | D142: 60 | E142: 173
B143: 174 | C143: 50.42 | D143: 60.5 | E143: 174
B144: 175 | C144: 53.17 | D144: 63.8 | E144: 175
B145: 176 | C145: 55.42 | D145: 66.5 | E145: 176
B146: 177 | C146: 55.83 | D146: 67 | E146: 177
B147: 178 | C147: 56.25 | D147: 67.5 | E147: 178
B148: 179 | C148: 58.42 | D148: 70.1 | E148: 179
B149: 180 | C149: 60 | D149: 72 | E149: 180
B150: 181 | C150: 60.42 | D150: 72.5 | E150: 181
B151: 182 | C151: 62.5 | D151: 75 | E151: 182
B152: 183 | C152: 63.67 | D152: 76.4 | E152: 183
B153: 184 | C153: 64.17 | D153: 77 | E153: 184
B154: 185 | C154: 65.42 | D154: 78.5 | E154: 185
B155: 186 | C155: 68.33 | D155: 82 | E155: 186
B156: 187 | C156: 68.75 | D156: 82.5 | E156: 187
B157: 188 | C157: 68.92 | D157: 82.7 | E157: 188
B158: 189 | C158: 72.5 | D158: 87 | E158: 189
B159: 190 | C159: 72.92 | D159: 87.5 | E159: 190
B160: 191 | C160: 74.17 | D160: 89 | E160: 191
B161: 192 | C161: 75 | D161: 90 | E161: 192
B162: 193 | C162: 75.42 | D162: 90.5 | E162: 193
B163: 194 | C163: 77.92 | D163: 93.5 | E163: 194
B164: 195 | C164: 79.42 | D164: 95.3 | E164: 195
B165: 196 | C165: 80.83 | D165: 97 | E165: 196
B166: 197 | C166: 81.25 | D166: 97.5 | E166: 197
B167: 198 | C167: 84.17 | D167: 101 | E167: 198
B168: 199 | C168: 84.67 | D168: 101.6 | E168: 199
B169: 200 | C169: 85 | D169: 102 | E169: 200
B170: 201 | C170: 85.42 | D170: 102.5 | E170: 201
B171: 202 | C171: 87.5 | D171: 105 | E171: 202
B172: 203 | C172: 89.92 | D172: 107.9 | E172: 203
B173: 204 | C173: 93.75 | D173: 112.5 | E173: 204
B174: 205 | C174: 95.17 | D174: 114.2 | E174: 205
B175: 206 | C175: 95.42 | D175: 114.5 | E175: 206
B176: 207 | C176: 100 | D176: 120 | E176: 207
B177: 208 | C177: 100.42 | D177: 120.5 | E177: 208
B178: 209 | C178: 104.17 | D178: 125 | E178: 209
B179: 210 | C179: 105.42 | D179: 126.5 | E179: 210
B180: 211 | C180: 105.67 | D180: 126.8 | E180: 211
B181: 212 | C181: 106.25 | D181: 127.5 | E181: 212
B182: 213 | C182: 110.92 | D182: 133.1 | E182: 213
B183: 214 | C183: 112.5 | D183: 135 | E183: 214
B184: 215 | C184: 112.92 | D184: 135.5 | E184: 215
B185: 216 | C185: 115.42 | D185: 138.5 | E185: 216
B186: 217 | C186: 117.92 | D186: 141.5 | E186: 217
B187: 218 | C187: 118.75 | D187: 142.5 | E187: 218
B188: 219 | C188: 121.67 | D188: 146 | E188: 219
B189: 220 | C189: 125 | D189: 150 | E189: 220
B190: 221 | C190: 125.42 | D190: 150.5 | E190: 221
B191: 222 | C191: 129.17 | D191: 155 | E191: 222
B192: 223 | C192: 130.42 | D192: 156.5 | E192: 223
B193: 224 | C193: 131.25 | D193: 157.5 | E193: 224
B194: 225 | C194: 135.42 | D194: 162.5 | E194: 225
B195: 226 | C195: 139.17 | D195: 167 | E195: 226
B196: 227 | C196: 140.42 | D196: 168.5 | E196: 227
B197: 228 | C197: 145.42 | D197: 174.5 | E197: =B197 -> 228
B198: 229 | C198: 147.92 | D198: 177.5 | E198: 229
B199: 230 | C199: 151.67 | D199: 182 | E199: 230
B200: 231 | C200: 155.42 | D200: 186.5 | E200: 231
B201: 232 | C201: 156.67 | D201: 188 | E201: 232
... 660 more rows

Sheet Param masqué (hidden)
B1: REP | C1: _ | D1: Rayon | E1: Code Rayon | G1: REP | H1: _ | I1: Rayon | J1: Catégorie | K1: Code Produit | Q1: Type de matériaux | R1: Matériaux | S1: Exemples de matériaux | T1: Code matériaux | W1: A_100 | AB1: Type de mesure | AC1: Mode de calcul | AD1: Périmètres produits d'application | AE1: Code Mesure | AG1: code produit | AH1: Tranches de dimensions | AI1: unité | AJ1: meta cat | AN1: Typo | AO1: Tranches de dimensions | AP1: Code | AY1: Cat1
W2: 1 - Metal | X2: =VLOOKUP(W2,$AT$2:$AU$13,2,FALSE) -> Cat_1 | AG2: A_100 | AH2: Elements of all sizes and weights | AI2: € / Tonne | AJ2: Dim_2 | AN2: Dim_1 | AO2: Elements of all sizes and weights | AP2: 000 | AT2: =M3 -> 1 - Metal | AU2: Cat_1 | AV2: 1 | AX2: 28 | AY2: =R3 -> Metal >90% | AZ2: =VLOOKUP(AY2,'Understanding codification'!$D$49:$F$126,3,FALSE) -> 28 | BB2: Prix au poids
A3: =E3 -> 21 | B3: DIY and Gardening Products | C3: A | D3: DIY products | E3: =VLOOKUP(D3,'Understanding codification'!$D$20:$F$25,3,FALSE) -> 21 | G3: ABJ | H3: ="A_"&VLOOKUP(I3,$D$3:$E$4,2,FALSE) -> A_21 | I3: DIY products | J3: Hand tools and their accessories | K3: =VLOOKUP(J3,'Understanding codification'!$E$27:$F$43,2,FALSE) -> 100 | M3: 1 - Metal | N3: MAT_1 | O3: 1 | P3: MAT_1 | Q3: 1 - Metal | R3: Metal >90% | S3: Ferrous metals (steel, stainless steel, wrought iron, cast iron, carbon steel, zinc-plated steel, sheet steel, alloys, etc.) and non-ferrous metals (aluminium, lead, zinc, tin, chrome, copper, bronze, silver, zamac, nickel, titanium, brass, etc.) | T3: =VLOOKUP(R3,'Understanding codification'!$D$45:$F$126,3,FALSE) -> 28 | W3: 2 - Wood and wood derivatives | X3: =VLOOKUP(W3,$AT$2:$AU$13,2,FALSE) -> Cat_2 | AB3: Général | AC3: € / Tonne | AD3: Elements of all sizes and weights | AE3: 000 | AG3: A_101 | AH3: Elements of all sizes and weights | AI3: € / Tonne | AJ3: Dim_1 | AN3: Dim_1 | AO3: Must not exceed 0.5 kg | AP3: 020 | AT3: =M4 -> 2 - Wood and wood derivatives | AU3: Cat_2 | AV3: 2 | AX3: 02 | AY3: =R4 -> Assembly of metal >50% and other materials | AZ3: =VLOOKUP(AY3,'Understanding codification'!$D$49:$F$126,3,FALSE) -> 02 | BB3: Prix en fonction d'une autre unité fonctionelle
A4: =E4 -> 22 | B4: DIY and Gardening Products | C4: A | D4: Garden upkeep and landscaping | E4: =VLOOKUP(D4,'Understanding codification'!$D$20:$F$25,3,FALSE) -> 22 | G4: ABJ | H4: A_21 | I4: DIY products | J4: Large non-electric, non-combustion items and machines, and their accessories | K4: =VLOOKUP(J4,'Understanding codification'!$E$27:$F$43,2,FALSE) -> 101 | M4: 2 - Wood and wood derivatives | N4: MAT_2 | O4: 2 | P4: MAT_1 | Q4: 1 - Metal | R4: Assembly of metal >50% and other materials | S4: Assembly of metal/wood, metal/plastic, metal/inert substance, etc. | T4: =VLOOKUP(R4,'Understanding codification'!$D$45:$F$126,3,FALSE) -> 02 | W4: 3 - Cardboard | X4: Cat_3 | AC4: € / Unit | AD4: Must not exceed 0.5 kg | AE4: 020 | AG4: A_102 | AH4: Elements of all sizes and weights | AI4: € / Tonne | AJ4: Dim_1 | AN4: Dim_1 | AO4: Between 0.5 kg and < 1 kg | AP4: 021 | AT4: 3 - Cardboard | AU4: Cat_3 | AV4: 3 | AY4: Cat2
G5: ABJ | H5: A_21 | I5: DIY products | J5: Tools and supports for working at height | K5: =VLOOKUP(J5,'Understanding codification'!$E$27:$F$43,2,FALSE) -> 102 | M5: 3 - Cardboard | N5: MAT_3 | O5: 3 | W5: 4 - Materials and fibres of plant or animal origin excl. wood, paper, and cardboard | X5: Cat_4 | AC5: € / Unit | AD5: Between 0.5 kg and < 1 kg | AE5: 021 | AG5: A_103 | AH5: Elements of all sizes and weights | AI5: € / Tonne | AJ5: Dim_2 | AN5: Dim_1 | AO5: Between 1 kg and < 2 kg | AP5: 022 | AT5: 4 - Materials and fibres of plant or animal origin excl. wood, paper, and cardboard | AU5: Cat_4 | AV5: 4 | AX5: 52 | AY5: =R6 -> Solid wood and related products certified >90% | AZ5: =VLOOKUP(AY5,'Understanding codification'!$D$49:$F$126,3,FALSE) -> 52
G6: ABJ | H6: A_21 | I6: DIY products | J6: Personal protection equipment and accessories for DIY | K6: =VLOOKUP(J6,'Understanding codification'!$E$27:$F$43,2,FALSE) -> 103 | M6: 4 - Materials and fibres of plant or animal origin excl. wood, paper, and cardboard | N6: MAT_4 | O6: 4 | P6: MAT_2 | Q6: 2 - Wood and wood derivatives | R6: Solid wood and related products certified >90% | S6: All species (Douglas fir, fir, oak, beech, maritime pine, Scots pine, African pearwood, larch, teak, spruce, etc.), including engineered wood, plywood, laminated timber, and veneer | T6: =VLOOKUP(R6,'Understanding codification'!$D$45:$F$126,3,FALSE) -> 52 | W6: 5 - Plastic, synthetic fibres and materials | X6: Cat_5 | AC6: € / Unit | AD6: Between 1 kg and < 2 kg | AE6: 022 | AG6: A_104 | AH6: Elements of all sizes and weights | AI6: € / Tonne | AJ6: Dim_2 | AN6: Dim_1 | AO6: Between 2 kg and < 3 kg | AP6: 052 | AT6: 5 - Plastic, synthetic fibres and materials | AU6: Cat_5 | AV6: 5 | AX6: 20 | AY6: Solid wood and related products certified >75% | AZ6: =VLOOKUP(AY6,'Understanding codification'!$D$49:$F$126,3,FALSE) -> 20
G7: ABJ | H7: A_21 | I7: DIY products | J7: Tarpaulins, covers, nets, and films for DIY | K7: =VLOOKUP(J7,'Understanding codification'!$E$27:$F$43,2,FALSE) -> 104 | M7: 5 - Plastic, synthetic fibres and materials | N7: MAT_5 | O7: 5 | P7: MAT_2 | Q7: 2 - Wood and wood derivatives | R7: Solid wood and related products certified >75% | S7: All species (Douglas fir, fir, oak, beech, maritime pine, Scots pine, African pearwood, larch, teak, spruce, etc.), including engineered wood, plywood, laminated timber, and veneer | T7: =VLOOKUP(R7,'Understanding codification'!$D$45:$F$126,3,FALSE) -> 20 | W7: 6 - Glass and glass partitions | X7: Cat_6 | AC7: € / Unit | AD7: Between 2 kg and < 3 kg | AE7: 052 | AG7: A_105 | AH7: Elements of all sizes and weights | AI7: € / Tonne | AJ7: Dim_2 | AN7: Dim_1 | AO7: Between 3 kg and < 5 kg | AP7: 053 | AT7: 6 - Glass and glass partitions | AU7: Cat_6 | AV7: 6 | AX7: 53 | AY7: Solid wood and related products >90% | AZ7: =VLOOKUP(AY7,'Understanding codification'!$D$49:$F$126,3,FALSE) -> 53
G8: ABJ | H8: A_22 | I8: Garden upkeep and landscaping | J8: Garden upkeep hand tools and small accessories | K8: =VLOOKUP(J8,'Understanding codification'!$E$27:$F$43,2,FALSE) -> 150 | M8: 6 - Glass and glass partitions | N8: MAT_6 | O8: 6 | P8: MAT_2 | Q8: 2 - Wood and wood derivatives | R8: Solid wood and related products >90% | S8: All species (Douglas fir, fir, oak, beech, maritime pine, Scots pine, African pearwood, larch, teak, spruce, etc.), including engineered wood, plywood, laminated timber, and veneer | T8: =VLOOKUP(R8,'Understanding codification'!$D$45:$F$126,3,FALSE) -> 53 | W8: 10 - Other mixes of materials or unclassified or unspecified materials | X8: Cat_10 | AC8: € / Unit | AD8: Between 3 kg and < 5 kg | AE8: 053 | AG8: A_150 | AH8: Elements of all sizes and weights | AI8: € / Tonne | AJ8: Dim_2 | AN8: Dim_1 | AO8: Between 5 kg and < 7 kg | AP8: 054 | AT8: 7 - Plaster | AU8: Cat_7 | AV8: 7 | AX8: 21 | AY8: Solid wood and related products >75% | AZ8: =VLOOKUP(AY8,'Understanding codification'!$D$49:$F$126,3,FALSE) -> 21
G9: ABJ | H9: A_22 | I9: Garden upkeep and landscaping | J9: Personal protection equipment and accessories for gardening | K9: =VLOOKUP(J9,'Understanding codification'!$E$27:$F$43,2,FALSE) -> 151 | M9: 7 - Plaster | N9: MAT_7 | O9: 7 | P9: MAT_2 | Q9: 2 - Wood and wood derivatives | R9: Solid wood and related products >75% | S9: All species (Douglas fir, fir, oak, beech, maritime pine, Scots pine, African pearwood, larch, teak, spruce, etc.), including engineered wood, plywood, laminated timber, and veneer | T9: =VLOOKUP(R9,'Understanding codification'!$D$45:$F$126,3,FALSE) -> 21 | W9: A_101 | AC9: € / Unit | AD9: Between 5 kg and < 7 kg | AE9: 054 | AG9: A_151 | AH9: Elements of all sizes and weights | AI9: € / Tonne | AJ9: Dim_2 | AN9: Dim_1 | AO9: Between 7 kg and < 10 kg | AP9: 055 | AT9: 8 - Glass wool and rockwool | AU9: Cat_8 | AV9: 8 | AX9: 59 | AY9: Chipboard or OSB certified >90% | AZ9: =VLOOKUP(AY9,'Understanding codification'!$D$49:$F$126,3,FALSE) -> 59
G10: ABJ | H10: A_22 | I10: Garden upkeep and landscaping | J10: Flower pots and containers | K10: =VLOOKUP(J10,'Understanding codification'!$E$27:$F$43,2,FALSE) -> 152 | M10: 8 - Glass wool and rockwool | N10: MAT_8 | O10: 8 | P10: MAT_2 | Q10: 2 - Wood and wood derivatives | R10: Chipboard or OSB certified >90% | S10: Chipboard and OSB | T10: =VLOOKUP(R10,'Understanding codification'!$D$45:$F$126,3,FALSE) -> 59 | W10: 1 - Metal | X10: =VLOOKUP(W10,$AT$2:$AU$13,2,FALSE) -> Cat_1 | AC10: € / Unit | AD10: Between 7 kg and < 10 kg | AE10: 055 | AG10: A_152 | AH10: Elements of all sizes and weights | AI10: € / Tonne | AJ10: Dim_3 | AN10: Dim_1 | AO10: Between 10 kg and < 15 kg | AP10: 056 | AT10: 9 - Bitumen membranes | AU10: Cat_9 | AV10: 9 | AX10: 60 | AY10: Chipboard or OSB certified >75% | AZ10: =VLOOKUP(AY10,'Understanding codification'!$D$49:$F$126,3,FALSE) -> 60
G11: ABJ | H11: A_22 | I11: Garden upkeep and landscaping | J11: Tarpaulins, covers, nets, and films for gardening | K11: =VLOOKUP(J11,'Understanding codification'!$E$27:$F$43,2,FALSE) -> 153 | M11: 9 - Bitumen membranes | N11: MAT_9 | O11: 9 | P11: MAT_2 | Q11: 2 - Wood and wood derivatives | R11: Chipboard or OSB certified >75% | S11: Chipboard and OSB | T11: =VLOOKUP(R11,'Understanding codification'!$D$45:$F$126,3,FALSE) -> 60 | W11: 2 - Wood and wood derivatives | X11: Cat_2 | AC11: € / Unit | AD11: Between 10 kg and < 15 kg | AE11: 056 | AG11: A_153 | AH11: Elements of all sizes and weights | AI11: € / Tonne | AJ11: Dim_2 | AN11: Dim_1 | AO11: Between 15 kg and < 20 kg | AP11: 057 | AT11: 10 - Other mixes of materials or unclassified or unspecified materials | AU11: Cat_10 | AV11: 10 | AX11: 61 | AY11: Chipboard or OSB >90% | AZ11: =VLOOKUP(AY11,'Understanding codification'!$D$49:$F$126,3,FALSE) -> 61
G12: ABJ | H12: A_22 | I12: Garden upkeep and landscaping | J12: Outdoor equipment and accessories (excl. tarpaulins, nets, and covers) | K12: =VLOOKUP(J12,'Understanding codification'!$E$27:$F$43,2,FALSE) -> 154 | M12: 10 - Other mixes of materials or unclassified or unspecified materials | N12: MAT_10 | O12: 10 | P12: MAT_2 | Q12: 2 - Wood and wood derivatives | R12: Chipboard or OSB >90% | S12: Chipboard and OSB | T12: =VLOOKUP(R12,'Understanding codification'!$D$45:$F$126,3,FALSE) -> 61 | W12: 3 - Cardboard | X12: Cat_3 | AC12: € / Unit | AD12: Between 15 kg and < 20 kg | AE12: 057 | AG12: A_154 | AH12: Elements of all sizes and weights | AI12: € / Tonne | AJ12: Dim_1 | AN12: Dim_1 | AO12: Between 20 kg and < 25 kg | AP12: 058 | AT12: 11 - Mortars, coatings, paints, varnishes, resins, and preparation products | AU12: Cat_11 | AV12: 11 | AX12: 25 | AY12: Chipboard or OSB >75% | AZ12: =VLOOKUP(AY12,'Understanding codification'!$D$49:$F$126,3,FALSE) -> 25
G13: ABJ | H13: A_22 | I13: Garden upkeep and landscaping | J13: Non-masonry outdoor structures | K13: =VLOOKUP(J13,'Understanding codification'!$E$27:$F$43,2,FALSE) -> 155 | M13: 11 - Mortars, coatings, paints, varnishes, resins, and preparation products | N13: MAT_11 | O13: 11 | P13: MAT_2 | Q13: 2 - Wood and wood derivatives | R13: Chipboard or OSB >75% | S13: Chipboard and OSB | T13: =VLOOKUP(R13,'Understanding codification'!$D$45:$F$126,3,FALSE) -> 25 | W13: 4 - Materials and fibres of plant or animal origin excl. wood, paper, and cardboard | X13: Cat_4 | AC13: € / Unit | AD13: Between 20 kg and < 25 kg | AE13: 058 | AG13: A_155 | AH13: Elements of all sizes and weights | AI13: € / Tonne | AJ13: Dim_1 | AN13: Dim_1 | AO13: Between 25 kg and < 30 kg | AP13: 059 | AT13: 12 - Inert materials | AU13: Cat_12 | AV13: 12 | AX13: 62 | AY13: Wood derivatives >90% | AZ13: =VLOOKUP(AY13,'Understanding codification'!$D$49:$F$126,3,FALSE) -> 62
M14: 12 - Inert materials | N14: MAT_12 | O14: 12 | P14: MAT_2 | Q14: 2 - Wood and wood derivatives | R14: Wood derivatives >90% | S14: Composite wood, MDF, HDF, alveolar, laminate, HPL, etc. | T14: =VLOOKUP(R14,'Understanding codification'!$D$45:$F$126,3,FALSE) -> 62 | W14: 5 - Plastic, synthetic fibres and materials | X14: Cat_5 | AC14: € / Unit | AD14: Between 25 kg and < 30 kg | AE14: 059 | AN14: Dim_1 | AO14: Between 30 kg and < 40 kg | AP14: 027 | AX14: 01 | AY14: Assembly of wood and/or wood derivatives >50% and other materials or composite wood (excl. glass) | AZ14: =VLOOKUP(AY14,'Understanding codification'!$D$49:$F$126,3,FALSE) -> 01
P15: MAT_2 | Q15: 2 - Wood and wood derivatives | R15: Assembly of wood and/or wood derivatives >50% and other materials or composite wood (excl. glass) | S15: Assembly of wood/metal, wood/plastic, etc. | T15: =VLOOKUP(R15,'Understanding codification'!$D$45:$F$126,3,FALSE) -> 01 | W15: 6 - Glass and glass partitions | X15: Cat_6 | AC15: € / Unit | AD15: Between 30 kg and < 40 kg | AE15: 027 | AN15: Dim_1 | AO15: Between 40 kg and < 50 kg | AP15: 060 | AY15: Cat3
W16: 10 - Other mixes of materials or unclassified or unspecified materials | X16: Cat_10 | AC16: € / Unit | AD16: Between 40 kg and < 50 kg | AE16: 060 | AN16: Dim_2 | AO16: Elements of all sizes and weights | AP16: 000 | AX16: 19 | AY16: =R17 -> Cardboard >50% and other materials (excl. glass) | AZ16: =VLOOKUP(AY16,'Understanding codification'!$D$49:$F$126,3,FALSE) -> 19
P17: MAT_3 | Q17: 3 - Cardboard | R17: Cardboard >50% and other materials (excl. glass) | S17: Paper, cardboard,compact paper, Kraft paper | T17: =VLOOKUP(R17,'Understanding codification'!$D$45:$F$126,3,FALSE) -> 19 | W17: 12 - Inert materials | X17: Cat_12 | AC17: € / Set of 10 | AD17: Set of 10 | AE17: 090 | AN17: Dim_2 | AO17: Must not exceed 0.5 kg | AP17: 020 | AY17: Cat4
W18: A_103 | AN18: Dim_2 | AO18: Between 0.5 kg and < 1 kg | AP18: 021 | AX18: 64 | AY18: Natural rubber >50% | AZ18: =VLOOKUP(AY18,'Understanding codification'!$D$49:$F$126,3,FALSE) -> 64
P19: MAT_4 | Q19: 4 - Materials and fibres of plant or animal origin excl. wood, paper, and cardboard | R19: Biosourced materials or non-synthetic textiles >90% | S19: Plant stalks (bamboo, rattan, wicker, jute, straw, cork), natural textiles of unmixed plant origin (cotton, linen, hemp, silk, ramie, coconut fibre, raffia, etc.) | T19: =VLOOKUP(R19,'Understanding codification'!$D$45:$F$126,3,FALSE) -> 55 | W19: 1 - Metal | X19: =VLOOKUP(W19,$AT$2:$AU$13,2,FALSE) -> Cat_1 | AN19: Dim_2 | AO19: Between 1 kg and < 2 kg | AP19: 022 | AX19: 63 | AY19: Natural rubber >90% | AZ19: =VLOOKUP(AY19,'Understanding codification'!$D$49:$F$126,3,FALSE) -> 63
P20: MAT_4 | Q20: 4 - Materials and fibres of plant or animal origin excl. wood, paper, and cardboard | R20: Biosourced materials or non-synthetic textiles >50% | S20: Assembly of biosourced materials and plastic, metal, etc. | T20: =VLOOKUP(R20,'Understanding codification'!$D$45:$F$126,3,FALSE) -> 04 | W20: 2 - Wood and wood derivatives | X20: Cat_2 | AN20: Dim_2 | AO20: Between 2 kg and < 3 kg | AP20: 052 | AX20: 04 | AY20: Biosourced materials or non-synthetic textiles >50% | AZ20: =VLOOKUP(AY20,'Understanding codification'!$D$49:$F$126,3,FALSE) -> 04
P21: MAT_4 | Q21: 4 - Materials and fibres of plant or animal origin excl. wood, paper, and cardboard | R21: Natural rubber >90% | S21: Rubber and latex | T21: =VLOOKUP(R21,'Understanding codification'!$D$45:$F$126,3,FALSE) -> 63 | W21: 3 - Cardboard | X21: Cat_3 | AN21: Dim_2 | AO21: Between 3 kg and < 5 kg | AP21: 053 | AX21: 55 | AY21: Biosourced materials or non-synthetic textiles >90% | AZ21: =VLOOKUP(AY21,'Understanding codification'!$D$49:$F$126,3,FALSE) -> 55
P22: MAT_4 | Q22: 4 - Materials and fibres of plant or animal origin excl. wood, paper, and cardboard | R22: Natural rubber >50% | S22: Rubber and latex | T22: =VLOOKUP(R22,'Understanding codification'!$D$45:$F$126,3,FALSE) -> 64 | W22: 4 - Materials and fibres of plant or animal origin excl. wood, paper, and cardboard | X22: Cat_4 | AN22: Dim_2 | AO22: Between 5 kg and < 7 kg | AP22: 054 | AX22: 06 | AY22: =R23 -> Materials of animal origin >50% | AZ22: =VLOOKUP(AY22,'Understanding codification'!$D$49:$F$126,3,FALSE) -> 06
P23: MAT_4 | Q23: 4 - Materials and fibres of plant or animal origin excl. wood, paper, and cardboard | R23: Materials of animal origin >50% | S23: Textile materials or padding of animal origin (wool, felt, mohair, feathers, down, hair, leather, etc.) | T23: =VLOOKUP(R23,'Understanding codification'!$D$45:$F$126,3,FALSE) -> 06 | W23: 5 - Plastic, synthetic fibres and materials | X23: Cat_5 | AN23: Dim_3 | AO23: Elements of all sizes and weights | AP23: 000 | AY23: Cat5
W24: 6 - Glass and glass partitions | X24: Cat_6 | AN24: Dim_3 | AO24: Must not exceed 0.5 kg | AP24: 020 | AX24: 41 | AY24: =R25 -> Plastic (single-resin) >90% | AZ24: =VLOOKUP(AY24,'Understanding codification'!$D$49:$F$126,3,FALSE) -> 41
P25: MAT_5 | Q25: 5 - Plastic, synthetic fibres and materials | R25: Plastic (single-resin) >90% | S25: Plastic and other synthetic materials: acrylic, PP, PE, PS, XPS, EPS, PEX, nylon, polyamide, PU, PVC, vinyl, epoxy, synthetic fibres, PL, composite materials, carbon, etc. | T25: =VLOOKUP(R25,'Understanding codification'!$D$45:$F$126,3,FALSE) -> 41 | W25: 10 - Other mixes of materials or unclassified or unspecified materials | X25: Cat_10 | AN25: Dim_3 | AO25: Between 0.5 kg and < 1 kg | AP25: 021 | AX25: 45 | AY25: PE or PP or PP/PE mix >90% | AZ25: =VLOOKUP(AY25,'Understanding codification'!$D$49:$F$126,3,FALSE) -> 45
P26: MAT_5 | Q26: 5 - Plastic, synthetic fibres and materials | R26: PE or PP or PP/PE mix >90% | S26: Polyethylene (PE), Polypropylene (PP), PP/PE mix | T26: =VLOOKUP(R26,'Understanding codification'!$D$45:$F$126,3,FALSE) -> 45 | W26: A_104 | AN26: Dim_3 | AO26: Between 1 kg and < 2 kg | AP26: 022 | AX26: 46 | AY26: ABS >90% | AZ26: =VLOOKUP(AY26,'Understanding codification'!$D$49:$F$126,3,FALSE) -> 46
P27: MAT_5 | Q27: 5 - Plastic, synthetic fibres and materials | R27: PVC >90% | T27: =VLOOKUP(R27,'Understanding codification'!$D$45:$F$126,3,FALSE) -> 48 | W27: 3 - Cardboard | X27: =VLOOKUP(W27,$AT$2:$AU$13,2,FALSE) -> Cat_3 | AN27: Dim_3 | AO27: Between 2 kg and < 3 kg | AP27: 052 | AX27: 48 | AY27: PVC >90% | AZ27: =VLOOKUP(AY27,'Understanding codification'!$D$49:$F$126,3,FALSE) -> 48
P28: MAT_5 | Q28: 5 - Plastic, synthetic fibres and materials | R28: Polyethylene terephthalate (PET) >90% | T28: =VLOOKUP(R28,'Understanding codification'!$D$45:$F$126,3,FALSE) -> 42 | W28: 4 - Materials and fibres of plant or animal origin excl. wood, paper, and cardboard | X28: Cat_4 | AN28: Dim_3 | AO28: Between 3 kg and < 5 kg | AP28: 053 | AX28: 47 | AY28: Polystyrene >90% | AZ28: =VLOOKUP(AY28,'Understanding codification'!$D$49:$F$126,3,FALSE) -> 47
P29: MAT_5 | Q29: 5 - Plastic, synthetic fibres and materials | R29: ABS >90% | T29: =VLOOKUP(R29,'Understanding codification'!$D$45:$F$126,3,FALSE) -> 46 | W29: 5 - Plastic, synthetic fibres and materials | X29: Cat_5 | AN29: Dim_3 | AO29: Between 5 kg and < 7 kg | AP29: 054 | AX29: 42 | AY29: Polyethylene terephthalate (PET) >90% | AZ29: =VLOOKUP(AY29,'Understanding codification'!$D$49:$F$126,3,FALSE) -> 42
P30: MAT_5 | Q30: 5 - Plastic, synthetic fibres and materials | R30: Polystyrene >90% | T30: =VLOOKUP(R30,'Understanding codification'!$D$45:$F$126,3,FALSE) -> 47 | W30: 10 - Other mixes of materials or unclassified or unspecified materials | X30: Cat_10 | AN30: Dim_3 | AO30: Between 7 kg and < 10 kg | AP30: 055 | AX30: 49 | AY30: Synthetic rubber >90% | AZ30: =VLOOKUP(AY30,'Understanding codification'!$D$49:$F$126,3,FALSE) -> 49
P31: MAT_5 | Q31: 5 - Plastic, synthetic fibres and materials | R31: Plastics or other synthetic materials >50% | S31: Assembly of synthetic textiles and materials | T31: =VLOOKUP(R31,'Understanding codification'!$D$45:$F$126,3,FALSE) -> 05 | W31: A_102 | AN31: Dim_3 | AO31: Between 10 kg and < 15 kg | AP31: 056 | AX31: 65 | AY31: Synthetic fibres or materials >90% | AZ31: =VLOOKUP(AY31,'Understanding codification'!$D$49:$F$126,3,FALSE) -> 65
P32: MAT_5 | Q32: 5 - Plastic, synthetic fibres and materials | R32: Synthetic rubber >90% | S32: Rubber | T32: =VLOOKUP(R32,'Understanding codification'!$D$45:$F$126,3,FALSE) -> 49 | W32: 1 - Metal | X32: =VLOOKUP(W32,$AT$2:$AU$13,2,FALSE) -> Cat_1 | AN32: Dim_3 | AO32: Between 15 kg and < 20 kg | AP32: 057 | AX32: 05 | AY32: Plastics or other synthetic materials >50% | AZ32: =VLOOKUP(AY32,'Understanding codification'!$D$49:$F$126,3,FALSE) -> 05
P33: MAT_5 | Q33: 5 - Plastic, synthetic fibres and materials | R33: Elements containing latex | S33: Latex | T33: =VLOOKUP(R33,'Understanding codification'!$D$45:$F$126,3,FALSE) -> 10 | W33: 2 - Wood and wood derivatives | X33: Cat_2 | AX33: 40 | AY33: Assembly of synthetic rubber or latex >50% and other materials | AZ33: =VLOOKUP(AY33,'Understanding codification'!$D$49:$F$126,3,FALSE) -> 40
P34: MAT_5 | Q34: 5 - Plastic, synthetic fibres and materials | R34: Assembly of synthetic rubber or latex >50% and other materials | S34: Rubber, latex with other synthetic materials, wood, metal, etc. | T34: =VLOOKUP(R34,'Understanding codification'!$D$45:$F$126,3,FALSE) -> 40 | W34: 3 - Cardboard | X34: Cat_3 | AX34: 67 | AY34: Assembly of synthetic fibres and/or materials >50% and other materials | AZ34: =VLOOKUP(AY34,'Understanding codification'!$D$49:$F$126,3,FALSE) -> 67
P35: MAT_5 | Q35: 5 - Plastic, synthetic fibres and materials | R35: Synthetic fibres or materials >90% | S35: Polyamides, nylon, polyester (PES) and polyethylene terephthalate (PET), viscose, elastane, foam, etc. | T35: =VLOOKUP(R35,'Understanding codification'!$D$45:$F$126,3,FALSE) -> 65 | W35: 4 - Materials and fibres of plant or animal origin excl. wood, paper, and cardboard | X35: Cat_4 | AY35: Cat6
P36: MAT_5 | Q36: 5 - Plastic, synthetic fibres and materials | R36: Textile and polyester padding >90% | S36: Polyester | T36: =VLOOKUP(R36,'Understanding codification'!$D$45:$F$126,3,FALSE) -> 66 | W36: 5 - Plastic, synthetic fibres and materials | X36: Cat_5 | AX36: 72 | AY36: Assembly of glass >50% and wood or wood derivatives | AZ36: =VLOOKUP(AY36,'Understanding codification'!$D$49:$F$126,3,FALSE) -> 72
P37: MAT_5 | Q37: 5 - Plastic, synthetic fibres and materials | R37: Elements containing foam | T37: =VLOOKUP(R37,'Understanding codification'!$D$45:$F$126,3,FALSE) -> 09 | W37: 6 - Glass and glass partitions | X37: Cat_6 | AX37: 71 | AY37: Assembly of glass >50% and inert substances | AZ37: =VLOOKUP(AY37,'Understanding codification'!$D$49:$F$126,3,FALSE) -> 71
P38: MAT_5 | Q38: 5 - Plastic, synthetic fibres and materials | R38: Textile elements containing springs | T38: =VLOOKUP(R38,'Understanding codification'!$D$45:$F$126,3,FALSE) -> 11 | W38: 10 - Other mixes of materials or unclassified or unspecified materials | X38: Cat_10 | AX38: 70 | AY38: Assembly of glass >50% and metal | AZ38: =VLOOKUP(AY38,'Understanding codification'!$D$49:$F$126,3,FALSE) -> 70
P39: MAT_5 | Q39: 5 - Plastic, synthetic fibres and materials | R39: Assembly of synthetic fibres and/or materials >50% and other materials | S39: Assembly of synthetic textiles and/or materials and metal, wood, etc. | T39: =VLOOKUP(R39,'Understanding codification'!$D$45:$F$126,3,FALSE) -> 67 | W39: 12 - Inert materials | X39: Cat_12 | AX39: 73 | AY39: Assembly of glass >50% and plastic | AZ39: =VLOOKUP(AY39,'Understanding codification'!$D$49:$F$126,3,FALSE) -> 73
W40: A_153 | AX40: 68 | AY40: =R41 -> Glass >90% | AZ40: =VLOOKUP(AY40,'Understanding codification'!$D$49:$F$126,3,FALSE) -> 68
P41: MAT_6 | Q41: 6 - Glass and glass partitions | R41: Glass >90% | S41: Flat glass, glass bricks, etc. | T41: =VLOOKUP(R41,'Understanding codification'!$D$45:$F$126,3,FALSE) -> 68 | W41: 3 - Cardboard | X41: =VLOOKUP(W41,$AT$2:$AU$13,2,FALSE) -> Cat_3 | AY41: Cat7
P42: MAT_6 | Q42: 6 - Glass and glass partitions | R42: Assembly of glass >50% and metal | S42: Assembly of glass and metals | T42: =VLOOKUP(R42,'Understanding codification'!$D$45:$F$126,3,FALSE) -> 70 | W42: 4 - Materials and fibres of plant or animal origin excl. wood, paper, and cardboard | X42: Cat_4 | AX42: 75 | AY42: Plaster >90% | AZ42: =VLOOKUP(AY42,'Understanding codification'!$D$49:$F$126,3,FALSE) -> 75
P43: MAT_6 | Q43: 6 - Glass and glass partitions | R43: Assembly of glass >50% and inert substances | S43: Assembly of glass and inert substances | T43: =VLOOKUP(R43,'Understanding codification'!$D$45:$F$126,3,FALSE) -> 71 | W43: 5 - Plastic, synthetic fibres and materials | X43: Cat_5 | AX43: 76 | AY43: Plaster >50% | AZ43: =VLOOKUP(AY43,'Understanding codification'!$D$49:$F$126,3,FALSE) -> 76
P44: MAT_6 | Q44: 6 - Glass and glass partitions | R44: Assembly of glass >50% and wood or wood derivatives | S44: Assembly of glass and wood or biosourced materials | T44: =VLOOKUP(R44,'Understanding codification'!$D$45:$F$126,3,FALSE) -> 72 | W44: 10 - Other mixes of materials or unclassified or unspecified materials | X44: Cat_10 | AY44: Cat8
P45: MAT_6 | Q45: 6 - Glass and glass partitions | R45: Assembly of glass >50% and plastic | S45: Assembly of glass and plastic | T45: =VLOOKUP(R45,'Understanding codification'!$D$45:$F$126,3,FALSE) -> 73 | W45: A_151 | AX45: 77 | AY45: Rockwool >90% | AZ45: =VLOOKUP(AY45,'Understanding codification'!$D$49:$F$126,3,FALSE) -> 77
P46: MAT_6 | Q46: 6 - Glass and glass partitions | R46: Mirror >90% | S46: Mirror | T46: =VLOOKUP(R46,'Understanding codification'!$D$45:$F$126,3,FALSE) -> 69 | W46: 1 - Metal | X46: =VLOOKUP(W46,$AT$2:$AU$13,2,FALSE) -> Cat_1 | AX46: 78 | AY46: Glass wool >90% | AZ46: =VLOOKUP(AY46,'Understanding codification'!$D$49:$F$126,3,FALSE) -> 78
W47: 2 - Wood and wood derivatives | X47: Cat_2 | AX47: 79 | AY47: Assembly of glass wool or rockwool >50% and other materials | AZ47: =VLOOKUP(AY47,'Understanding codification'!$D$49:$F$126,3,FALSE) -> 79
P48: MAT_7 | Q48: 7 - Plaster | R48: Plaster >90% | S48: Plaster material, plasterboard, and gypsum fibreboard | T48: =VLOOKUP(R48,'Understanding codification'!$D$45:$F$126,3,FALSE) -> 75 | W48: 3 - Cardboard | X48: Cat_3 | AY48: Cat9
P49: MAT_7 | Q49: 7 - Plaster | R49: Plaster >50% | S49: Elements composed mainly of plaster and associated with other materials | T49: =VLOOKUP(R49,'Understanding codification'!$D$45:$F$126,3,FALSE) -> 76 | W49: 4 - Materials and fibres of plant or animal origin excl. wood, paper, and cardboard | X49: Cat_4 | AX49: 80 | AY49: Bitumen membranes >90% | AZ49: =VLOOKUP(AY49,'Understanding codification'!$D$49:$F$126,3,FALSE) -> 80
W50: 5 - Plastic, synthetic fibres and materials | X50: Cat_5 | AY50: Cat10
P51: MAT_8 | Q51: 8 - Glass wool and rockwool | R51: Rockwool >90% | S51: Insulating materials made from natural materials resulting from volcanic activity | T51: =VLOOKUP(R51,'Understanding codification'!$D$45:$F$126,3,FALSE) -> 77 | W51: 6 - Glass and glass partitions | X51: Cat_6 | AX51: 82 | AY51: Assembly of 3 or more materials, with no material representing >50% | AZ51: =VLOOKUP(AY51,'Understanding codification'!$D$49:$F$126,3,FALSE) -> 82
P52: MAT_8 | Q52: 8 - Glass wool and rockwool | R52: Glass wool >90% | S52: Materials composed of glass fibres, used as a filter or insulator | T52: =VLOOKUP(R52,'Understanding codification'!$D$45:$F$126,3,FALSE) -> 78 | W52: 10 - Other mixes of materials or unclassified or unspecified materials | X52: Cat_10 | AX52: 00 | AY52: Unknown or unspecified by the company | AZ52: =VLOOKUP(AY52,'Understanding codification'!$D$49:$F$126,3,FALSE) -> 00
P53: MAT_8 | Q53: 8 - Glass wool and rockwool | R53: Assembly of glass wool or rockwool >50% and other materials | S53: Elements mainly composed of mineral wool | T53: =VLOOKUP(R53,'Understanding codification'!$D$45:$F$126,3,FALSE) -> 79 | W53: A_154 | AY53: Cat12
W54: 1 - Metal | X54: =VLOOKUP(W54,$AT$2:$AU$13,2,FALSE) -> Cat_1 | AX54: 84 | AY54: Slate >90% | AZ54: =VLOOKUP(AY54,'Understanding codification'!$D$49:$F$126,3,FALSE) -> 84
P55: MAT_9 | Q55: 9 - Bitumen membranes | R55: Bitumen membranes >90% | S55: Synthetic sealing membrane | T55: =VLOOKUP(R55,'Understanding codification'!$D$45:$F$126,3,FALSE) -> 80 | W55: 2 - Wood and wood derivatives | X55: Cat_2 | AX55: 08 | AY55: Assembly of materials with inert substances >50% | AZ55: =VLOOKUP(AY55,'Understanding codification'!$D$49:$F$126,3,FALSE) -> 08
W56: 3 - Cardboard | X56: Cat_3 | AX56: 74 | AY56: Concrete >90% | AZ56: =VLOOKUP(AY56,'Understanding codification'!$D$49:$F$126,3,FALSE) -> 74
P57: MAT_10 | Q57: 10 - Other mixes of materials or unclassified or unspecified materials | R57: Assembly of wood, wood derivatives, and metal with a combination representing >90% | T57: =VLOOKUP(R57,'Understanding codification'!$D$45:$F$126,3,FALSE) -> 81 | W57: 4 - Materials and fibres of plant or animal origin excl. wood, paper, and cardboard | X57: Cat_4 | AX57: 97 | AY57: Ceramic >90% | AZ57: =VLOOKUP(AY57,'Understanding codification'!$D$49:$F$126,3,FALSE) -> 97
P58: MAT_10 | Q58: 10 - Other mixes of materials or unclassified or unspecified materials | R58: Assembly of 3 or more materials, with no material representing >50% | S58: Elements composed of parts made from various materials, often but not exclusively with a plastic or synthetic textile part | T58: =VLOOKUP(R58,'Understanding codification'!$D$45:$F$126,3,FALSE) -> 82 | W58: 5 - Plastic, synthetic fibres and materials | X58: Cat_5 | AX58: 90 | AY58: Cement >90% | AZ58: =VLOOKUP(AY58,'Understanding codification'!$D$49:$F$126,3,FALSE) -> 90
P59: MAT_10 | Q59: 10 - Other mixes of materials or unclassified or unspecified materials | R59: Unknown or unspecified by the company | S59: Unknown or unspecified by the company | T59: =VLOOKUP(R59,'Understanding codification'!$D$45:$F$126,3,FALSE) -> 00 | W59: 6 - Glass and glass partitions | X59: Cat_6 | AX59: 15 | AY59: Composites and other reconstituted mineral materials >50% | AZ59: =VLOOKUP(AY59,'Understanding codification'!$D$49:$F$126,3,FALSE) -> 15
W60: 10 - Other mixes of materials or unclassified or unspecified materials | X60: Cat_10 | AX60: 91 | AY60: Granite >90% | AZ60: =VLOOKUP(AY60,'Understanding codification'!$D$49:$F$126,3,FALSE) -> 91
P61: MAT_11 | Q61: 11 - Mortars, coatings, paints, varnishes, resins, and preparation products | R61: Liquid products, incl. hazardous products >90% | S61: Undercoats, floor preparations and sealing elements, exterior paints, treatments for floors and roofs, interior paints, glues and adhesives, PU and expansive resins (aerosols), PU sealants, seals and foams, additives, treatments for wood, treatment for materials (aerosols), treatments for non-wood materials, Varnishes and sealers and derivatives, varnishes and sealers and derivatives (aerosols), powder coatings, paste coatings | T61: =VLOOKUP(R61,'Understanding codification'!$D$45:$F$126,3,FALSE) -> 83 | W61: 12 - Inert materials | X61: Cat_12 | AX61: 94 | AY61: Sandstone >90% | AZ61: =VLOOKUP(AY61,'Understanding codification'!$D$49:$F$126,3,FALSE) -> 94
W62: A_150 | AX62: 87 | AY62: Lava stone >90% | AZ62: =VLOOKUP(AY62,'Understanding codification'!$D$49:$F$126,3,FALSE) -> 87
P63: MAT_12 | Q63: 12 - Inert materials | R63: Assembly of materials with inert substances >50% | T63: =VLOOKUP(R63,'Understanding codification'!$D$45:$F$126,3,FALSE) -> 08 | W63: 1 - Metal | X63: =VLOOKUP(W63,$AT$2:$AU$13,2,FALSE) -> Cat_1 | AX63: 98 | AY63: Artificial stone >90% | AZ63: =VLOOKUP(AY63,'Understanding codification'!$D$49:$F$126,3,FALSE) -> 98
P64: MAT_12 | Q64: 12 - Inert materials | R64: Composites and other reconstituted mineral materials >50% | T64: =VLOOKUP(R64,'Understanding codification'!$D$45:$F$126,3,FALSE) -> 15 | W64: 2 - Wood and wood derivatives | X64: Cat_2 | AX64: 86 | AY64: Limestone >90% | AZ64: =VLOOKUP(AY64,'Understanding codification'!$D$49:$F$126,3,FALSE) -> 86
P65: MAT_12 | Q65: 12 - Inert materials | R65: Slate >90% | S65: Slate | T65: =VLOOKUP(R65,'Understanding codification'!$D$45:$F$126,3,FALSE) -> 84 | W65: 3 - Cardboard | X65: Cat_3 | AX65: 89 | AY65: Raw earth or terracotta >90% | AZ65: =VLOOKUP(AY65,'Understanding codification'!$D$49:$F$126,3,FALSE) -> 89
P66: MAT_12 | Q66: 12 - Inert materials | R66: Non-stone aggregate >90% | S66: Small mineral materials (aggregate, gravel, sand, grit, chippings, rubble, etc.), excl. stone | T66: =VLOOKUP(R66,'Understanding codification'!$D$45:$F$126,3,FALSE) -> 85 | W66: 4 - Materials and fibres of plant or animal origin excl. wood, paper, and cardboard | X66: Cat_4
P67: MAT_12 | Q67: 12 - Inert materials | R67: Limestone >90% | S67: Large mineral materials, excl. aggregate, gravel, sand, and specific stones such as slate | T67: =VLOOKUP(R67,'Understanding codification'!$D$45:$F$126,3,FALSE) -> 86 | W67: 5 - Plastic, synthetic fibres and materials | X67: Cat_5
P68: MAT_12 | Q68: 12 - Inert materials | R68: Lava stone >90% | T68: =VLOOKUP(R68,'Understanding codification'!$D$45:$F$126,3,FALSE) -> 87 | W68: 6 - Glass and glass partitions | X68: Cat_6
P69: MAT_12 | Q69: 12 - Inert materials | R69: Bituminous mix >90% | S69: Bitumen-based liquid materials | T69: =VLOOKUP(R69,'Understanding codification'!$D$45:$F$126,3,FALSE) -> 88 | W69: 10 - Other mixes of materials or unclassified or unspecified materials | X69: Cat_10
P70: MAT_12 | Q70: 12 - Inert materials | R70: Raw earth or terracotta >90% | S70: Terracotta materials | T70: =VLOOKUP(R70,'Understanding codification'!$D$45:$F$126,3,FALSE) -> 89 | W70: A_152
P71: MAT_12 | Q71: 12 - Inert materials | R71: Concrete >90% | S71: Assembly of aggregates (gravel, grit, sand, etc.), a binder (cement, bitumen, clay), additives, and water | T71: =VLOOKUP(R71,'Understanding codification'!$D$45:$F$126,3,FALSE) -> 74 | W71: 1 - Metal | X71: =VLOOKUP(W71,$AT$2:$AU$13,2,FALSE) -> Cat_1
P72: MAT_12 | Q72: 12 - Inert materials | R72: Cellular concrete >90% | T72: =VLOOKUP(R72,'Understanding codification'!$D$45:$F$126,3,FALSE) -> 96 | W72: 2 - Wood and wood derivatives | X72: Cat_2
P73: MAT_12 | Q73: 12 - Inert materials | R73: Cement >90% | T73: =VLOOKUP(R73,'Understanding codification'!$D$45:$F$126,3,FALSE) -> 90 | W73: 3 - Cardboard | X73: Cat_3
P74: MAT_12 | Q74: 12 - Inert materials | R74: Granite >90% | T74: =VLOOKUP(R74,'Understanding codification'!$D$45:$F$126,3,FALSE) -> 91 | W74: 4 - Materials and fibres of plant or animal origin excl. wood, paper, and cardboard | X74: Cat_4
P75: MAT_12 | Q75: 12 - Inert materials | R75: Ceramic >90% | S75: Earthenware or sandstone-based materials | T75: =VLOOKUP(R75,'Understanding codification'!$D$45:$F$126,3,FALSE) -> 97 | W75: 5 - Plastic, synthetic fibres and materials | X75: Cat_5
P76: MAT_12 | Q76: 12 - Inert materials | R76: Mortar >90% | T76: =VLOOKUP(R76,'Understanding codification'!$D$45:$F$126,3,FALSE) -> 92 | W76: 6 - Glass and glass partitions | X76: Cat_6
P77: MAT_12 | Q77: 12 - Inert materials | R77: Additives >90% | T77: =VLOOKUP(R77,'Understanding codification'!$D$45:$F$126,3,FALSE) -> 93 | W77: 10 - Other mixes of materials or unclassified or unspecified materials | X77: Cat_10
P78: MAT_12 | Q78: 12 - Inert materials | R78: Sandstone >90% | T78: =VLOOKUP(R78,'Understanding codification'!$D$45:$F$126,3,FALSE) -> 94 | W78: 12 - Inert materials | X78: Cat_12
P79: MAT_12 | Q79: 12 - Inert materials | R79: Lime >90% | T79: =VLOOKUP(R79,'Understanding codification'!$D$45:$F$126,3,FALSE) -> 95 | W79: A_155
P80: MAT_12 | Q80: 12 - Inert materials | R80: Artificial stone >90% | S80: Materials obtained by moulding various aggregates, fillers, and binders (concrete, reconstituted stone) or through chemical synthesis | T80: =VLOOKUP(R80,'Understanding codification'!$D$45:$F$126,3,FALSE) -> 98 | W80: 1 - Metal | X80: =VLOOKUP(W80,$AT$2:$AU$13,2,FALSE) -> Cat_1
W81: 2 - Wood and wood derivatives | X81: Cat_2
W82: 3 - Cardboard | X82: Cat_3
W83: 4 - Materials and fibres of plant or animal origin excl. wood, paper, and cardboard | X83: Cat_4
W84: 5 - Plastic, synthetic fibres and materials | X84: Cat_5
W85: 6 - Glass and glass partitions | X85: Cat_6
W86: 10 - Other mixes of materials or unclassified or unspecified materials | X86: Cat_10
W87: 12 - Inert materials | X87: Cat_12
D174: Textile et rembourrage en polyester >90%
B175: Code Mesure : 00 000 00 XXX 0

Sheet Codes
A1: EPR | B1: Cat. EPR | C1: Ecomaison code | D1: Ecominéro code | E1: Department | F1: Product category | G1: Materials | H1: Size brackets | I1: Measurement | J1: Price | K1: Eco fee code
A2: DIY and gardening products EPR | B2: 3 | C2: 21100000000 | E2: =VLOOKUP(MID(C2,1,2),Feuil1!A:B,2,FALSE) -> DIY products | F2: =VLOOKUP(MID(C2,3,3),Feuil1!E:F,2,FALSE) -> Hand tools and their accessories | G2: =VLOOKUP(MID(C2,6,2),Feuil1!I:J,2,FALSE) -> Unknown or unspecified by the company | H2: =VLOOKUP(MID(C2,8,3),Feuil1!M:N,2,FALSE) -> Elements of all sizes and weights | I2: € / ton | J2: 215 | K2: =VLOOKUP(J2,'Codes éco-part'!C:E,3,FALSE) -> 498
A3: DIY and gardening products EPR | B3: 3 | C3: 21100010000 | E3: =VLOOKUP(MID(C3,1,2),Feuil1!A:B,2,FALSE) -> DIY products | F3: =VLOOKUP(MID(C3,3,3),Feuil1!E:F,2,FALSE) -> Hand tools and their accessories | G3: =VLOOKUP(MID(C3,6,2),Feuil1!I:J,2,FALSE) -> Assembly of wood and/or wood derivatives >50% and other materials or composite wood (excl. glass) | H3: =VLOOKUP(MID(C3,8,3),Feuil1!M:N,2,FALSE) -> Elements of all sizes and weights | I3: € / ton | J3: 45 | K3: =VLOOKUP(J3,'Codes éco-part'!C:E,3,FALSE) -> 169
A4: DIY and gardening products EPR | B4: 3 | C4: 21100020000 | E4: =VLOOKUP(MID(C4,1,2),Feuil1!A:B,2,FALSE) -> DIY products | F4: =VLOOKUP(MID(C4,3,3),Feuil1!E:F,2,FALSE) -> Hand tools and their accessories | G4: =VLOOKUP(MID(C4,6,2),Feuil1!I:J,2,FALSE) -> Assembly of metal >50% and other materials | H4: =VLOOKUP(MID(C4,8,3),Feuil1!M:N,2,FALSE) -> Elements of all sizes and weights | I4: € / ton | J4: 10 | K4: =VLOOKUP(J4,'Codes éco-part'!C:E,3,FALSE) -> 138
A5: DIY and gardening products EPR | B5: 3 | C5: 21100040000 | E5: =VLOOKUP(MID(C5,1,2),Feuil1!A:B,2,FALSE) -> DIY products | F5: =VLOOKUP(MID(C5,3,3),Feuil1!E:F,2,FALSE) -> Hand tools and their accessories | G5: =VLOOKUP(MID(C5,6,2),Feuil1!I:J,2,FALSE) -> Biosourced materials or non-synthetic textiles >50% | H5: =VLOOKUP(MID(C5,8,3),Feuil1!M:N,2,FALSE) -> Elements of all sizes and weights | I5: € / ton | J5: 215 | K5: =VLOOKUP(J5,'Codes éco-part'!C:E,3,FALSE) -> 498
A6: DIY and gardening products EPR | B6: 3 | C6: 21100050000 | E6: =VLOOKUP(MID(C6,1,2),Feuil1!A:B,2,FALSE) -> DIY products | F6: =VLOOKUP(MID(C6,3,3),Feuil1!E:F,2,FALSE) -> Hand tools and their accessories | G6: =VLOOKUP(MID(C6,6,2),Feuil1!I:J,2,FALSE) -> Plastics or other synthetic materials >50% | H6: =VLOOKUP(MID(C6,8,3),Feuil1!M:N,2,FALSE) -> Elements of all sizes and weights | I6: € / ton | J6: 215 | K6: =VLOOKUP(J6,'Codes éco-part'!C:E,3,FALSE) -> 498
A7: DIY and gardening products EPR | B7: 3 | C7: 21100060000 | E7: =VLOOKUP(MID(C7,1,2),Feuil1!A:B,2,FALSE) -> DIY products | F7: =VLOOKUP(MID(C7,3,3),Feuil1!E:F,2,FALSE) -> Hand tools and their accessories | G7: =VLOOKUP(MID(C7,6,2),Feuil1!I:J,2,FALSE) -> Materials of animal origin >50% | H7: =VLOOKUP(MID(C7,8,3),Feuil1!M:N,2,FALSE) -> Elements of all sizes and weights | I7: € / ton | J7: 215 | K7: =VLOOKUP(J7,'Codes éco-part'!C:E,3,FALSE) -> 498
A8: DIY and gardening products EPR | B8: 3 | C8: 21100190000 | E8: =VLOOKUP(MID(C8,1,2),Feuil1!A:B,2,FALSE) -> DIY products | F8: =VLOOKUP(MID(C8,3,3),Feuil1!E:F,2,FALSE) -> Hand tools and their accessories | G8: =VLOOKUP(MID(C8,6,2),Feuil1!I:J,2,FALSE) -> Cardboard >50% and other materials (excl. glass) | H8: =VLOOKUP(MID(C8,8,3),Feuil1!M:N,2,FALSE) -> Elements of all sizes and weights | I8: € / ton | J8: 215 | K8: =VLOOKUP(J8,'Codes éco-part'!C:E,3,FALSE) -> 498
A9: DIY and gardening products EPR | B9: 3 | C9: 21100200000 | E9: =VLOOKUP(MID(C9,1,2),Feuil1!A:B,2,FALSE) -> DIY products | F9: =VLOOKUP(MID(C9,3,3),Feuil1!E:F,2,FALSE) -> Hand tools and their accessories | G9: =VLOOKUP(MID(C9,6,2),Feuil1!I:J,2,FALSE) -> Solid wood and related products certified >75% | H9: =VLOOKUP(MID(C9,8,3),Feuil1!M:N,2,FALSE) -> Elements of all sizes and weights | I9: € / ton | J9: 45 | K9: =VLOOKUP(J9,'Codes éco-part'!C:E,3,FALSE) -> 169
A10: DIY and gardening products EPR | B10: 3 | C10: 21100210000 | E10: =VLOOKUP(MID(C10,1,2),Feuil1!A:B,2,FALSE) -> DIY products | F10: =VLOOKUP(MID(C10,3,3),Feuil1!E:F,2,FALSE) -> Hand tools and their accessories | G10: =VLOOKUP(MID(C10,6,2),Feuil1!I:J,2,FALSE) -> Solid wood and related products >75% | H10: =VLOOKUP(MID(C10,8,3),Feuil1!M:N,2,FALSE) -> Elements of all sizes and weights | I10: € / ton | J10: 45 | K10: =VLOOKUP(J10,'Codes éco-part'!C:E,3,FALSE) -> 169
A11: DIY and gardening products EPR | B11: 3 | C11: 21100250000 | E11: =VLOOKUP(MID(C11,1,2),Feuil1!A:B,2,FALSE) -> DIY products | F11: =VLOOKUP(MID(C11,3,3),Feuil1!E:F,2,FALSE) -> Hand tools and their accessories | G11: =VLOOKUP(MID(C11,6,2),Feuil1!I:J,2,FALSE) -> Chipboard or OSB >75% | H11: =VLOOKUP(MID(C11,8,3),Feuil1!M:N,2,FALSE) -> Elements of all sizes and weights | I11: € / ton | J11: 45 | K11: =VLOOKUP(J11,'Codes éco-part'!C:E,3,FALSE) -> 169
A12: DIY and gardening products EPR | B12: 3 | C12: 21100280000 | E12: =VLOOKUP(MID(C12,1,2),Feuil1!A:B,2,FALSE) -> DIY products | F12: =VLOOKUP(MID(C12,3,3),Feuil1!E:F,2,FALSE) -> Hand tools and their accessories | G12: =VLOOKUP(MID(C12,6,2),Feuil1!I:J,2,FALSE) -> Metal >90% | H12: =VLOOKUP(MID(C12,8,3),Feuil1!M:N,2,FALSE) -> Elements of all sizes and weights | I12: € / ton | J12: 10 | K12: =VLOOKUP(J12,'Codes éco-part'!C:E,3,FALSE) -> 138
A13: DIY and gardening products EPR | B13: 3 | C13: 21100400000 | E13: =VLOOKUP(MID(C13,1,2),Feuil1!A:B,2,FALSE) -> DIY products | F13: =VLOOKUP(MID(C13,3,3),Feuil1!E:F,2,FALSE) -> Hand tools and their accessories | G13: =VLOOKUP(MID(C13,6,2),Feuil1!I:J,2,FALSE) -> Assembly of synthetic rubber or latex >50% and other materials | H13: =VLOOKUP(MID(C13,8,3),Feuil1!M:N,2,FALSE) -> Elements of all sizes and weights | I13: € / ton | J13: 215 | K13: =VLOOKUP(J13,'Codes éco-part'!C:E,3,FALSE) -> 498
A14: DIY and gardening products EPR | B14: 3 | C14: 21100410000 | E14: =VLOOKUP(MID(C14,1,2),Feuil1!A:B,2,FALSE) -> DIY products | F14: =VLOOKUP(MID(C14,3,3),Feuil1!E:F,2,FALSE) -> Hand tools and their accessories | G14: =VLOOKUP(MID(C14,6,2),Feuil1!I:J,2,FALSE) -> Plastic (single-resin) >90% | H14: =VLOOKUP(MID(C14,8,3),Feuil1!M:N,2,FALSE) -> Elements of all sizes and weights | I14: € / ton | J14: 165 | K14: =VLOOKUP(J14,'Codes éco-part'!C:E,3,FALSE) -> 496
A15: DIY and gardening products EPR | B15: 3 | C15: 21100420000 | E15: =VLOOKUP(MID(C15,1,2),Feuil1!A:B,2,FALSE) -> DIY products | F15: =VLOOKUP(MID(C15,3,3),Feuil1!E:F,2,FALSE) -> Hand tools and their accessories | G15: =VLOOKUP(MID(C15,6,2),Feuil1!I:J,2,FALSE) -> Polyethylene terephthalate (PET) >90% | H15: =VLOOKUP(MID(C15,8,3),Feuil1!M:N,2,FALSE) -> Elements of all sizes and weights | I15: € / ton | J15: 165 | K15: =VLOOKUP(J15,'Codes éco-part'!C:E,3,FALSE) -> 496
A16: DIY and gardening products EPR | B16: 3 | C16: 21100450000 | E16: =VLOOKUP(MID(C16,1,2),Feuil1!A:B,2,FALSE) -> DIY products | F16: =VLOOKUP(MID(C16,3,3),Feuil1!E:F,2,FALSE) -> Hand tools and their accessories | G16: =VLOOKUP(MID(C16,6,2),Feuil1!I:J,2,FALSE) -> PE or PP or PP/PE mix >90% | H16: =VLOOKUP(MID(C16,8,3),Feuil1!M:N,2,FALSE) -> Elements of all sizes and weights | I16: € / ton | J16: 165 | K16: =VLOOKUP(J16,'Codes éco-part'!C:E,3,FALSE) -> 496
A17: DIY and gardening products EPR | B17: 3 | C17: 21100460000 | E17: =VLOOKUP(MID(C17,1,2),Feuil1!A:B,2,FALSE) -> DIY products | F17: =VLOOKUP(MID(C17,3,3),Feuil1!E:F,2,FALSE) -> Hand tools and their accessories | G17: =VLOOKUP(MID(C17,6,2),Feuil1!I:J,2,FALSE) -> ABS >90% | H17: =VLOOKUP(MID(C17,8,3),Feuil1!M:N,2,FALSE) -> Elements of all sizes and weights | I17: € / ton | J17: 165 | K17: =VLOOKUP(J17,'Codes éco-part'!C:E,3,FALSE) -> 496
A18: DIY and gardening products EPR | B18: 3 | C18: 21100470000 | E18: =VLOOKUP(MID(C18,1,2),Feuil1!A:B,2,FALSE) -> DIY products | F18: =VLOOKUP(MID(C18,3,3),Feuil1!E:F,2,FALSE) -> Hand tools and their accessories | G18: =VLOOKUP(MID(C18,6,2),Feuil1!I:J,2,FALSE) -> Polystyrene >90% | H18: =VLOOKUP(MID(C18,8,3),Feuil1!M:N,2,FALSE) -> Elements of all sizes and weights | I18: € / ton | J18: 165 | K18: =VLOOKUP(J18,'Codes éco-part'!C:E,3,FALSE) -> 496
A19: DIY and gardening products EPR | B19: 3 | C19: 21100480000 | E19: =VLOOKUP(MID(C19,1,2),Feuil1!A:B,2,FALSE) -> DIY products | F19: =VLOOKUP(MID(C19,3,3),Feuil1!E:F,2,FALSE) -> Hand tools and their accessories | G19: =VLOOKUP(MID(C19,6,2),Feuil1!I:J,2,FALSE) -> PVC >90% | H19: =VLOOKUP(MID(C19,8,3),Feuil1!M:N,2,FALSE) -> Elements of all sizes and weights | I19: € / ton | J19: 165 | K19: =VLOOKUP(J19,'Codes éco-part'!C:E,3,FALSE) -> 496
A20: DIY and gardening products EPR | B20: 3 | C20: 21100490000 | E20: =VLOOKUP(MID(C20,1,2),Feuil1!A:B,2,FALSE) -> DIY products | F20: =VLOOKUP(MID(C20,3,3),Feuil1!E:F,2,FALSE) -> Hand tools and their accessories | G20: =VLOOKUP(MID(C20,6,2),Feuil1!I:J,2,FALSE) -> Synthetic rubber >90% | H20: =VLOOKUP(MID(C20,8,3),Feuil1!M:N,2,FALSE) -> Elements of all sizes and weights | I20: € / ton | J20: 165 | K20: =VLOOKUP(J20,'Codes éco-part'!C:E,3,FALSE) -> 496
A21: DIY and gardening products EPR | B21: 3 | C21: 21100520000 | E21: =VLOOKUP(MID(C21,1,2),Feuil1!A:B,2,FALSE) -> DIY products | F21: =VLOOKUP(MID(C21,3,3),Feuil1!E:F,2,FALSE) -> Hand tools and their accessories | G21: =VLOOKUP(MID(C21,6,2),Feuil1!I:J,2,FALSE) -> Solid wood and related products certified >90% | H21: =VLOOKUP(MID(C21,8,3),Feuil1!M:N,2,FALSE) -> Elements of all sizes and weights | I21: € / ton | J21: 45 | K21: =VLOOKUP(J21,'Codes éco-part'!C:E,3,FALSE) -> 169
A22: DIY and gardening products EPR | B22: 3 | C22: 21100530000 | E22: =VLOOKUP(MID(C22,1,2),Feuil1!A:B,2,FALSE) -> DIY products | F22: =VLOOKUP(MID(C22,3,3),Feuil1!E:F,2,FALSE) -> Hand tools and their accessories | G22: =VLOOKUP(MID(C22,6,2),Feuil1!I:J,2,FALSE) -> Solid wood and related products >90% | H22: =VLOOKUP(MID(C22,8,3),Feuil1!M:N,2,FALSE) -> Elements of all sizes and weights | I22: € / ton | J22: 45 | K22: =VLOOKUP(J22,'Codes éco-part'!C:E,3,FALSE) -> 169
A23: DIY and gardening products EPR | B23: 3 | C23: 21100550000 | E23: =VLOOKUP(MID(C23,1,2),Feuil1!A:B,2,FALSE) -> DIY products | F23: =VLOOKUP(MID(C23,3,3),Feuil1!E:F,2,FALSE) -> Hand tools and their accessories | G23: =VLOOKUP(MID(C23,6,2),Feuil1!I:J,2,FALSE) -> Biosourced materials or non-synthetic textiles >90% | H23: =VLOOKUP(MID(C23,8,3),Feuil1!M:N,2,FALSE) -> Elements of all sizes and weights | I23: € / ton | J23: 50 | K23: =VLOOKUP(J23,'Codes éco-part'!C:E,3,FALSE) -> 173
A24: DIY and gardening products EPR | B24: 3 | C24: 21100590000 | E24: =VLOOKUP(MID(C24,1,2),Feuil1!A:B,2,FALSE) -> DIY products | F24: =VLOOKUP(MID(C24,3,3),Feuil1!E:F,2,FALSE) -> Hand tools and their accessories | G24: =VLOOKUP(MID(C24,6,2),Feuil1!I:J,2,FALSE) -> Chipboard or OSB certified >90% | H24: =VLOOKUP(MID(C24,8,3),Feuil1!M:N,2,FALSE) -> Elements of all sizes and weights | I24: € / ton | J24: 45 | K24: =VLOOKUP(J24,'Codes éco-part'!C:E,3,FALSE) -> 169
A25: DIY and gardening products EPR | B25: 3 | C25: 21100600000 | E25: =VLOOKUP(MID(C25,1,2),Feuil1!A:B,2,FALSE) -> DIY products | F25: =VLOOKUP(MID(C25,3,3),Feuil1!E:F,2,FALSE) -> Hand tools and their accessories | G25: =VLOOKUP(MID(C25,6,2),Feuil1!I:J,2,FALSE) -> Chipboard or OSB certified >75% | H25: =VLOOKUP(MID(C25,8,3),Feuil1!M:N,2,FALSE) -> Elements of all sizes and weights | I25: € / ton | J25: 45 | K25: =VLOOKUP(J25,'Codes éco-part'!C:E,3,FALSE) -> 169
A26: DIY and gardening products EPR | B26: 3 | C26: 21100610000 | E26: =VLOOKUP(MID(C26,1,2),Feuil1!A:B,2,FALSE) -> DIY products | F26: =VLOOKUP(MID(C26,3,3),Feuil1!E:F,2,FALSE) -> Hand tools and their accessories | G26: =VLOOKUP(MID(C26,6,2),Feuil1!I:J,2,FALSE) -> Chipboard or OSB >90% | H26: =VLOOKUP(MID(C26,8,3),Feuil1!M:N,2,FALSE) -> Elements of all sizes and weights | I26: € / ton | J26: 45 | K26: =VLOOKUP(J26,'Codes éco-part'!C:E,3,FALSE) -> 169
A27: DIY and gardening products EPR | B27: 3 | C27: 21100620000 | E27: =VLOOKUP(MID(C27,1,2),Feuil1!A:B,2,FALSE) -> DIY products | F27: =VLOOKUP(MID(C27,3,3),Feuil1!E:F,2,FALSE) -> Hand tools and their accessories | G27: =VLOOKUP(MID(C27,6,2),Feuil1!I:J,2,FALSE) -> Wood derivatives >90% | H27: =VLOOKUP(MID(C27,8,3),Feuil1!M:N,2,FALSE) -> Elements of all sizes and weights | I27: € / ton | J27: 45 | K27: =VLOOKUP(J27,'Codes éco-part'!C:E,3,FALSE) -> 169
A28: DIY and gardening products EPR | B28: 3 | C28: 21100630000 | E28: =VLOOKUP(MID(C28,1,2),Feuil1!A:B,2,FALSE) -> DIY products | F28: =VLOOKUP(MID(C28,3,3),Feuil1!E:F,2,FALSE) -> Hand tools and their accessories | G28: =VLOOKUP(MID(C28,6,2),Feuil1!I:J,2,FALSE) -> Natural rubber >90% | H28: =VLOOKUP(MID(C28,8,3),Feuil1!M:N,2,FALSE) -> Elements of all sizes and weights | I28: € / ton | J28: 50 | K28: =VLOOKUP(J28,'Codes éco-part'!C:E,3,FALSE) -> 173
A29: DIY and gardening products EPR | B29: 3 | C29: 21100640000 | E29: =VLOOKUP(MID(C29,1,2),Feuil1!A:B,2,FALSE) -> DIY products | F29: =VLOOKUP(MID(C29,3,3),Feuil1!E:F,2,FALSE) -> Hand tools and their accessories | G29: =VLOOKUP(MID(C29,6,2),Feuil1!I:J,2,FALSE) -> Natural rubber >50% | H29: =VLOOKUP(MID(C29,8,3),Feuil1!M:N,2,FALSE) -> Elements of all sizes and weights | I29: € / ton | J29: 215 | K29: =VLOOKUP(J29,'Codes éco-part'!C:E,3,FALSE) -> 498
A30: DIY and gardening products EPR | B30: 3 | C30: 21100650000 | E30: =VLOOKUP(MID(C30,1,2),Feuil1!A:B,2,FALSE) -> DIY products | F30: =VLOOKUP(MID(C30,3,3),Feuil1!E:F,2,FALSE) -> Hand tools and their accessories | G30: =VLOOKUP(MID(C30,6,2),Feuil1!I:J,2,FALSE) -> Synthetic fibres or materials >90% | H30: =VLOOKUP(MID(C30,8,3),Feuil1!M:N,2,FALSE) -> Elements of all sizes and weights | I30: € / ton | J30: 165 | K30: =VLOOKUP(J30,'Codes éco-part'!C:E,3,FALSE) -> 496
A31: DIY and gardening products EPR | B31: 3 | C31: 21100670000 | E31: =VLOOKUP(MID(C31,1,2),Feuil1!A:B,2,FALSE) -> DIY products | F31: =VLOOKUP(MID(C31,3,3),Feuil1!E:F,2,FALSE) -> Hand tools and their accessories | G31: =VLOOKUP(MID(C31,6,2),Feuil1!I:J,2,FALSE) -> Assembly of synthetic fibres and/or materials >50% and other materials | H31: =VLOOKUP(MID(C31,8,3),Feuil1!M:N,2,FALSE) -> Elements of all sizes and weights | I31: € / ton | J31: 215 | K31: =VLOOKUP(J31,'Codes éco-part'!C:E,3,FALSE) -> 498
A32: DIY and gardening products EPR | B32: 3 | C32: 21100680000 | E32: =VLOOKUP(MID(C32,1,2),Feuil1!A:B,2,FALSE) -> DIY products | F32: =VLOOKUP(MID(C32,3,3),Feuil1!E:F,2,FALSE) -> Hand tools and their accessories | G32: =VLOOKUP(MID(C32,6,2),Feuil1!I:J,2,FALSE) -> Glass >90% | H32: =VLOOKUP(MID(C32,8,3),Feuil1!M:N,2,FALSE) -> Elements of all sizes and weights | I32: € / ton | J32: 5 | K32: =VLOOKUP(J32,'Codes éco-part'!C:E,3,FALSE) -> 042
A33: DIY and gardening products EPR | B33: 3 | C33: 21100700000 | E33: =VLOOKUP(MID(C33,1,2),Feuil1!A:B,2,FALSE) -> DIY products | F33: =VLOOKUP(MID(C33,3,3),Feuil1!E:F,2,FALSE) -> Hand tools and their accessories | G33: =VLOOKUP(MID(C33,6,2),Feuil1!I:J,2,FALSE) -> Assembly of glass >50% and metal | H33: =VLOOKUP(MID(C33,8,3),Feuil1!M:N,2,FALSE) -> Elements of all sizes and weights | I33: € / ton | J33: 215 | K33: =VLOOKUP(J33,'Codes éco-part'!C:E,3,FALSE) -> 498
A34: DIY and gardening products EPR | B34: 3 | C34: 21100710000 | E34: =VLOOKUP(MID(C34,1,2),Feuil1!A:B,2,FALSE) -> DIY products | F34: =VLOOKUP(MID(C34,3,3),Feuil1!E:F,2,FALSE) -> Hand tools and their accessories | G34: =VLOOKUP(MID(C34,6,2),Feuil1!I:J,2,FALSE) -> Assembly of glass >50% and inert substances | H34: =VLOOKUP(MID(C34,8,3),Feuil1!M:N,2,FALSE) -> Elements of all sizes and weights | I34: € / ton | J34: 215 | K34: =VLOOKUP(J34,'Codes éco-part'!C:E,3,FALSE) -> 498
A35: DIY and gardening products EPR | B35: 3 | C35: 21100720000 | E35: =VLOOKUP(MID(C35,1,2),Feuil1!A:B,2,FALSE) -> DIY products | F35: =VLOOKUP(MID(C35,3,3),Feuil1!E:F,2,FALSE) -> Hand tools and their accessories | G35: =VLOOKUP(MID(C35,6,2),Feuil1!I:J,2,FALSE) -> Assembly of glass >50% and wood or wood derivatives | H35: =VLOOKUP(MID(C35,8,3),Feuil1!M:N,2,FALSE) -> Elements of all sizes and weights | I35: € / ton | J35: 215 | K35: =VLOOKUP(J35,'Codes éco-part'!C:E,3,FALSE) -> 498
A36: DIY and gardening products EPR | B36: 3 | C36: 21100730000 | E36: =VLOOKUP(MID(C36,1,2),Feuil1!A:B,2,FALSE) -> DIY products | F36: =VLOOKUP(MID(C36,3,3),Feuil1!E:F,2,FALSE) -> Hand tools and their accessories | G36: =VLOOKUP(MID(C36,6,2),Feuil1!I:J,2,FALSE) -> Assembly of glass >50% and plastic | H36: =VLOOKUP(MID(C36,8,3),Feuil1!M:N,2,FALSE) -> Elements of all sizes and weights | I36: € / ton | J36: 215 | K36: =VLOOKUP(J36,'Codes éco-part'!C:E,3,FALSE) -> 498
A37: DIY and gardening products EPR | B37: 3 | C37: 21100810000 | E37: =VLOOKUP(MID(C37,1,2),Feuil1!A:B,2,FALSE) -> DIY products | F37: =VLOOKUP(MID(C37,3,3),Feuil1!E:F,2,FALSE) -> Hand tools and their accessories | G37: =VLOOKUP(MID(C37,6,2),Feuil1!I:J,2,FALSE) -> Assembly of wood, wood derivatives, and metal with a combination representing >90% | H37: =VLOOKUP(MID(C37,8,3),Feuil1!M:N,2,FALSE) -> Elements of all sizes and weights | I37: € / ton | J37: 45 | K37: =VLOOKUP(J37,'Codes éco-part'!C:E,3,FALSE) -> 169
A38: DIY and gardening products EPR | B38: 3 | C38: 21100820000 | E38: =VLOOKUP(MID(C38,1,2),Feuil1!A:B,2,FALSE) -> DIY products | F38: =VLOOKUP(MID(C38,3,3),Feuil1!E:F,2,FALSE) -> Hand tools and their accessories | G38: =VLOOKUP(MID(C38,6,2),Feuil1!I:J,2,FALSE) -> Assembly of 3 or more materials, with no material representing >50% | H38: =VLOOKUP(MID(C38,8,3),Feuil1!M:N,2,FALSE) -> Elements of all sizes and weights | I38: € / ton | J38: 215 | K38: =VLOOKUP(J38,'Codes éco-part'!C:E,3,FALSE) -> 498
A39: DIY and gardening products EPR | B39: 3 | C39: 21101000000 | E39: =VLOOKUP(MID(C39,1,2),Feuil1!A:B,2,FALSE) -> DIY products | F39: =VLOOKUP(MID(C39,3,3),Feuil1!E:F,2,FALSE) -> Large non-electric, non-combustion items and machines, and their accessories | G39: =VLOOKUP(MID(C39,6,2),Feuil1!I:J,2,FALSE) -> Unknown or unspecified by the company | H39: =VLOOKUP(MID(C39,8,3),Feuil1!M:N,2,FALSE) -> Elements of all sizes and weights | I39: € / ton | J39: 75 | K39: =VLOOKUP(J39,'Codes éco-part'!C:E,3,FALSE) -> 192
A40: DIY and gardening products EPR | B40: 3 | C40: 21101010000 | E40: =VLOOKUP(MID(C40,1,2),Feuil1!A:B,2,FALSE) -> DIY products | F40: =VLOOKUP(MID(C40,3,3),Feuil1!E:F,2,FALSE) -> Large non-electric, non-combustion items and machines, and their accessories | G40: =VLOOKUP(MID(C40,6,2),Feuil1!I:J,2,FALSE) -> Assembly of wood and/or wood derivatives >50% and other materials or composite wood (excl. glass) | H40: =VLOOKUP(MID(C40,8,3),Feuil1!M:N,2,FALSE) -> Elements of all sizes and weights | I40: € / ton | J40: 10 | K40: =VLOOKUP(J40,'Codes éco-part'!C:E,3,FALSE) -> 138
A41: DIY and gardening products EPR | B41: 3 | C41: 21101020000 | E41: =VLOOKUP(MID(C41,1,2),Feuil1!A:B,2,FALSE) -> DIY products | F41: =VLOOKUP(MID(C41,3,3),Feuil1!E:F,2,FALSE) -> Large non-electric, non-combustion items and machines, and their accessories | G41: =VLOOKUP(MID(C41,6,2),Feuil1!I:J,2,FALSE) -> Assembly of metal >50% and other materials | H41: =VLOOKUP(MID(C41,8,3),Feuil1!M:N,2,FALSE) -> Elements of all sizes and weights | I41: € / ton | J41: 3 | K41: =VLOOKUP(J41,'Codes éco-part'!C:E,3,FALSE) -> 474
A42: DIY and gardening products EPR | B42: 3 | C42: 21101040000 | E42: =VLOOKUP(MID(C42,1,2),Feuil1!A:B,2,FALSE) -> DIY products | F42: =VLOOKUP(MID(C42,3,3),Feuil1!E:F,2,FALSE) -> Large non-electric, non-combustion items and machines, and their accessories | G42: =VLOOKUP(MID(C42,6,2),Feuil1!I:J,2,FALSE) -> Biosourced materials or non-synthetic textiles >50% | H42: =VLOOKUP(MID(C42,8,3),Feuil1!M:N,2,FALSE) -> Elements of all sizes and weights | I42: € / ton | J42: 30 | K42: =VLOOKUP(J42,'Codes éco-part'!C:E,3,FALSE) -> 153
A43: DIY and gardening products EPR | B43: 3 | C43: 21101050000 | E43: =VLOOKUP(MID(C43,1,2),Feuil1!A:B,2,FALSE) -> DIY products | F43: =VLOOKUP(MID(C43,3,3),Feuil1!E:F,2,FALSE) -> Large non-electric, non-combustion items and machines, and their accessories | G43: =VLOOKUP(MID(C43,6,2),Feuil1!I:J,2,FALSE) -> Plastics or other synthetic materials >50% | H43: =VLOOKUP(MID(C43,8,3),Feuil1!M:N,2,FALSE) -> Elements of all sizes and weights | I43: € / ton | J43: 75 | K43: =VLOOKUP(J43,'Codes éco-part'!C:E,3,FALSE) -> 192
A44: DIY and gardening products EPR | B44: 3 | C44: 21101060000 | E44: =VLOOKUP(MID(C44,1,2),Feuil1!A:B,2,FALSE) -> DIY products | F44: =VLOOKUP(MID(C44,3,3),Feuil1!E:F,2,FALSE) -> Large non-electric, non-combustion items and machines, and their accessories | G44: =VLOOKUP(MID(C44,6,2),Feuil1!I:J,2,FALSE) -> Materials of animal origin >50% | H44: =VLOOKUP(MID(C44,8,3),Feuil1!M:N,2,FALSE) -> Elements of all sizes and weights | I44: € / ton | J44: 30 | K44: =VLOOKUP(J44,'Codes éco-part'!C:E,3,FALSE) -> 153
A45: DIY and gardening products EPR | B45: 3 | C45: 21101080000 | E45: =VLOOKUP(MID(C45,1,2),Feuil1!A:B,2,FALSE) -> DIY products | F45: =VLOOKUP(MID(C45,3,3),Feuil1!E:F,2,FALSE) -> Large non-electric, non-combustion items and machines, and their accessories | G45: =VLOOKUP(MID(C45,6,2),Feuil1!I:J,2,FALSE) -> Assembly of materials with inert substances >50% | H45: =VLOOKUP(MID(C45,8,3),Feuil1!M:N,2,FALSE) -> Elements of all sizes and weights | I45: € / ton | J45: 75 | K45: =VLOOKUP(J45,'Codes éco-part'!C:E,3,FALSE) -> 192
A46: DIY and gardening products EPR | B46: 3 | C46: 21101150000 | E46: =VLOOKUP(MID(C46,1,2),Feuil1!A:B,2,FALSE) -> DIY products | F46: =VLOOKUP(MID(C46,3,3),Feuil1!E:F,2,FALSE) -> Large non-electric, non-combustion items and machines, and their accessories | G46: =VLOOKUP(MID(C46,6,2),Feuil1!I:J,2,FALSE) -> Composites and other reconstituted mineral materials >50% | H46: =VLOOKUP(MID(C46,8,3),Feuil1!M:N,2,FALSE) -> Elements of all sizes and weights | I46: € / ton | J46: 75 | K46: =VLOOKUP(J46,'Codes éco-part'!C:E,3,FALSE) -> 192
A47: DIY and gardening products EPR | B47: 3 | C47: 21101190000 | E47: =VLOOKUP(MID(C47,1,2),Feuil1!A:B,2,FALSE) -> DIY products | F47: =VLOOKUP(MID(C47,3,3),Feuil1!E:F,2,FALSE) -> Large non-electric, non-combustion items and machines, and their accessories | G47: =VLOOKUP(MID(C47,6,2),Feuil1!I:J,2,FALSE) -> Cardboard >50% and other materials (excl. glass) | H47: =VLOOKUP(MID(C47,8,3),Feuil1!M:N,2,FALSE) -> Elements of all sizes and weights | I47: € / ton | J47: 30 | K47: =VLOOKUP(J47,'Codes éco-part'!C:E,3,FALSE) -> 153
A48: DIY and gardening products EPR | B48: 3 | C48: 21101200000 | E48: =VLOOKUP(MID(C48,1,2),Feuil1!A:B,2,FALSE) -> DIY products | F48: =VLOOKUP(MID(C48,3,3),Feuil1!E:F,2,FALSE) -> Large non-electric, non-combustion items and machines, and their accessories | G48: =VLOOKUP(MID(C48,6,2),Feuil1!I:J,2,FALSE) -> Solid wood and related products certified >75% | H48: =VLOOKUP(MID(C48,8,3),Feuil1!M:N,2,FALSE) -> Elements of all sizes and weights | I48: € / ton | J48: 10 | K48: =VLOOKUP(J48,'Codes éco-part'!C:E,3,FALSE) -> 138
A49: DIY and gardening products EPR | B49: 3 | C49: 21101210000 | E49: =VLOOKUP(MID(C49,1,2),Feuil1!A:B,2,FALSE) -> DIY products | F49: =VLOOKUP(MID(C49,3,3),Feuil1!E:F,2,FALSE) -> Large non-electric, non-combustion items and machines, and their accessories | G49: =VLOOKUP(MID(C49,6,2),Feuil1!I:J,2,FALSE) -> Solid wood and related products >75% | H49: =VLOOKUP(MID(C49,8,3),Feuil1!M:N,2,FALSE) -> Elements of all sizes and weights | I49: € / ton | J49: 10 | K49: =VLOOKUP(J49,'Codes éco-part'!C:E,3,FALSE) -> 138
A50: DIY and gardening products EPR | B50: 3 | C50: 21101250000 | E50: =VLOOKUP(MID(C50,1,2),Feuil1!A:B,2,FALSE) -> DIY products | F50: =VLOOKUP(MID(C50,3,3),Feuil1!E:F,2,FALSE) -> Large non-electric, non-combustion items and machines, and their accessories | G50: =VLOOKUP(MID(C50,6,2),Feuil1!I:J,2,FALSE) -> Chipboard or OSB >75% | H50: =VLOOKUP(MID(C50,8,3),Feuil1!M:N,2,FALSE) -> Elements of all sizes and weights | I50: € / ton | J50: 10 | K50: =VLOOKUP(J50,'Codes éco-part'!C:E,3,FALSE) -> 138
A51: DIY and gardening products EPR | B51: 3 | C51: 21101280000 | E51: =VLOOKUP(MID(C51,1,2),Feuil1!A:B,2,FALSE) -> DIY products | F51: =VLOOKUP(MID(C51,3,3),Feuil1!E:F,2,FALSE) -> Large non-electric, non-combustion items and machines, and their accessories | G51: =VLOOKUP(MID(C51,6,2),Feuil1!I:J,2,FALSE) -> Metal >90% | H51: =VLOOKUP(MID(C51,8,3),Feuil1!M:N,2,FALSE) -> Elements of all sizes and weights | I51: € / ton | J51: 3 | K51: =VLOOKUP(J51,'Codes éco-part'!C:E,3,FALSE) -> 474
A52: DIY and gardening products EPR | B52: 3 | C52: 21101400000 | E52: =VLOOKUP(MID(C52,1,2),Feuil1!A:B,2,FALSE) -> DIY products | F52: =VLOOKUP(MID(C52,3,3),Feuil1!E:F,2,FALSE) -> Large non-electric, non-combustion items and machines, and their accessories | G52: =VLOOKUP(MID(C52,6,2),Feuil1!I:J,2,FALSE) -> Assembly of synthetic rubber or latex >50% and other materials | H52: =VLOOKUP(MID(C52,8,3),Feuil1!M:N,2,FALSE) -> Elements of all sizes and weights | I52: € / ton | J52: 75 | K52: =VLOOKUP(J52,'Codes éco-part'!C:E,3,FALSE) -> 192
A53: DIY and gardening products EPR | B53: 3 | C53: 21101410000 | E53: =VLOOKUP(MID(C53,1,2),Feuil1!A:B,2,FALSE) -> DIY products | F53: =VLOOKUP(MID(C53,3,3),Feuil1!E:F,2,FALSE) -> Large non-electric, non-combustion items and machines, and their accessories | G53: =VLOOKUP(MID(C53,6,2),Feuil1!I:J,2,FALSE) -> Plastic (single-resin) >90% | H53: =VLOOKUP(MID(C53,8,3),Feuil1!M:N,2,FALSE) -> Elements of all sizes and weights | I53: € / ton | J53: 50 | K53: =VLOOKUP(J53,'Codes éco-part'!C:E,3,FALSE) -> 173
A54: DIY and gardening products EPR | B54: 3 | C54: 21101420000 | E54: =VLOOKUP(MID(C54,1,2),Feuil1!A:B,2,FALSE) -> DIY products | F54: =VLOOKUP(MID(C54,3,3),Feuil1!E:F,2,FALSE) -> Large non-electric, non-combustion items and machines, and their accessories | G54: =VLOOKUP(MID(C54,6,2),Feuil1!I:J,2,FALSE) -> Polyethylene terephthalate (PET) >90% | H54: =VLOOKUP(MID(C54,8,3),Feuil1!M:N,2,FALSE) -> Elements of all sizes and weights | I54: € / ton | J54: 50 | K54: =VLOOKUP(J54,'Codes éco-part'!C:E,3,FALSE) -> 173
A55: DIY and gardening products EPR | B55: 3 | C55: 21101450000 | E55: =VLOOKUP(MID(C55,1,2),Feuil1!A:B,2,FALSE) -> DIY products | F55: =VLOOKUP(MID(C55,3,3),Feuil1!E:F,2,FALSE) -> Large non-electric, non-combustion items and machines, and their accessories | G55: =VLOOKUP(MID(C55,6,2),Feuil1!I:J,2,FALSE) -> PE or PP or PP/PE mix >90% | H55: =VLOOKUP(MID(C55,8,3),Feuil1!M:N,2,FALSE) -> Elements of all sizes and weights | I55: € / ton | J55: 50 | K55: =VLOOKUP(J55,'Codes éco-part'!C:E,3,FALSE) -> 173
A56: DIY and gardening products EPR | B56: 3 | C56: 21101460000 | E56: =VLOOKUP(MID(C56,1,2),Feuil1!A:B,2,FALSE) -> DIY products | F56: =VLOOKUP(MID(C56,3,3),Feuil1!E:F,2,FALSE) -> Large non-electric, non-combustion items and machines, and their accessories | G56: =VLOOKUP(MID(C56,6,2),Feuil1!I:J,2,FALSE) -> ABS >90% | H56: =VLOOKUP(MID(C56,8,3),Feuil1!M:N,2,FALSE) -> Elements of all sizes and weights | I56: € / ton | J56: 50 | K56: =VLOOKUP(J56,'Codes éco-part'!C:E,3,FALSE) -> 173
A57: DIY and gardening products EPR | B57: 3 | C57: 21101470000 | E57: =VLOOKUP(MID(C57,1,2),Feuil1!A:B,2,FALSE) -> DIY products | F57: =VLOOKUP(MID(C57,3,3),Feuil1!E:F,2,FALSE) -> Large non-electric, non-combustion items and machines, and their accessories | G57: =VLOOKUP(MID(C57,6,2),Feuil1!I:J,2,FALSE) -> Polystyrene >90% | H57: =VLOOKUP(MID(C57,8,3),Feuil1!M:N,2,FALSE) -> Elements of all sizes and weights | I57: € / ton | J57: 50 | K57: =VLOOKUP(J57,'Codes éco-part'!C:E,3,FALSE) -> 173
A58: DIY and gardening products EPR | B58: 3 | C58: 21101480000 | E58: =VLOOKUP(MID(C58,1,2),Feuil1!A:B,2,FALSE) -> DIY products | F58: =VLOOKUP(MID(C58,3,3),Feuil1!E:F,2,FALSE) -> Large non-electric, non-combustion items and machines, and their accessories | G58: =VLOOKUP(MID(C58,6,2),Feuil1!I:J,2,FALSE) -> PVC >90% | H58: =VLOOKUP(MID(C58,8,3),Feuil1!M:N,2,FALSE) -> Elements of all sizes and weights | I58: € / ton | J58: 50 | K58: =VLOOKUP(J58,'Codes éco-part'!C:E,3,FALSE) -> 173
A59: DIY and gardening products EPR | B59: 3 | C59: 21101490000 | E59: =VLOOKUP(MID(C59,1,2),Feuil1!A:B,2,FALSE) -> DIY products | F59: =VLOOKUP(MID(C59,3,3),Feuil1!E:F,2,FALSE) -> Large non-electric, non-combustion items and machines, and their accessories | G59: =VLOOKUP(MID(C59,6,2),Feuil1!I:J,2,FALSE) -> Synthetic rubber >90% | H59: =VLOOKUP(MID(C59,8,3),Feuil1!M:N,2,FALSE) -> Elements of all sizes and weights | I59: € / ton | J59: 50 | K59: =VLOOKUP(J59,'Codes éco-part'!C:E,3,FALSE) -> 173
A60: DIY and gardening products EPR | B60: 3 | C60: 21101520000 | E60: =VLOOKUP(MID(C60,1,2),Feuil1!A:B,2,FALSE) -> DIY products | F60: =VLOOKUP(MID(C60,3,3),Feuil1!E:F,2,FALSE) -> Large non-electric, non-combustion items and machines, and their accessories | G60: =VLOOKUP(MID(C60,6,2),Feuil1!I:J,2,FALSE) -> Solid wood and related products certified >90% | H60: =VLOOKUP(MID(C60,8,3),Feuil1!M:N,2,FALSE) -> Elements of all sizes and weights | I60: € / ton | J60: 10 | K60: =VLOOKUP(J60,'Codes éco-part'!C:E,3,FALSE) -> 138
A61: DIY and gardening products EPR | B61: 3 | C61: 21101530000 | E61: =VLOOKUP(MID(C61,1,2),Feuil1!A:B,2,FALSE) -> DIY products | F61: =VLOOKUP(MID(C61,3,3),Feuil1!E:F,2,FALSE) -> Large non-electric, non-combustion items and machines, and their accessories | G61: =VLOOKUP(MID(C61,6,2),Feuil1!I:J,2,FALSE) -> Solid wood and related products >90% | H61: =VLOOKUP(MID(C61,8,3),Feuil1!M:N,2,FALSE) -> Elements of all sizes and weights | I61: € / ton | J61: 10 | K61: =VLOOKUP(J61,'Codes éco-part'!C:E,3,FALSE) -> 138
A62: DIY and gardening products EPR | B62: 3 | C62: 21101550000 | E62: =VLOOKUP(MID(C62,1,2),Feuil1!A:B,2,FALSE) -> DIY products | F62: =VLOOKUP(MID(C62,3,3),Feuil1!E:F,2,FALSE) -> Large non-electric, non-combustion items and machines, and their accessories | G62: =VLOOKUP(MID(C62,6,2),Feuil1!I:J,2,FALSE) -> Biosourced materials or non-synthetic textiles >90% | H62: =VLOOKUP(MID(C62,8,3),Feuil1!M:N,2,FALSE) -> Elements of all sizes and weights | I62: € / ton | J62: 30 | K62: =VLOOKUP(J62,'Codes éco-part'!C:E,3,FALSE) -> 153
A63: DIY and gardening products EPR | B63: 3 | C63: 21101590000 | E63: =VLOOKUP(MID(C63,1,2),Feuil1!A:B,2,FALSE) -> DIY products | F63: =VLOOKUP(MID(C63,3,3),Feuil1!E:F,2,FALSE) -> Large non-electric, non-combustion items and machines, and their accessories | G63: =VLOOKUP(MID(C63,6,2),Feuil1!I:J,2,FALSE) -> Chipboard or OSB certified >90% | H63: =VLOOKUP(MID(C63,8,3),Feuil1!M:N,2,FALSE) -> Elements of all sizes and weights | I63: € / ton | J63: 10 | K63: =VLOOKUP(J63,'Codes éco-part'!C:E,3,FALSE) -> 138
A64: DIY and gardening products EPR | B64: 3 | C64: 21101600000 | E64: =VLOOKUP(MID(C64,1,2),Feuil1!A:B,2,FALSE) -> DIY products | F64: =VLOOKUP(MID(C64,3,3),Feuil1!E:F,2,FALSE) -> Large non-electric, non-combustion items and machines, and their accessories | G64: =VLOOKUP(MID(C64,6,2),Feuil1!I:J,2,FALSE) -> Chipboard or OSB certified >75% | H64: =VLOOKUP(MID(C64,8,3),Feuil1!M:N,2,FALSE) -> Elements of all sizes and weights | I64: € / ton | J64: 10 | K64: =VLOOKUP(J64,'Codes éco-part'!C:E,3,FALSE) -> 138
A65: DIY and gardening products EPR | B65: 3 | C65: 21101610000 | E65: =VLOOKUP(MID(C65,1,2),Feuil1!A:B,2,FALSE) -> DIY products | F65: =VLOOKUP(MID(C65,3,3),Feuil1!E:F,2,FALSE) -> Large non-electric, non-combustion items and machines, and their accessories | G65: =VLOOKUP(MID(C65,6,2),Feuil1!I:J,2,FALSE) -> Chipboard or OSB >90% | H65: =VLOOKUP(MID(C65,8,3),Feuil1!M:N,2,FALSE) -> Elements of all sizes and weights | I65: € / ton | J65: 10 | K65: =VLOOKUP(J65,'Codes éco-part'!C:E,3,FALSE) -> 138
A66: DIY and gardening products EPR | B66: 3 | C66: 21101620000 | E66: =VLOOKUP(MID(C66,1,2),Feuil1!A:B,2,FALSE) -> DIY products | F66: =VLOOKUP(MID(C66,3,3),Feuil1!E:F,2,FALSE) -> Large non-electric, non-combustion items and machines, and their accessories | G66: =VLOOKUP(MID(C66,6,2),Feuil1!I:J,2,FALSE) -> Wood derivatives >90% | H66: =VLOOKUP(MID(C66,8,3),Feuil1!M:N,2,FALSE) -> Elements of all sizes and weights | I66: € / ton | J66: 10 | K66: =VLOOKUP(J66,'Codes éco-part'!C:E,3,FALSE) -> 138
A67: DIY and gardening products EPR | B67: 3 | C67: 21101630000 | E67: =VLOOKUP(MID(C67,1,2),Feuil1!A:B,2,FALSE) -> DIY products | F67: =VLOOKUP(MID(C67,3,3),Feuil1!E:F,2,FALSE) -> Large non-electric, non-combustion items and machines, and their accessories | G67: =VLOOKUP(MID(C67,6,2),Feuil1!I:J,2,FALSE) -> Natural rubber >90% | H67: =VLOOKUP(MID(C67,8,3),Feuil1!M:N,2,FALSE) -> Elements of all sizes and weights | I67: € / ton | J67: 30 | K67: =VLOOKUP(J67,'Codes éco-part'!C:E,3,FALSE) -> 153
A68: DIY and gardening products EPR | B68: 3 | C68: 21101640000 | E68: =VLOOKUP(MID(C68,1,2),Feuil1!A:B,2,FALSE) -> DIY products | F68: =VLOOKUP(MID(C68,3,3),Feuil1!E:F,2,FALSE) -> Large non-electric, non-combustion items and machines, and their accessories | G68: =VLOOKUP(MID(C68,6,2),Feuil1!I:J,2,FALSE) -> Natural rubber >50% | H68: =VLOOKUP(MID(C68,8,3),Feuil1!M:N,2,FALSE) -> Elements of all sizes and weights | I68: € / ton | J68: 75 | K68: =VLOOKUP(J68,'Codes éco-part'!C:E,3,FALSE) -> 192
A69: DIY and gardening products EPR | B69: 3 | C69: 21101650000 | E69: =VLOOKUP(MID(C69,1,2),Feuil1!A:B,2,FALSE) -> DIY products | F69: =VLOOKUP(MID(C69,3,3),Feuil1!E:F,2,FALSE) -> Large non-electric, non-combustion items and machines, and their accessories | G69: =VLOOKUP(MID(C69,6,2),Feuil1!I:J,2,FALSE) -> Synthetic fibres or materials >90% | H69: =VLOOKUP(MID(C69,8,3),Feuil1!M:N,2,FALSE) -> Elements of all sizes and weights | I69: € / ton | J69: 50 | K69: =VLOOKUP(J69,'Codes éco-part'!C:E,3,FALSE) -> 173
A70: DIY and gardening products EPR | B70: 3 | C70: 21101670000 | E70: =VLOOKUP(MID(C70,1,2),Feuil1!A:B,2,FALSE) -> DIY products | F70: =VLOOKUP(MID(C70,3,3),Feuil1!E:F,2,FALSE) -> Large non-electric, non-combustion items and machines, and their accessories | G70: =VLOOKUP(MID(C70,6,2),Feuil1!I:J,2,FALSE) -> Assembly of synthetic fibres and/or materials >50% and other materials | H70: =VLOOKUP(MID(C70,8,3),Feuil1!M:N,2,FALSE) -> Elements of all sizes and weights | I70: € / ton | J70: 75 | K70: =VLOOKUP(J70,'Codes éco-part'!C:E,3,FALSE) -> 192
A71: DIY and gardening products EPR | B71: 3 | C71: 21101680000 | E71: =VLOOKUP(MID(C71,1,2),Feuil1!A:B,2,FALSE) -> DIY products | F71: =VLOOKUP(MID(C71,3,3),Feuil1!E:F,2,FALSE) -> Large non-electric, non-combustion items and machines, and their accessories | G71: =VLOOKUP(MID(C71,6,2),Feuil1!I:J,2,FALSE) -> Glass >90% | H71: =VLOOKUP(MID(C71,8,3),Feuil1!M:N,2,FALSE) -> Elements of all sizes and weights | I71: € / ton | J71: 5 | K71: =VLOOKUP(J71,'Codes éco-part'!C:E,3,FALSE) -> 042
A72: DIY and gardening products EPR | B72: 3 | C72: 21101700000 | E72: =VLOOKUP(MID(C72,1,2),Feuil1!A:B,2,FALSE) -> DIY products | F72: =VLOOKUP(MID(C72,3,3),Feuil1!E:F,2,FALSE) -> Large non-electric, non-combustion items and machines, and their accessories | G72: =VLOOKUP(MID(C72,6,2),Feuil1!I:J,2,FALSE) -> Assembly of glass >50% and metal | H72: =VLOOKUP(MID(C72,8,3),Feuil1!M:N,2,FALSE) -> Elements of all sizes and weights | I72: € / ton | J72: 75 | K72: =VLOOKUP(J72,'Codes éco-part'!C:E,3,FALSE) -> 192
A73: DIY and gardening products EPR | B73: 3 | C73: 21101710000 | E73: =VLOOKUP(MID(C73,1,2),Feuil1!A:B,2,FALSE) -> DIY products | F73: =VLOOKUP(MID(C73,3,3),Feuil1!E:F,2,FALSE) -> Large non-electric, non-combustion items and machines, and their accessories | G73: =VLOOKUP(MID(C73,6,2),Feuil1!I:J,2,FALSE) -> Assembly of glass >50% and inert substances | H73: =VLOOKUP(MID(C73,8,3),Feuil1!M:N,2,FALSE) -> Elements of all sizes and weights | I73: € / ton | J73: 75 | K73: =VLOOKUP(J73,'Codes éco-part'!C:E,3,FALSE) -> 192
A74: DIY and gardening products EPR | B74: 3 | C74: 21101720000 | E74: =VLOOKUP(MID(C74,1,2),Feuil1!A:B,2,FALSE) -> DIY products | F74: =VLOOKUP(MID(C74,3,3),Feuil1!E:F,2,FALSE) -> Large non-electric, non-combustion items and machines, and their accessories | G74: =VLOOKUP(MID(C74,6,2),Feuil1!I:J,2,FALSE) -> Assembly of glass >50% and wood or wood derivatives | H74: =VLOOKUP(MID(C74,8,3),Feuil1!M:N,2,FALSE) -> Elements of all sizes and weights | I74: € / ton | J74: 75 | K74: =VLOOKUP(J74,'Codes éco-part'!C:E,3,FALSE) -> 192
A75: DIY and gardening products EPR | B75: 3 | C75: 21101730000 | E75: =VLOOKUP(MID(C75,1,2),Feuil1!A:B,2,FALSE) -> DIY products | F75: =VLOOKUP(MID(C75,3,3),Feuil1!E:F,2,FALSE) -> Large non-electric, non-combustion items and machines, and their accessories | G75: =VLOOKUP(MID(C75,6,2),Feuil1!I:J,2,FALSE) -> Assembly of glass >50% and plastic | H75: =VLOOKUP(MID(C75,8,3),Feuil1!M:N,2,FALSE) -> Elements of all sizes and weights | I75: € / ton | J75: 75 | K75: =VLOOKUP(J75,'Codes éco-part'!C:E,3,FALSE) -> 192
A76: DIY and gardening products EPR | B76: 3 | C76: 21101740000 | E76: =VLOOKUP(MID(C76,1,2),Feuil1!A:B,2,FALSE) -> DIY products | F76: =VLOOKUP(MID(C76,3,3),Feuil1!E:F,2,FALSE) -> Large non-electric, non-combustion items and machines, and their accessories | G76: =VLOOKUP(MID(C76,6,2),Feuil1!I:J,2,FALSE) -> Concrete >90% | H76: =VLOOKUP(MID(C76,8,3),Feuil1!M:N,2,FALSE) -> Elements of all sizes and weights | I76: € / ton | J76: 5 | K76: =VLOOKUP(J76,'Codes éco-part'!C:E,3,FALSE) -> 042
A77: DIY and gardening products EPR | B77: 3 | C77: 21101810000 | E77: =VLOOKUP(MID(C77,1,2),Feuil1!A:B,2,FALSE) -> DIY products | F77: =VLOOKUP(MID(C77,3,3),Feuil1!E:F,2,FALSE) -> Large non-electric, non-combustion items and machines, and their accessories | G77: =VLOOKUP(MID(C77,6,2),Feuil1!I:J,2,FALSE) -> Assembly of wood, wood derivatives, and metal with a combination representing >90% | H77: =VLOOKUP(MID(C77,8,3),Feuil1!M:N,2,FALSE) -> Elements of all sizes and weights | I77: € / ton | J77: 10 | K77: =VLOOKUP(J77,'Codes éco-part'!C:E,3,FALSE) -> 138
A78: DIY and gardening products EPR | B78: 3 | C78: 21101820000 | E78: =VLOOKUP(MID(C78,1,2),Feuil1!A:B,2,FALSE) -> DIY products | F78: =VLOOKUP(MID(C78,3,3),Feuil1!E:F,2,FALSE) -> Large non-electric, non-combustion items and machines, and their accessories | G78: =VLOOKUP(MID(C78,6,2),Feuil1!I:J,2,FALSE) -> Assembly of 3 or more materials, with no material representing >50% | H78: =VLOOKUP(MID(C78,8,3),Feuil1!M:N,2,FALSE) -> Elements of all sizes and weights | I78: € / ton | J78: 75 | K78: =VLOOKUP(J78,'Codes éco-part'!C:E,3,FALSE) -> 192
A79: DIY and gardening products EPR | B79: 3 | C79: 21101840000 | E79: =VLOOKUP(MID(C79,1,2),Feuil1!A:B,2,FALSE) -> DIY products | F79: =VLOOKUP(MID(C79,3,3),Feuil1!E:F,2,FALSE) -> Large non-electric, non-combustion items and machines, and their accessories | G79: =VLOOKUP(MID(C79,6,2),Feuil1!I:J,2,FALSE) -> Slate >90% | H79: =VLOOKUP(MID(C79,8,3),Feuil1!M:N,2,FALSE) -> Elements of all sizes and weights | I79: € / ton | J79: 5 | K79: =VLOOKUP(J79,'Codes éco-part'!C:E,3,FALSE) -> 042
A80: DIY and gardening products EPR | B80: 3 | C80: 21101860000 | E80: =VLOOKUP(MID(C80,1,2),Feuil1!A:B,2,FALSE) -> DIY products | F80: =VLOOKUP(MID(C80,3,3),Feuil1!E:F,2,FALSE) -> Large non-electric, non-combustion items and machines, and their accessories | G80: =VLOOKUP(MID(C80,6,2),Feuil1!I:J,2,FALSE) -> Limestone >90% | H80: =VLOOKUP(MID(C80,8,3),Feuil1!M:N,2,FALSE) -> Elements of all sizes and weights | I80: € / ton | J80: 5 | K80: =VLOOKUP(J80,'Codes éco-part'!C:E,3,FALSE) -> 042
A81: DIY and gardening products EPR | B81: 3 | C81: 21101870000 | E81: =VLOOKUP(MID(C81,1,2),Feuil1!A:B,2,FALSE) -> DIY products | F81: =VLOOKUP(MID(C81,3,3),Feuil1!E:F,2,FALSE) -> Large non-electric, non-combustion items and machines, and their accessories | G81: =VLOOKUP(MID(C81,6,2),Feuil1!I:J,2,FALSE) -> Lava stone >90% | H81: =VLOOKUP(MID(C81,8,3),Feuil1!M:N,2,FALSE) -> Elements of all sizes and weights | I81: € / ton | J81: 5 | K81: =VLOOKUP(J81,'Codes éco-part'!C:E,3,FALSE) -> 042
A82: DIY and gardening products EPR | B82: 3 | C82: 21101890000 | E82: =VLOOKUP(MID(C82,1,2),Feuil1!A:B,2,FALSE) -> DIY products | F82: =VLOOKUP(MID(C82,3,3),Feuil1!E:F,2,FALSE) -> Large non-electric, non-combustion items and machines, and their accessories | G82: =VLOOKUP(MID(C82,6,2),Feuil1!I:J,2,FALSE) -> Raw earth or terracotta >90% | H82: =VLOOKUP(MID(C82,8,3),Feuil1!M:N,2,FALSE) -> Elements of all sizes and weights | I82: € / ton | J82: 5 | K82: =VLOOKUP(J82,'Codes éco-part'!C:E,3,FALSE) -> 042
A83: DIY and gardening products EPR | B83: 3 | C83: 21101900000 | E83: =VLOOKUP(MID(C83,1,2),Feuil1!A:B,2,FALSE) -> DIY products | F83: =VLOOKUP(MID(C83,3,3),Feuil1!E:F,2,FALSE) -> Large non-electric, non-combustion items and machines, and their accessories | G83: =VLOOKUP(MID(C83,6,2),Feuil1!I:J,2,FALSE) -> Cement >90% | H83: =VLOOKUP(MID(C83,8,3),Feuil1!M:N,2,FALSE) -> Elements of all sizes and weights | I83: € / ton | J83: 5 | K83: =VLOOKUP(J83,'Codes éco-part'!C:E,3,FALSE) -> 042
A84: DIY and gardening products EPR | B84: 3 | C84: 21101910000 | E84: =VLOOKUP(MID(C84,1,2),Feuil1!A:B,2,FALSE) -> DIY products | F84: =VLOOKUP(MID(C84,3,3),Feuil1!E:F,2,FALSE) -> Large non-electric, non-combustion items and machines, and their accessories | G84: =VLOOKUP(MID(C84,6,2),Feuil1!I:J,2,FALSE) -> Granite >90% | H84: =VLOOKUP(MID(C84,8,3),Feuil1!M:N,2,FALSE) -> Elements of all sizes and weights | I84: € / ton | J84: 5 | K84: =VLOOKUP(J84,'Codes éco-part'!C:E,3,FALSE) -> 042
A85: DIY and gardening products EPR | B85: 3 | C85: 21101940000 | E85: =VLOOKUP(MID(C85,1,2),Feuil1!A:B,2,FALSE) -> DIY products | F85: =VLOOKUP(MID(C85,3,3),Feuil1!E:F,2,FALSE) -> Large non-electric, non-combustion items and machines, and their accessories | G85: =VLOOKUP(MID(C85,6,2),Feuil1!I:J,2,FALSE) -> Sandstone >90% | H85: =VLOOKUP(MID(C85,8,3),Feuil1!M:N,2,FALSE) -> Elements of all sizes and weights | I85: € / ton | J85: 5 | K85: =VLOOKUP(J85,'Codes éco-part'!C:E,3,FALSE) -> 042
A86: DIY and gardening products EPR | B86: 3 | C86: 21101970000 | E86: =VLOOKUP(MID(C86,1,2),Feuil1!A:B,2,FALSE) -> DIY products | F86: =VLOOKUP(MID(C86,3,3),Feuil1!E:F,2,FALSE) -> Large non-electric, non-combustion items and machines, and their accessories | G86: =VLOOKUP(MID(C86,6,2),Feuil1!I:J,2,FALSE) -> Ceramic >90% | H86: =VLOOKUP(MID(C86,8,3),Feuil1!M:N,2,FALSE) -> Elements of all sizes and weights | I86: € / ton | J86: 10 | K86: =VLOOKUP(J86,'Codes éco-part'!C:E,3,FALSE) -> 138
A87: DIY and gardening products EPR | B87: 3 | C87: 21101980000 | E87: =VLOOKUP(MID(C87,1,2),Feuil1!A:B,2,FALSE) -> DIY products | F87: =VLOOKUP(MID(C87,3,3),Feuil1!E:F,2,FALSE) -> Large non-electric, non-combustion items and machines, and their accessories | G87: =VLOOKUP(MID(C87,6,2),Feuil1!I:J,2,FALSE) -> Artificial stone >90% | H87: =VLOOKUP(MID(C87,8,3),Feuil1!M:N,2,FALSE) -> Elements of all sizes and weights | I87: € / ton | J87: 5 | K87: =VLOOKUP(J87,'Codes éco-part'!C:E,3,FALSE) -> 042
A88: DIY and gardening products EPR | B88: 3 | C88: 21102000000 | E88: =VLOOKUP(MID(C88,1,2),Feuil1!A:B,2,FALSE) -> DIY products | F88: =VLOOKUP(MID(C88,3,3),Feuil1!E:F,2,FALSE) -> Tools and supports for working at height | G88: =VLOOKUP(MID(C88,6,2),Feuil1!I:J,2,FALSE) -> Unknown or unspecified by the company | H88: =VLOOKUP(MID(C88,8,3),Feuil1!M:N,2,FALSE) -> Elements of all sizes and weights | I88: € / ton | J88: 75 | K88: =VLOOKUP(J88,'Codes éco-part'!C:E,3,FALSE) -> 192
A89: DIY and gardening products EPR | B89: 3 | C89: 21102010000 | E89: =VLOOKUP(MID(C89,1,2),Feuil1!A:B,2,FALSE) -> DIY products | F89: =VLOOKUP(MID(C89,3,3),Feuil1!E:F,2,FALSE) -> Tools and supports for working at height | G89: =VLOOKUP(MID(C89,6,2),Feuil1!I:J,2,FALSE) -> Assembly of wood and/or wood derivatives >50% and other materials or composite wood (excl. glass) | H89: =VLOOKUP(MID(C89,8,3),Feuil1!M:N,2,FALSE) -> Elements of all sizes and weights | I89: € / ton | J89: 10 | K89: =VLOOKUP(J89,'Codes éco-part'!C:E,3,FALSE) -> 138
A90: DIY and gardening products EPR | B90: 3 | C90: 21102020000 | E90: =VLOOKUP(MID(C90,1,2),Feuil1!A:B,2,FALSE) -> DIY products | F90: =VLOOKUP(MID(C90,3,3),Feuil1!E:F,2,FALSE) -> Tools and supports for working at height | G90: =VLOOKUP(MID(C90,6,2),Feuil1!I:J,2,FALSE) -> Assembly of metal >50% and other materials | H90: =VLOOKUP(MID(C90,8,3),Feuil1!M:N,2,FALSE) -> Elements of all sizes and weights | I90: € / ton | J90: 3 | K90: =VLOOKUP(J90,'Codes éco-part'!C:E,3,FALSE) -> 474
A91: DIY and gardening products EPR | B91: 3 | C91: 21102040000 | E91: =VLOOKUP(MID(C91,1,2),Feuil1!A:B,2,FALSE) -> DIY products | F91: =VLOOKUP(MID(C91,3,3),Feuil1!E:F,2,FALSE) -> Tools and supports for working at height | G91: =VLOOKUP(MID(C91,6,2),Feuil1!I:J,2,FALSE) -> Biosourced materials or non-synthetic textiles >50% | H91: =VLOOKUP(MID(C91,8,3),Feuil1!M:N,2,FALSE) -> Elements of all sizes and weights | I91: € / ton | J91: 30 | K91: =VLOOKUP(J91,'Codes éco-part'!C:E,3,FALSE) -> 153
A92: DIY and gardening products EPR | B92: 3 | C92: 21102050000 | E92: =VLOOKUP(MID(C92,1,2),Feuil1!A:B,2,FALSE) -> DIY products | F92: =VLOOKUP(MID(C92,3,3),Feuil1!E:F,2,FALSE) -> Tools and supports for working at height | G92: =VLOOKUP(MID(C92,6,2),Feuil1!I:J,2,FALSE) -> Plastics or other synthetic materials >50% | H92: =VLOOKUP(MID(C92,8,3),Feuil1!M:N,2,FALSE) -> Elements of all sizes and weights | I92: € / ton | J92: 75 | K92: =VLOOKUP(J92,'Codes éco-part'!C:E,3,FALSE) -> 192
A93: DIY and gardening products EPR | B93: 3 | C93: 21102060000 | E93: =VLOOKUP(MID(C93,1,2),Feuil1!A:B,2,FALSE) -> DIY products | F93: =VLOOKUP(MID(C93,3,3),Feuil1!E:F,2,FALSE) -> Tools and supports for working at height | G93: =VLOOKUP(MID(C93,6,2),Feuil1!I:J,2,FALSE) -> Materials of animal origin >50% | H93: =VLOOKUP(MID(C93,8,3),Feuil1!M:N,2,FALSE) -> Elements of all sizes and weights | I93: € / ton | J93: 30 | K93: =VLOOKUP(J93,'Codes éco-part'!C:E,3,FALSE) -> 153
A94: DIY and gardening products EPR | B94: 3 | C94: 21102080000 | E94: =VLOOKUP(MID(C94,1,2),Feuil1!A:B,2,FALSE) -> DIY products | F94: =VLOOKUP(MID(C94,3,3),Feuil1!E:F,2,FALSE) -> Tools and supports for working at height | G94: =VLOOKUP(MID(C94,6,2),Feuil1!I:J,2,FALSE) -> Assembly of materials with inert substances >50% | H94: =VLOOKUP(MID(C94,8,3),Feuil1!M:N,2,FALSE) -> Elements of all sizes and weights | I94: € / ton | J94: 75 | K94: =VLOOKUP(J94,'Codes éco-part'!C:E,3,FALSE) -> 192
A95: DIY and gardening products EPR | B95: 3 | C95: 21102150000 | E95: =VLOOKUP(MID(C95,1,2),Feuil1!A:B,2,FALSE) -> DIY products | F95: =VLOOKUP(MID(C95,3,3),Feuil1!E:F,2,FALSE) -> Tools and supports for working at height | G95: =VLOOKUP(MID(C95,6,2),Feuil1!I:J,2,FALSE) -> Composites and other reconstituted mineral materials >50% | H95: =VLOOKUP(MID(C95,8,3),Feuil1!M:N,2,FALSE) -> Elements of all sizes and weights | I95: € / ton | J95: 75 | K95: =VLOOKUP(J95,'Codes éco-part'!C:E,3,FALSE) -> 192
A96: DIY and gardening products EPR | B96: 3 | C96: 21102190000 | E96: =VLOOKUP(MID(C96,1,2),Feuil1!A:B,2,FALSE) -> DIY products | F96: =VLOOKUP(MID(C96,3,3),Feuil1!E:F,2,FALSE) -> Tools and supports for working at height | G96: =VLOOKUP(MID(C96,6,2),Feuil1!I:J,2,FALSE) -> Cardboard >50% and other materials (excl. glass) | H96: =VLOOKUP(MID(C96,8,3),Feuil1!M:N,2,FALSE) -> Elements of all sizes and weights | I96: € / ton | J96: 30 | K96: =VLOOKUP(J96,'Codes éco-part'!C:E,3,FALSE) -> 153
A97: DIY and gardening products EPR | B97: 3 | C97: 21102200000 | E97: =VLOOKUP(MID(C97,1,2),Feuil1!A:B,2,FALSE) -> DIY products | F97: =VLOOKUP(MID(C97,3,3),Feuil1!E:F,2,FALSE) -> Tools and supports for working at height | G97: =VLOOKUP(MID(C97,6,2),Feuil1!I:J,2,FALSE) -> Solid wood and related products certified >75% | H97: =VLOOKUP(MID(C97,8,3),Feuil1!M:N,2,FALSE) -> Elements of all sizes and weights | I97: € / ton | J97: 10 | K97: =VLOOKUP(J97,'Codes éco-part'!C:E,3,FALSE) -> 138
A98: DIY and gardening products EPR | B98: 3 | C98: 21102210000 | E98: =VLOOKUP(MID(C98,1,2),Feuil1!A:B,2,FALSE) -> DIY products | F98: =VLOOKUP(MID(C98,3,3),Feuil1!E:F,2,FALSE) -> Tools and supports for working at height | G98: =VLOOKUP(MID(C98,6,2),Feuil1!I:J,2,FALSE) -> Solid wood and related products >75% | H98: =VLOOKUP(MID(C98,8,3),Feuil1!M:N,2,FALSE) -> Elements of all sizes and weights | I98: € / ton | J98: 10 | K98: =VLOOKUP(J98,'Codes éco-part'!C:E,3,FALSE) -> 138
A99: DIY and gardening products EPR | B99: 3 | C99: 21102250000 | E99: =VLOOKUP(MID(C99,1,2),Feuil1!A:B,2,FALSE) -> DIY products | F99: =VLOOKUP(MID(C99,3,3),Feuil1!E:F,2,FALSE) -> Tools and supports for working at height | G99: =VLOOKUP(MID(C99,6,2),Feuil1!I:J,2,FALSE) -> Chipboard or OSB >75% | H99: =VLOOKUP(MID(C99,8,3),Feuil1!M:N,2,FALSE) -> Elements of all sizes and weights | I99: € / ton | J99: 10 | K99: =VLOOKUP(J99,'Codes éco-part'!C:E,3,FALSE) -> 138
A100: DIY and gardening products EPR | B100: 3 | C100: 21102280000 | E100: =VLOOKUP(MID(C100,1,2),Feuil1!A:B,2,FALSE) -> DIY products | F100: =VLOOKUP(MID(C100,3,3),Feuil1!E:F,2,FALSE) -> Tools and supports for working at height | G100: =VLOOKUP(MID(C100,6,2),Feuil1!I:J,2,FALSE) -> Metal >90% | H100: =VLOOKUP(MID(C100,8,3),Feuil1!M:N,2,FALSE) -> Elements of all sizes and weights | I100: € / ton | J100: 3 | K100: =VLOOKUP(J100,'Codes éco-part'!C:E,3,FALSE) -> 474
A101: DIY and gardening products EPR | B101: 3 | C101: 21102400000 | E101: =VLOOKUP(MID(C101,1,2),Feuil1!A:B,2,FALSE) -> DIY products | F101: =VLOOKUP(MID(C101,3,3),Feuil1!E:F,2,FALSE) -> Tools and supports for working at height | G101: =VLOOKUP(MID(C101,6,2),Feuil1!I:J,2,FALSE) -> Assembly of synthetic rubber or latex >50% and other materials | H101: =VLOOKUP(MID(C101,8,3),Feuil1!M:N,2,FALSE) -> Elements of all sizes and weights | I101: € / ton | J101: 75 | K101: =VLOOKUP(J101,'Codes éco-part'!C:E,3,FALSE) -> 192
A102: DIY and gardening products EPR | B102: 3 | C102: 21102410000 | E102: =VLOOKUP(MID(C102,1,2),Feuil1!A:B,2,FALSE) -> DIY products | F102: =VLOOKUP(MID(C102,3,3),Feuil1!E:F,2,FALSE) -> Tools and supports for working at height | G102: =VLOOKUP(MID(C102,6,2),Feuil1!I:J,2,FALSE) -> Plastic (single-resin) >90% | H102: =VLOOKUP(MID(C102,8,3),Feuil1!M:N,2,FALSE) -> Elements of all sizes and weights | I102: € / ton | J102: 50 | K102: =VLOOKUP(J102,'Codes éco-part'!C:E,3,FALSE) -> 173
A103: DIY and gardening products EPR | B103: 3 | C103: 21102420000 | E103: =VLOOKUP(MID(C103,1,2),Feuil1!A:B,2,FALSE) -> DIY products | F103: =VLOOKUP(MID(C103,3,3),Feuil1!E:F,2,FALSE) -> Tools and supports for working at height | G103: =VLOOKUP(MID(C103,6,2),Feuil1!I:J,2,FALSE) -> Polyethylene terephthalate (PET) >90% | H103: =VLOOKUP(MID(C103,8,3),Feuil1!M:N,2,FALSE) -> Elements of all sizes and weights | I103: € / ton | J103: 50 | K103: =VLOOKUP(J103,'Codes éco-part'!C:E,3,FALSE) -> 173
A104: DIY and gardening products EPR | B104: 3 | C104: 21102450000 | E104: =VLOOKUP(MID(C104,1,2),Feuil1!A:B,2,FALSE) -> DIY products | F104: =VLOOKUP(MID(C104,3,3),Feuil1!E:F,2,FALSE) -> Tools and supports for working at height | G104: =VLOOKUP(MID(C104,6,2),Feuil1!I:J,2,FALSE) -> PE or PP or PP/PE mix >90% | H104: =VLOOKUP(MID(C104,8,3),Feuil1!M:N,2,FALSE) -> Elements of all sizes and weights | I104: € / ton | J104: 50 | K104: =VLOOKUP(J104,'Codes éco-part'!C:E,3,FALSE) -> 173
A105: DIY and gardening products EPR | B105: 3 | C105: 21102460000 | E105: =VLOOKUP(MID(C105,1,2),Feuil1!A:B,2,FALSE) -> DIY products | F105: =VLOOKUP(MID(C105,3,3),Feuil1!E:F,2,FALSE) -> Tools and supports for working at height | G105: =VLOOKUP(MID(C105,6,2),Feuil1!I:J,2,FALSE) -> ABS >90% | H105: =VLOOKUP(MID(C105,8,3),Feuil1!M:N,2,FALSE) -> Elements of all sizes and weights | I105: € / ton | J105: 50 | K105: =VLOOKUP(J105,'Codes éco-part'!C:E,3,FALSE) -> 173
A106: DIY and gardening products EPR | B106: 3 | C106: 21102470000 | E106: =VLOOKUP(MID(C106,1,2),Feuil1!A:B,2,FALSE) -> DIY products | F106: =VLOOKUP(MID(C106,3,3),Feuil1!E:F,2,FALSE) -> Tools and supports for working at height | G106: =VLOOKUP(MID(C106,6,2),Feuil1!I:J,2,FALSE) -> Polystyrene >90% | H106: =VLOOKUP(MID(C106,8,3),Feuil1!M:N,2,FALSE) -> Elements of all sizes and weights | I106: € / ton | J106: 50 | K106: =VLOOKUP(J106,'Codes éco-part'!C:E,3,FALSE) -> 173
A107: DIY and gardening products EPR | B107: 3 | C107: 21102480000 | E107: =VLOOKUP(MID(C107,1,2),Feuil1!A:B,2,FALSE) -> DIY products | F107: =VLOOKUP(MID(C107,3,3),Feuil1!E:F,2,FALSE) -> Tools and supports for working at height | G107: =VLOOKUP(MID(C107,6,2),Feuil1!I:J,2,FALSE) -> PVC >90% | H107: =VLOOKUP(MID(C107,8,3),Feuil1!M:N,2,FALSE) -> Elements of all sizes and weights | I107: € / ton | J107: 50 | K107: =VLOOKUP(J107,'Codes éco-part'!C:E,3,FALSE) -> 173
A108: DIY and gardening products EPR | B108: 3 | C108: 21102490000 | E108: =VLOOKUP(MID(C108,1,2),Feuil1!A:B,2,FALSE) -> DIY products | F108: =VLOOKUP(MID(C108,3,3),Feuil1!E:F,2,FALSE) -> Tools and supports for working at height | G108: =VLOOKUP(MID(C108,6,2),Feuil1!I:J,2,FALSE) -> Synthetic rubber >90% | H108: =VLOOKUP(MID(C108,8,3),Feuil1!M:N,2,FALSE) -> Elements of all sizes and weights | I108: € / ton | J108: 50 | K108: =VLOOKUP(J108,'Codes éco-part'!C:E,3,FALSE) -> 173
A109: DIY and gardening products EPR | B109: 3 | C109: 21102520000 | E109: =VLOOKUP(MID(C109,1,2),Feuil1!A:B,2,FALSE) -> DIY products | F109: =VLOOKUP(MID(C109,3,3),Feuil1!E:F,2,FALSE) -> Tools and supports for working at height | G109: =VLOOKUP(MID(C109,6,2),Feuil1!I:J,2,FALSE) -> Solid wood and related products certified >90% | H109: =VLOOKUP(MID(C109,8,3),Feuil1!M:N,2,FALSE) -> Elements of all sizes and weights | I109: € / ton | J109: 10 | K109: =VLOOKUP(J109,'Codes éco-part'!C:E,3,FALSE) -> 138
A110: DIY and gardening products EPR | B110: 3 | C110: 21102530000 | E110: =VLOOKUP(MID(C110,1,2),Feuil1!A:B,2,FALSE) -> DIY products | F110: =VLOOKUP(MID(C110,3,3),Feuil1!E:F,2,FALSE) -> Tools and supports for working at height | G110: =VLOOKUP(MID(C110,6,2),Feuil1!I:J,2,FALSE) -> Solid wood and related products >90% | H110: =VLOOKUP(MID(C110,8,3),Feuil1!M:N,2,FALSE) -> Elements of all sizes and weights | I110: € / ton | J110: 10 | K110: =VLOOKUP(J110,'Codes éco-part'!C:E,3,FALSE) -> 138
A111: DIY and gardening products EPR | B111: 3 | C111: 21102550000 | E111: =VLOOKUP(MID(C111,1,2),Feuil1!A:B,2,FALSE) -> DIY products | F111: =VLOOKUP(MID(C111,3,3),Feuil1!E:F,2,FALSE) -> Tools and supports for working at height | G111: =VLOOKUP(MID(C111,6,2),Feuil1!I:J,2,FALSE) -> Biosourced materials or non-synthetic textiles >90% | H111: =VLOOKUP(MID(C111,8,3),Feuil1!M:N,2,FALSE) -> Elements of all sizes and weights | I111: € / ton | J111: 30 | K111: =VLOOKUP(J111,'Codes éco-part'!C:E,3,FALSE) -> 153
A112: DIY and gardening products EPR | B112: 3 | C112: 21102590000 | E112: =VLOOKUP(MID(C112,1,2),Feuil1!A:B,2,FALSE) -> DIY products | F112: =VLOOKUP(MID(C112,3,3),Feuil1!E:F,2,FALSE) -> Tools and supports for working at height | G112: =VLOOKUP(MID(C112,6,2),Feuil1!I:J,2,FALSE) -> Chipboard or OSB certified >90% | H112: =VLOOKUP(MID(C112,8,3),Feuil1!M:N,2,FALSE) -> Elements of all sizes and weights | I112: € / ton | J112: 10 | K112: =VLOOKUP(J112,'Codes éco-part'!C:E,3,FALSE) -> 138
A113: DIY and gardening products EPR | B113: 3 | C113: 21102600000 | E113: =VLOOKUP(MID(C113,1,2),Feuil1!A:B,2,FALSE) -> DIY products | F113: =VLOOKUP(MID(C113,3,3),Feuil1!E:F,2,FALSE) -> Tools and supports for working at height | G113: =VLOOKUP(MID(C113,6,2),Feuil1!I:J,2,FALSE) -> Chipboard or OSB certified >75% | H113: =VLOOKUP(MID(C113,8,3),Feuil1!M:N,2,FALSE) -> Elements of all sizes and weights | I113: € / ton | J113: 10 | K113: =VLOOKUP(J113,'Codes éco-part'!C:E,3,FALSE) -> 138
A114: DIY and gardening products EPR | B114: 3 | C114: 21102610000 | E114: =VLOOKUP(MID(C114,1,2),Feuil1!A:B,2,FALSE) -> DIY products | F114: =VLOOKUP(MID(C114,3,3),Feuil1!E:F,2,FALSE) -> Tools and supports for working at height | G114: =VLOOKUP(MID(C114,6,2),Feuil1!I:J,2,FALSE) -> Chipboard or OSB >90% | H114: =VLOOKUP(MID(C114,8,3),Feuil1!M:N,2,FALSE) -> Elements of all sizes and weights | I114: € / ton | J114: 10 | K114: =VLOOKUP(J114,'Codes éco-part'!C:E,3,FALSE) -> 138
A115: DIY and gardening products EPR | B115: 3 | C115: 21102620000 | E115: =VLOOKUP(MID(C115,1,2),Feuil1!A:B,2,FALSE) -> DIY products | F115: =VLOOKUP(MID(C115,3,3),Feuil1!E:F,2,FALSE) -> Tools and supports for working at height | G115: =VLOOKUP(MID(C115,6,2),Feuil1!I:J,2,FALSE) -> Wood derivatives >90% | H115: =VLOOKUP(MID(C115,8,3),Feuil1!M:N,2,FALSE) -> Elements of all sizes and weights | I115: € / ton | J115: 10 | K115: =VLOOKUP(J115,'Codes éco-part'!C:E,3,FALSE) -> 138
A116: DIY and gardening products EPR | B116: 3 | C116: 21102630000 | E116: =VLOOKUP(MID(C116,1,2),Feuil1!A:B,2,FALSE) -> DIY products | F116: =VLOOKUP(MID(C116,3,3),Feuil1!E:F,2,FALSE) -> Tools and supports for working at height | G116: =VLOOKUP(MID(C116,6,2),Feuil1!I:J,2,FALSE) -> Natural rubber >90% | H116: =VLOOKUP(MID(C116,8,3),Feuil1!M:N,2,FALSE) -> Elements of all sizes and weights | I116: € / ton | J116: 30 | K116: =VLOOKUP(J116,'Codes éco-part'!C:E,3,FALSE) -> 153
A117: DIY and gardening products EPR | B117: 3 | C117: 21102640000 | E117: =VLOOKUP(MID(C117,1,2),Feuil1!A:B,2,FALSE) -> DIY products | F117: =VLOOKUP(MID(C117,3,3),Feuil1!E:F,2,FALSE) -> Tools and supports for working at height | G117: =VLOOKUP(MID(C117,6,2),Feuil1!I:J,2,FALSE) -> Natural rubber >50% | H117: =VLOOKUP(MID(C117,8,3),Feuil1!M:N,2,FALSE) -> Elements of all sizes and weights | I117: € / ton | J117: 75 | K117: =VLOOKUP(J117,'Codes éco-part'!C:E,3,FALSE) -> 192
A118: DIY and gardening products EPR | B118: 3 | C118: 21102650000 | E118: =VLOOKUP(MID(C118,1,2),Feuil1!A:B,2,FALSE) -> DIY products | F118: =VLOOKUP(MID(C118,3,3),Feuil1!E:F,2,FALSE) -> Tools and supports for working at height | G118: =VLOOKUP(MID(C118,6,2),Feuil1!I:J,2,FALSE) -> Synthetic fibres or materials >90% | H118: =VLOOKUP(MID(C118,8,3),Feuil1!M:N,2,FALSE) -> Elements of all sizes and weights | I118: € / ton | J118: 50 | K118: =VLOOKUP(J118,'Codes éco-part'!C:E,3,FALSE) -> 173
A119: DIY and gardening products EPR | B119: 3 | C119: 21102670000 | E119: =VLOOKUP(MID(C119,1,2),Feuil1!A:B,2,FALSE) -> DIY products | F119: =VLOOKUP(MID(C119,3,3),Feuil1!E:F,2,FALSE) -> Tools and supports for working at height | G119: =VLOOKUP(MID(C119,6,2),Feuil1!I:J,2,FALSE) -> Assembly of synthetic fibres and/or materials >50% and other materials | H119: =VLOOKUP(MID(C119,8,3),Feuil1!M:N,2,FALSE) -> Elements of all sizes and weights | I119: € / ton | J119: 75 | K119: =VLOOKUP(J119,'Codes éco-part'!C:E,3,FALSE) -> 192
A120: DIY and gardening products EPR | B120: 3 | C120: 21102680000 | E120: =VLOOKUP(MID(C120,1,2),Feuil1!A:B,2,FALSE) -> DIY products | F120: =VLOOKUP(MID(C120,3,3),Feuil1!E:F,2,FALSE) -> Tools and supports for working at height | G120: =VLOOKUP(MID(C120,6,2),Feuil1!I:J,2,FALSE) -> Glass >90% | H120: =VLOOKUP(MID(C120,8,3),Feuil1!M:N,2,FALSE) -> Elements of all sizes and weights | I120: € / ton | J120: 5 | K120: =VLOOKUP(J120,'Codes éco-part'!C:E,3,FALSE) -> 042
A121: DIY and gardening products EPR | B121: 3 | C121: 21102700000 | E121: =VLOOKUP(MID(C121,1,2),Feuil1!A:B,2,FALSE) -> DIY products | F121: =VLOOKUP(MID(C121,3,3),Feuil1!E:F,2,FALSE) -> Tools and supports for working at height | G121: =VLOOKUP(MID(C121,6,2),Feuil1!I:J,2,FALSE) -> Assembly of glass >50% and metal | H121: =VLOOKUP(MID(C121,8,3),Feuil1!M:N,2,FALSE) -> Elements of all sizes and weights | I121: € / ton | J121: 75 | K121: =VLOOKUP(J121,'Codes éco-part'!C:E,3,FALSE) -> 192
A122: DIY and gardening products EPR | B122: 3 | C122: 21102710000 | E122: =VLOOKUP(MID(C122,1,2),Feuil1!A:B,2,FALSE) -> DIY products | F122: =VLOOKUP(MID(C122,3,3),Feuil1!E:F,2,FALSE) -> Tools and supports for working at height | G122: =VLOOKUP(MID(C122,6,2),Feuil1!I:J,2,FALSE) -> Assembly of glass >50% and inert substances | H122: =VLOOKUP(MID(C122,8,3),Feuil1!M:N,2,FALSE) -> Elements of all sizes and weights | I122: € / ton | J122: 75 | K122: =VLOOKUP(J122,'Codes éco-part'!C:E,3,FALSE) -> 192
A123: DIY and gardening products EPR | B123: 3 | C123: 21102720000 | E123: =VLOOKUP(MID(C123,1,2),Feuil1!A:B,2,FALSE) -> DIY products | F123: =VLOOKUP(MID(C123,3,3),Feuil1!E:F,2,FALSE) -> Tools and supports for working at height | G123: =VLOOKUP(MID(C123,6,2),Feuil1!I:J,2,FALSE) -> Assembly of glass >50% and wood or wood derivatives | H123: =VLOOKUP(MID(C123,8,3),Feuil1!M:N,2,FALSE) -> Elements of all sizes and weights | I123: € / ton | J123: 75 | K123: =VLOOKUP(J123,'Codes éco-part'!C:E,3,FALSE) -> 192
A124: DIY and gardening products EPR | B124: 3 | C124: 21102730000 | E124: =VLOOKUP(MID(C124,1,2),Feuil1!A:B,2,FALSE) -> DIY products | F124: =VLOOKUP(MID(C124,3,3),Feuil1!E:F,2,FALSE) -> Tools and supports for working at height | G124: =VLOOKUP(MID(C124,6,2),Feuil1!I:J,2,FALSE) -> Assembly of glass >50% and plastic | H124: =VLOOKUP(MID(C124,8,3),Feuil1!M:N,2,FALSE) -> Elements of all sizes and weights | I124: € / ton | J124: 75 | K124: =VLOOKUP(J124,'Codes éco-part'!C:E,3,FALSE) -> 192
A125: DIY and gardening products EPR | B125: 3 | C125: 21102740000 | E125: =VLOOKUP(MID(C125,1,2),Feuil1!A:B,2,FALSE) -> DIY products | F125: =VLOOKUP(MID(C125,3,3),Feuil1!E:F,2,FALSE) -> Tools and supports for working at height | G125: =VLOOKUP(MID(C125,6,2),Feuil1!I:J,2,FALSE) -> Concrete >90% | H125: =VLOOKUP(MID(C125,8,3),Feuil1!M:N,2,FALSE) -> Elements of all sizes and weights | I125: € / ton | J125: 5 | K125: =VLOOKUP(J125,'Codes éco-part'!C:E,3,FALSE) -> 042
A126: DIY and gardening products EPR | B126: 3 | C126: 21102810000 | E126: =VLOOKUP(MID(C126,1,2),Feuil1!A:B,2,FALSE) -> DIY products | F126: =VLOOKUP(MID(C126,3,3),Feuil1!E:F,2,FALSE) -> Tools and supports for working at height | G126: =VLOOKUP(MID(C126,6,2),Feuil1!I:J,2,FALSE) -> Assembly of wood, wood derivatives, and metal with a combination representing >90% | H126: =VLOOKUP(MID(C126,8,3),Feuil1!M:N,2,FALSE) -> Elements of all sizes and weights | I126: € / ton | J126: 10 | K126: =VLOOKUP(J126,'Codes éco-part'!C:E,3,FALSE) -> 138
A127: DIY and gardening products EPR | B127: 3 | C127: 21102820000 | E127: =VLOOKUP(MID(C127,1,2),Feuil1!A:B,2,FALSE) -> DIY products | F127: =VLOOKUP(MID(C127,3,3),Feuil1!E:F,2,FALSE) -> Tools and supports for working at height | G127: =VLOOKUP(MID(C127,6,2),Feuil1!I:J,2,FALSE) -> Assembly of 3 or more materials, with no material representing >50% | H127: =VLOOKUP(MID(C127,8,3),Feuil1!M:N,2,FALSE) -> Elements of all sizes and weights | I127: € / ton | J127: 75 | K127: =VLOOKUP(J127,'Codes éco-part'!C:E,3,FALSE) -> 192
A128: DIY and gardening products EPR | B128: 3 | C128: 21102840000 | E128: =VLOOKUP(MID(C128,1,2),Feuil1!A:B,2,FALSE) -> DIY products | F128: =VLOOKUP(MID(C128,3,3),Feuil1!E:F,2,FALSE) -> Tools and supports for working at height | G128: =VLOOKUP(MID(C128,6,2),Feuil1!I:J,2,FALSE) -> Slate >90% | H128: =VLOOKUP(MID(C128,8,3),Feuil1!M:N,2,FALSE) -> Elements of all sizes and weights | I128: € / ton | J128: 5 | K128: =VLOOKUP(J128,'Codes éco-part'!C:E,3,FALSE) -> 042
A129: DIY and gardening products EPR | B129: 3 | C129: 21102860000 | E129: =VLOOKUP(MID(C129,1,2),Feuil1!A:B,2,FALSE) -> DIY products | F129: =VLOOKUP(MID(C129,3,3),Feuil1!E:F,2,FALSE) -> Tools and supports for working at height | G129: =VLOOKUP(MID(C129,6,2),Feuil1!I:J,2,FALSE) -> Limestone >90% | H129: =VLOOKUP(MID(C129,8,3),Feuil1!M:N,2,FALSE) -> Elements of all sizes and weights | I129: € / ton | J129: 5 | K129: =VLOOKUP(J129,'Codes éco-part'!C:E,3,FALSE) -> 042
A130: DIY and gardening products EPR | B130: 3 | C130: 21102870000 | E130: =VLOOKUP(MID(C130,1,2),Feuil1!A:B,2,FALSE) -> DIY products | F130: =VLOOKUP(MID(C130,3,3),Feuil1!E:F,2,FALSE) -> Tools and supports for working at height | G130: =VLOOKUP(MID(C130,6,2),Feuil1!I:J,2,FALSE) -> Lava stone >90% | H130: =VLOOKUP(MID(C130,8,3),Feuil1!M:N,2,FALSE) -> Elements of all sizes and weights | I130: € / ton | J130: 5 | K130: =VLOOKUP(J130,'Codes éco-part'!C:E,3,FALSE) -> 042
A131: DIY and gardening products EPR | B131: 3 | C131: 21102890000 | E131: =VLOOKUP(MID(C131,1,2),Feuil1!A:B,2,FALSE) -> DIY products | F131: =VLOOKUP(MID(C131,3,3),Feuil1!E:F,2,FALSE) -> Tools and supports for working at height | G131: =VLOOKUP(MID(C131,6,2),Feuil1!I:J,2,FALSE) -> Raw earth or terracotta >90% | H131: =VLOOKUP(MID(C131,8,3),Feuil1!M:N,2,FALSE) -> Elements of all sizes and weights | I131: € / ton | J131: 5 | K131: =VLOOKUP(J131,'Codes éco-part'!C:E,3,FALSE) -> 042
A132: DIY and gardening products EPR | B132: 3 | C132: 21102900000 | E132: =VLOOKUP(MID(C132,1,2),Feuil1!A:B,2,FALSE) -> DIY products | F132: =VLOOKUP(MID(C132,3,3),Feuil1!E:F,2,FALSE) -> Tools and supports for working at height | G132: =VLOOKUP(MID(C132,6,2),Feuil1!I:J,2,FALSE) -> Cement >90% | H132: =VLOOKUP(MID(C132,8,3),Feuil1!M:N,2,FALSE) -> Elements of all sizes and weights | I132: € / ton | J132: 5 | K132: =VLOOKUP(J132,'Codes éco-part'!C:E,3,FALSE) -> 042
A133: DIY and gardening products EPR | B133: 3 | C133: 21102910000 | E133: =VLOOKUP(MID(C133,1,2),Feuil1!A:B,2,FALSE) -> DIY products | F133: =VLOOKUP(MID(C133,3,3),Feuil1!E:F,2,FALSE) -> Tools and supports for working at height | G133: =VLOOKUP(MID(C133,6,2),Feuil1!I:J,2,FALSE) -> Granite >90% | H133: =VLOOKUP(MID(C133,8,3),Feuil1!M:N,2,FALSE) -> Elements of all sizes and weights | I133: € / ton | J133: 5 | K133: =VLOOKUP(J133,'Codes éco-part'!C:E,3,FALSE) -> 042
A134: DIY and gardening products EPR | B134: 3 | C134: 21102940000 | E134: =VLOOKUP(MID(C134,1,2),Feuil1!A:B,2,FALSE) -> DIY products | F134: =VLOOKUP(MID(C134,3,3),Feuil1!E:F,2,FALSE) -> Tools and supports for working at height | G134: =VLOOKUP(MID(C134,6,2),Feuil1!I:J,2,FALSE) -> Sandstone >90% | H134: =VLOOKUP(MID(C134,8,3),Feuil1!M:N,2,FALSE) -> Elements of all sizes and weights | I134: € / ton | J134: 5 | K134: =VLOOKUP(J134,'Codes éco-part'!C:E,3,FALSE) -> 042
A135: DIY and gardening products EPR | B135: 3 | C135: 21102970000 | E135: =VLOOKUP(MID(C135,1,2),Feuil1!A:B,2,FALSE) -> DIY products | F135: =VLOOKUP(MID(C135,3,3),Feuil1!E:F,2,FALSE) -> Tools and supports for working at height | G135: =VLOOKUP(MID(C135,6,2),Feuil1!I:J,2,FALSE) -> Ceramic >90% | H135: =VLOOKUP(MID(C135,8,3),Feuil1!M:N,2,FALSE) -> Elements of all sizes and weights | I135: € / ton | J135: 10 | K135: =VLOOKUP(J135,'Codes éco-part'!C:E,3,FALSE) -> 138
A136: DIY and gardening products EPR | B136: 3 | C136: 21102980000 | E136: =VLOOKUP(MID(C136,1,2),Feuil1!A:B,2,FALSE) -> DIY products | F136: =VLOOKUP(MID(C136,3,3),Feuil1!E:F,2,FALSE) -> Tools and supports for working at height | G136: =VLOOKUP(MID(C136,6,2),Feuil1!I:J,2,FALSE) -> Artificial stone >90% | H136: =VLOOKUP(MID(C136,8,3),Feuil1!M:N,2,FALSE) -> Elements of all sizes and weights | I136: € / ton | J136: 5 | K136: =VLOOKUP(J136,'Codes éco-part'!C:E,3,FALSE) -> 042
A137: DIY and gardening products EPR | B137: 3 | C137: 21103000000 | E137: =VLOOKUP(MID(C137,1,2),Feuil1!A:B,2,FALSE) -> DIY products | F137: =VLOOKUP(MID(C137,3,3),Feuil1!E:F,2,FALSE) -> Personal protection equipment and accessories for DIY | G137: =VLOOKUP(MID(C137,6,2),Feuil1!I:J,2,FALSE) -> Unknown or unspecified by the company | H137: =VLOOKUP(MID(C137,8,3),Feuil1!M:N,2,FALSE) -> Elements of all sizes and weights | I137: € / ton | J137: 215 | K137: =VLOOKUP(J137,'Codes éco-part'!C:E,3,FALSE) -> 498
A138: DIY and gardening products EPR | B138: 3 | C138: 21103010000 | E138: =VLOOKUP(MID(C138,1,2),Feuil1!A:B,2,FALSE) -> DIY products | F138: =VLOOKUP(MID(C138,3,3),Feuil1!E:F,2,FALSE) -> Personal protection equipment and accessories for DIY | G138: =VLOOKUP(MID(C138,6,2),Feuil1!I:J,2,FALSE) -> Assembly of wood and/or wood derivatives >50% and other materials or composite wood (excl. glass) | H138: =VLOOKUP(MID(C138,8,3),Feuil1!M:N,2,FALSE) -> Elements of all sizes and weights | I138: € / ton | J138: 45 | K138: =VLOOKUP(J138,'Codes éco-part'!C:E,3,FALSE) -> 169
A139: DIY and gardening products EPR | B139: 3 | C139: 21103020000 | E139: =VLOOKUP(MID(C139,1,2),Feuil1!A:B,2,FALSE) -> DIY products | F139: =VLOOKUP(MID(C139,3,3),Feuil1!E:F,2,FALSE) -> Personal protection equipment and accessories for DIY | G139: =VLOOKUP(MID(C139,6,2),Feuil1!I:J,2,FALSE) -> Assembly of metal >50% and other materials | H139: =VLOOKUP(MID(C139,8,3),Feuil1!M:N,2,FALSE) -> Elements of all sizes and weights | I139: € / ton | J139: 10 | K139: =VLOOKUP(J139,'Codes éco-part'!C:E,3,FALSE) -> 138
A140: DIY and gardening products EPR | B140: 3 | C140: 21103040000 | E140: =VLOOKUP(MID(C140,1,2),Feuil1!A:B,2,FALSE) -> DIY products | F140: =VLOOKUP(MID(C140,3,3),Feuil1!E:F,2,FALSE) -> Personal protection equipment and accessories for DIY | G140: =VLOOKUP(MID(C140,6,2),Feuil1!I:J,2,FALSE) -> Biosourced materials or non-synthetic textiles >50% | H140: =VLOOKUP(MID(C140,8,3),Feuil1!M:N,2,FALSE) -> Elements of all sizes and weights | I140: € / ton | J140: 215 | K140: =VLOOKUP(J140,'Codes éco-part'!C:E,3,FALSE) -> 498
A141: DIY and gardening products EPR | B141: 3 | C141: 21103050000 | E141: =VLOOKUP(MID(C141,1,2),Feuil1!A:B,2,FALSE) -> DIY products | F141: =VLOOKUP(MID(C141,3,3),Feuil1!E:F,2,FALSE) -> Personal protection equipment and accessories for DIY | G141: =VLOOKUP(MID(C141,6,2),Feuil1!I:J,2,FALSE) -> Plastics or other synthetic materials >50% | H141: =VLOOKUP(MID(C141,8,3),Feuil1!M:N,2,FALSE) -> Elements of all sizes and weights | I141: € / ton | J141: 215 | K141: =VLOOKUP(J141,'Codes éco-part'!C:E,3,FALSE) -> 498
A142: DIY and gardening products EPR | B142: 3 | C142: 21103060000 | E142: =VLOOKUP(MID(C142,1,2),Feuil1!A:B,2,FALSE) -> DIY products | F142: =VLOOKUP(MID(C142,3,3),Feuil1!E:F,2,FALSE) -> Personal protection equipment and accessories for DIY | G142: =VLOOKUP(MID(C142,6,2),Feuil1!I:J,2,FALSE) -> Materials of animal origin >50% | H142: =VLOOKUP(MID(C142,8,3),Feuil1!M:N,2,FALSE) -> Elements of all sizes and weights | I142: € / ton | J142: 215 | K142: =VLOOKUP(J142,'Codes éco-part'!C:E,3,FALSE) -> 498
A143: DIY and gardening products EPR | B143: 3 | C143: 21103190000 | E143: =VLOOKUP(MID(C143,1,2),Feuil1!A:B,2,FALSE) -> DIY products | F143: =VLOOKUP(MID(C143,3,3),Feuil1!E:F,2,FALSE) -> Personal protection equipment and accessories for DIY | G143: =VLOOKUP(MID(C143,6,2),Feuil1!I:J,2,FALSE) -> Cardboard >50% and other materials (excl. glass) | H143: =VLOOKUP(MID(C143,8,3),Feuil1!M:N,2,FALSE) -> Elements of all sizes and weights | I143: € / ton | J143: 215 | K143: =VLOOKUP(J143,'Codes éco-part'!C:E,3,FALSE) -> 498
A144: DIY and gardening products EPR | B144: 3 | C144: 21103200000 | E144: =VLOOKUP(MID(C144,1,2),Feuil1!A:B,2,FALSE) -> DIY products | F144: =VLOOKUP(MID(C144,3,3),Feuil1!E:F,2,FALSE) -> Personal protection equipment and accessories for DIY | G144: =VLOOKUP(MID(C144,6,2),Feuil1!I:J,2,FALSE) -> Solid wood and related products certified >75% | H144: =VLOOKUP(MID(C144,8,3),Feuil1!M:N,2,FALSE) -> Elements of all sizes and weights | I144: € / ton | J144: 45 | K144: =VLOOKUP(J144,'Codes éco-part'!C:E,3,FALSE) -> 169
A145: DIY and gardening products EPR | B145: 3 | C145: 21103210000 | E145: =VLOOKUP(MID(C145,1,2),Feuil1!A:B,2,FALSE) -> DIY products | F145: =VLOOKUP(MID(C145,3,3),Feuil1!E:F,2,FALSE) -> Personal protection equipment and accessories for DIY | G145: =VLOOKUP(MID(C145,6,2),Feuil1!I:J,2,FALSE) -> Solid wood and related products >75% | H145: =VLOOKUP(MID(C145,8,3),Feuil1!M:N,2,FALSE) -> Elements of all sizes and weights | I145: € / ton | J145: 45 | K145: =VLOOKUP(J145,'Codes éco-part'!C:E,3,FALSE) -> 169
A146: DIY and gardening products EPR | B146: 3 | C146: 21103250000 | E146: =VLOOKUP(MID(C146,1,2),Feuil1!A:B,2,FALSE) -> DIY products | F146: =VLOOKUP(MID(C146,3,3),Feuil1!E:F,2,FALSE) -> Personal protection equipment and accessories for DIY | G146: =VLOOKUP(MID(C146,6,2),Feuil1!I:J,2,FALSE) -> Chipboard or OSB >75% | H146: =VLOOKUP(MID(C146,8,3),Feuil1!M:N,2,FALSE) -> Elements of all sizes and weights | I146: € / ton | J146: 45 | K146: =VLOOKUP(J146,'Codes éco-part'!C:E,3,FALSE) -> 169
A147: DIY and gardening products EPR | B147: 3 | C147: 21103280000 | E147: =VLOOKUP(MID(C147,1,2),Feuil1!A:B,2,FALSE) -> DIY products | F147: =VLOOKUP(MID(C147,3,3),Feuil1!E:F,2,FALSE) -> Personal protection equipment and accessories for DIY | G147: =VLOOKUP(MID(C147,6,2),Feuil1!I:J,2,FALSE) -> Metal >90% | H147: =VLOOKUP(MID(C147,8,3),Feuil1!M:N,2,FALSE) -> Elements of all sizes and weights | I147: € / ton | J147: 10 | K147: =VLOOKUP(J147,'Codes éco-part'!C:E,3,FALSE) -> 138
A148: DIY and gardening products EPR | B148: 3 | C148: 21103400000 | E148: =VLOOKUP(MID(C148,1,2),Feuil1!A:B,2,FALSE) -> DIY products | F148: =VLOOKUP(MID(C148,3,3),Feuil1!E:F,2,FALSE) -> Personal protection equipment and accessories for DIY | G148: =VLOOKUP(MID(C148,6,2),Feuil1!I:J,2,FALSE) -> Assembly of synthetic rubber or latex >50% and other materials | H148: =VLOOKUP(MID(C148,8,3),Feuil1!M:N,2,FALSE) -> Elements of all sizes and weights | I148: € / ton | J148: 215 | K148: =VLOOKUP(J148,'Codes éco-part'!C:E,3,FALSE) -> 498
A149: DIY and gardening products EPR | B149: 3 | C149: 21103410000 | E149: =VLOOKUP(MID(C149,1,2),Feuil1!A:B,2,FALSE) -> DIY products | F149: =VLOOKUP(MID(C149,3,3),Feuil1!E:F,2,FALSE) -> Personal protection equipment and accessories for DIY | G149: =VLOOKUP(MID(C149,6,2),Feuil1!I:J,2,FALSE) -> Plastic (single-resin) >90% | H149: =VLOOKUP(MID(C149,8,3),Feuil1!M:N,2,FALSE) -> Elements of all sizes and weights | I149: € / ton | J149: 165 | K149: =VLOOKUP(J149,'Codes éco-part'!C:E,3,FALSE) -> 496
A150: DIY and gardening products EPR | B150: 3 | C150: 21103420000 | E150: =VLOOKUP(MID(C150,1,2),Feuil1!A:B,2,FALSE) -> DIY products | F150: =VLOOKUP(MID(C150,3,3),Feuil1!E:F,2,FALSE) -> Personal protection equipment and accessories for DIY | G150: =VLOOKUP(MID(C150,6,2),Feuil1!I:J,2,FALSE) -> Polyethylene terephthalate (PET) >90% | H150: =VLOOKUP(MID(C150,8,3),Feuil1!M:N,2,FALSE) -> Elements of all sizes and weights | I150: € / ton | J150: 165 | K150: =VLOOKUP(J150,'Codes éco-part'!C:E,3,FALSE) -> 496
A151: DIY and gardening products EPR | B151: 3 | C151: 21103450000 | E151: =VLOOKUP(MID(C151,1,2),Feuil1!A:B,2,FALSE) -> DIY products | F151: =VLOOKUP(MID(C151,3,3),Feuil1!E:F,2,FALSE) -> Personal protection equipment and accessories for DIY | G151: =VLOOKUP(MID(C151,6,2),Feuil1!I:J,2,FALSE) -> PE or PP or PP/PE mix >90% | H151: =VLOOKUP(MID(C151,8,3),Feuil1!M:N,2,FALSE) -> Elements of all sizes and weights | I151: € / ton | J151: 165 | K151: =VLOOKUP(J151,'Codes éco-part'!C:E,3,FALSE) -> 496
A152: DIY and gardening products EPR | B152: 3 | C152: 21103460000 | E152: =VLOOKUP(MID(C152,1,2),Feuil1!A:B,2,FALSE) -> DIY products | F152: =VLOOKUP(MID(C152,3,3),Feuil1!E:F,2,FALSE) -> Personal protection equipment and accessories for DIY | G152: =VLOOKUP(MID(C152,6,2),Feuil1!I:J,2,FALSE) -> ABS >90% | H152: =VLOOKUP(MID(C152,8,3),Feuil1!M:N,2,FALSE) -> Elements of all sizes and weights | I152: € / ton | J152: 165 | K152: =VLOOKUP(J152,'Codes éco-part'!C:E,3,FALSE) -> 496
A153: DIY and gardening products EPR | B153: 3 | C153: 21103470000 | E153: =VLOOKUP(MID(C153,1,2),Feuil1!A:B,2,FALSE) -> DIY products | F153: =VLOOKUP(MID(C153,3,3),Feuil1!E:F,2,FALSE) -> Personal protection equipment and accessories for DIY | G153: =VLOOKUP(MID(C153,6,2),Feuil1!I:J,2,FALSE) -> Polystyrene >90% | H153: =VLOOKUP(MID(C153,8,3),Feuil1!M:N,2,FALSE) -> Elements of all sizes and weights | I153: € / ton | J153: 165 | K153: =VLOOKUP(J153,'Codes éco-part'!C:E,3,FALSE) -> 496
A154: DIY and gardening products EPR | B154: 3 | C154: 21103480000 | E154: =VLOOKUP(MID(C154,1,2),Feuil1!A:B,2,FALSE) -> DIY products | F154: =VLOOKUP(MID(C154,3,3),Feuil1!E:F,2,FALSE) -> Personal protection equipment and accessories for DIY | G154: =VLOOKUP(MID(C154,6,2),Feuil1!I:J,2,FALSE) -> PVC >90% | H154: =VLOOKUP(MID(C154,8,3),Feuil1!M:N,2,FALSE) -> Elements of all sizes and weights | I154: € / ton | J154: 165 | K154: =VLOOKUP(J154,'Codes éco-part'!C:E,3,FALSE) -> 496
A155: DIY and gardening products EPR | B155: 3 | C155: 21103490000 | E155: =VLOOKUP(MID(C155,1,2),Feuil1!A:B,2,FALSE) -> DIY products | F155: =VLOOKUP(MID(C155,3,3),Feuil1!E:F,2,FALSE) -> Personal protection equipment and accessories for DIY | G155: =VLOOKUP(MID(C155,6,2),Feuil1!I:J,2,FALSE) -> Synthetic rubber >90% | H155: =VLOOKUP(MID(C155,8,3),Feuil1!M:N,2,FALSE) -> Elements of all sizes and weights | I155: € / ton | J155: 165 | K155: =VLOOKUP(J155,'Codes éco-part'!C:E,3,FALSE) -> 496
A156: DIY and gardening products EPR | B156: 3 | C156: 21103520000 | E156: =VLOOKUP(MID(C156,1,2),Feuil1!A:B,2,FALSE) -> DIY products | F156: =VLOOKUP(MID(C156,3,3),Feuil1!E:F,2,FALSE) -> Personal protection equipment and accessories for DIY | G156: =VLOOKUP(MID(C156,6,2),Feuil1!I:J,2,FALSE) -> Solid wood and related products certified >90% | H156: =VLOOKUP(MID(C156,8,3),Feuil1!M:N,2,FALSE) -> Elements of all sizes and weights | I156: € / ton | J156: 45 | K156: =VLOOKUP(J156,'Codes éco-part'!C:E,3,FALSE) -> 169
A157: DIY and gardening products EPR | B157: 3 | C157: 21103530000 | E157: =VLOOKUP(MID(C157,1,2),Feuil1!A:B,2,FALSE) -> DIY products | F157: =VLOOKUP(MID(C157,3,3),Feuil1!E:F,2,FALSE) -> Personal protection equipment and accessories for DIY | G157: =VLOOKUP(MID(C157,6,2),Feuil1!I:J,2,FALSE) -> Solid wood and related products >90% | H157: =VLOOKUP(MID(C157,8,3),Feuil1!M:N,2,FALSE) -> Elements of all sizes and weights | I157: € / ton | J157: 45 | K157: =VLOOKUP(J157,'Codes éco-part'!C:E,3,FALSE) -> 169
A158: DIY and gardening products EPR | B158: 3 | C158: 21103550000 | E158: =VLOOKUP(MID(C158,1,2),Feuil1!A:B,2,FALSE) -> DIY products | F158: =VLOOKUP(MID(C158,3,3),Feuil1!E:F,2,FALSE) -> Personal protection equipment and accessories for DIY | G158: =VLOOKUP(MID(C158,6,2),Feuil1!I:J,2,FALSE) -> Biosourced materials or non-synthetic textiles >90% | H158: =VLOOKUP(MID(C158,8,3),Feuil1!M:N,2,FALSE) -> Elements of all sizes and weights | I158: € / ton | J158: 50 | K158: =VLOOKUP(J158,'Codes éco-part'!C:E,3,FALSE) -> 173
A159: DIY and gardening products EPR | B159: 3 | C159: 21103590000 | E159: =VLOOKUP(MID(C159,1,2),Feuil1!A:B,2,FALSE) -> DIY products | F159: =VLOOKUP(MID(C159,3,3),Feuil1!E:F,2,FALSE) -> Personal protection equipment and accessories for DIY | G159: =VLOOKUP(MID(C159,6,2),Feuil1!I:J,2,FALSE) -> Chipboard or OSB certified >90% | H159: =VLOOKUP(MID(C159,8,3),Feuil1!M:N,2,FALSE) -> Elements of all sizes and weights | I159: € / ton | J159: 45 | K159: =VLOOKUP(J159,'Codes éco-part'!C:E,3,FALSE) -> 169
A160: DIY and gardening products EPR | B160: 3 | C160: 21103600000 | E160: =VLOOKUP(MID(C160,1,2),Feuil1!A:B,2,FALSE) -> DIY products | F160: =VLOOKUP(MID(C160,3,3),Feuil1!E:F,2,FALSE) -> Personal protection equipment and accessories for DIY | G160: =VLOOKUP(MID(C160,6,2),Feuil1!I:J,2,FALSE) -> Chipboard or OSB certified >75% | H160: =VLOOKUP(MID(C160,8,3),Feuil1!M:N,2,FALSE) -> Elements of all sizes and weights | I160: € / ton | J160: 45 | K160: =VLOOKUP(J160,'Codes éco-part'!C:E,3,FALSE) -> 169
A161: DIY and gardening products EPR | B161: 3 | C161: 21103610000 | E161: =VLOOKUP(MID(C161,1,2),Feuil1!A:B,2,FALSE) -> DIY products | F161: =VLOOKUP(MID(C161,3,3),Feuil1!E:F,2,FALSE) -> Personal protection equipment and accessories for DIY | G161: =VLOOKUP(MID(C161,6,2),Feuil1!I:J,2,FALSE) -> Chipboard or OSB >90% | H161: =VLOOKUP(MID(C161,8,3),Feuil1!M:N,2,FALSE) -> Elements of all sizes and weights | I161: € / ton | J161: 45 | K161: =VLOOKUP(J161,'Codes éco-part'!C:E,3,FALSE) -> 169
A162: DIY and gardening products EPR | B162: 3 | C162: 21103620000 | E162: =VLOOKUP(MID(C162,1,2),Feuil1!A:B,2,FALSE) -> DIY products | F162: =VLOOKUP(MID(C162,3,3),Feuil1!E:F,2,FALSE) -> Personal protection equipment and accessories for DIY | G162: =VLOOKUP(MID(C162,6,2),Feuil1!I:J,2,FALSE) -> Wood derivatives >90% | H162: =VLOOKUP(MID(C162,8,3),Feuil1!M:N,2,FALSE) -> Elements of all sizes and weights | I162: € / ton | J162: 45 | K162: =VLOOKUP(J162,'Codes éco-part'!C:E,3,FALSE) -> 169
A163: DIY and gardening products EPR | B163: 3 | C163: 21103630000 | E163: =VLOOKUP(MID(C163,1,2),Feuil1!A:B,2,FALSE) -> DIY products | F163: =VLOOKUP(MID(C163,3,3),Feuil1!E:F,2,FALSE) -> Personal protection equipment and accessories for DIY | G163: =VLOOKUP(MID(C163,6,2),Feuil1!I:J,2,FALSE) -> Natural rubber >90% | H163: =VLOOKUP(MID(C163,8,3),Feuil1!M:N,2,FALSE) -> Elements of all sizes and weights | I163: € / ton | J163: 50 | K163: =VLOOKUP(J163,'Codes éco-part'!C:E,3,FALSE) -> 173
A164: DIY and gardening products EPR | B164: 3 | C164: 21103640000 | E164: =VLOOKUP(MID(C164,1,2),Feuil1!A:B,2,FALSE) -> DIY products | F164: =VLOOKUP(MID(C164,3,3),Feuil1!E:F,2,FALSE) -> Personal protection equipment and accessories for DIY | G164: =VLOOKUP(MID(C164,6,2),Feuil1!I:J,2,FALSE) -> Natural rubber >50% | H164: =VLOOKUP(MID(C164,8,3),Feuil1!M:N,2,FALSE) -> Elements of all sizes and weights | I164: € / ton | J164: 215 | K164: =VLOOKUP(J164,'Codes éco-part'!C:E,3,FALSE) -> 498
A165: DIY and gardening products EPR | B165: 3 | C165: 21103650000 | E165: =VLOOKUP(MID(C165,1,2),Feuil1!A:B,2,FALSE) -> DIY products | F165: =VLOOKUP(MID(C165,3,3),Feuil1!E:F,2,FALSE) -> Personal protection equipment and accessories for DIY | G165: =VLOOKUP(MID(C165,6,2),Feuil1!I:J,2,FALSE) -> Synthetic fibres or materials >90% | H165: =VLOOKUP(MID(C165,8,3),Feuil1!M:N,2,FALSE) -> Elements of all sizes and weights | I165: € / ton | J165: 165 | K165: =VLOOKUP(J165,'Codes éco-part'!C:E,3,FALSE) -> 496
A166: DIY and gardening products EPR | B166: 3 | C166: 21103670000 | E166: =VLOOKUP(MID(C166,1,2),Feuil1!A:B,2,FALSE) -> DIY products | F166: =VLOOKUP(MID(C166,3,3),Feuil1!E:F,2,FALSE) -> Personal protection equipment and accessories for DIY | G166: =VLOOKUP(MID(C166,6,2),Feuil1!I:J,2,FALSE) -> Assembly of synthetic fibres and/or materials >50% and other materials | H166: =VLOOKUP(MID(C166,8,3),Feuil1!M:N,2,FALSE) -> Elements of all sizes and weights | I166: € / ton | J166: 215 | K166: =VLOOKUP(J166,'Codes éco-part'!C:E,3,FALSE) -> 498
A167: DIY and gardening products EPR | B167: 3 | C167: 21103680000 | E167: =VLOOKUP(MID(C167,1,2),Feuil1!A:B,2,FALSE) -> DIY products | F167: =VLOOKUP(MID(C167,3,3),Feuil1!E:F,2,FALSE) -> Personal protection equipment and accessories for DIY | G167: =VLOOKUP(MID(C167,6,2),Feuil1!I:J,2,FALSE) -> Glass >90% | H167: =VLOOKUP(MID(C167,8,3),Feuil1!M:N,2,FALSE) -> Elements of all sizes and weights | I167: € / ton | J167: 5 | K167: =VLOOKUP(J167,'Codes éco-part'!C:E,3,FALSE) -> 042
A168: DIY and gardening products EPR | B168: 3 | C168: 21103700000 | E168: =VLOOKUP(MID(C168,1,2),Feuil1!A:B,2,FALSE) -> DIY products | F168: =VLOOKUP(MID(C168,3,3),Feuil1!E:F,2,FALSE) -> Personal protection equipment and accessories for DIY | G168: =VLOOKUP(MID(C168,6,2),Feuil1!I:J,2,FALSE) -> Assembly of glass >50% and metal | H168: =VLOOKUP(MID(C168,8,3),Feuil1!M:N,2,FALSE) -> Elements of all sizes and weights | I168: € / ton | J168: 215 | K168: =VLOOKUP(J168,'Codes éco-part'!C:E,3,FALSE) -> 498
A169: DIY and gardening products EPR | B169: 3 | C169: 21103710000 | E169: =VLOOKUP(MID(C169,1,2),Feuil1!A:B,2,FALSE) -> DIY products | F169: =VLOOKUP(MID(C169,3,3),Feuil1!E:F,2,FALSE) -> Personal protection equipment and accessories for DIY | G169: =VLOOKUP(MID(C169,6,2),Feuil1!I:J,2,FALSE) -> Assembly of glass >50% and inert substances | H169: =VLOOKUP(MID(C169,8,3),Feuil1!M:N,2,FALSE) -> Elements of all sizes and weights | I169: € / ton | J169: 215 | K169: =VLOOKUP(J169,'Codes éco-part'!C:E,3,FALSE) -> 498
A170: DIY and gardening products EPR | B170: 3 | C170: 21103720000 | E170: =VLOOKUP(MID(C170,1,2),Feuil1!A:B,2,FALSE) -> DIY products | F170: =VLOOKUP(MID(C170,3,3),Feuil1!E:F,2,FALSE) -> Personal protection equipment and accessories for DIY | G170: =VLOOKUP(MID(C170,6,2),Feuil1!I:J,2,FALSE) -> Assembly of glass >50% and wood or wood derivatives | H170: =VLOOKUP(MID(C170,8,3),Feuil1!M:N,2,FALSE) -> Elements of all sizes and weights | I170: € / ton | J170: 215 | K170: =VLOOKUP(J170,'Codes éco-part'!C:E,3,FALSE) -> 498
A171: DIY and gardening products EPR | B171: 3 | C171: 21103730000 | E171: =VLOOKUP(MID(C171,1,2),Feuil1!A:B,2,FALSE) -> DIY products | F171: =VLOOKUP(MID(C171,3,3),Feuil1!E:F,2,FALSE) -> Personal protection equipment and accessories for DIY | G171: =VLOOKUP(MID(C171,6,2),Feuil1!I:J,2,FALSE) -> Assembly of glass >50% and plastic | H171: =VLOOKUP(MID(C171,8,3),Feuil1!M:N,2,FALSE) -> Elements of all sizes and weights | I171: € / ton | J171: 215 | K171: =VLOOKUP(J171,'Codes éco-part'!C:E,3,FALSE) -> 498
A172: DIY and gardening products EPR | B172: 3 | C172: 21103810000 | E172: =VLOOKUP(MID(C172,1,2),Feuil1!A:B,2,FALSE) -> DIY products | F172: =VLOOKUP(MID(C172,3,3),Feuil1!E:F,2,FALSE) -> Personal protection equipment and accessories for DIY | G172: =VLOOKUP(MID(C172,6,2),Feuil1!I:J,2,FALSE) -> Assembly of wood, wood derivatives, and metal with a combination representing >90% | H172: =VLOOKUP(MID(C172,8,3),Feuil1!M:N,2,FALSE) -> Elements of all sizes and weights | I172: € / ton | J172: 45 | K172: =VLOOKUP(J172,'Codes éco-part'!C:E,3,FALSE) -> 169
A173: DIY and gardening products EPR | B173: 3 | C173: 21103820000 | E173: =VLOOKUP(MID(C173,1,2),Feuil1!A:B,2,FALSE) -> DIY products | F173: =VLOOKUP(MID(C173,3,3),Feuil1!E:F,2,FALSE) -> Personal protection equipment and accessories for DIY | G173: =VLOOKUP(MID(C173,6,2),Feuil1!I:J,2,FALSE) -> Assembly of 3 or more materials, with no material representing >50% | H173: =VLOOKUP(MID(C173,8,3),Feuil1!M:N,2,FALSE) -> Elements of all sizes and weights | I173: € / ton | J173: 215 | K173: =VLOOKUP(J173,'Codes éco-part'!C:E,3,FALSE) -> 498
A174: DIY and gardening products EPR | B174: 3 | C174: 21104000000 | E174: =VLOOKUP(MID(C174,1,2),Feuil1!A:B,2,FALSE) -> DIY products | F174: =VLOOKUP(MID(C174,3,3),Feuil1!E:F,2,FALSE) -> Tarpaulins, covers, nets, and films for DIY | G174: =VLOOKUP(MID(C174,6,2),Feuil1!I:J,2,FALSE) -> Unknown or unspecified by the company | H174: =VLOOKUP(MID(C174,8,3),Feuil1!M:N,2,FALSE) -> Elements of all sizes and weights | I174: € / ton | J174: 215 | K174: =VLOOKUP(J174,'Codes éco-part'!C:E,3,FALSE) -> 498
A175: DIY and gardening products EPR | B175: 3 | C175: 21104040000 | E175: =VLOOKUP(MID(C175,1,2),Feuil1!A:B,2,FALSE) -> DIY products | F175: =VLOOKUP(MID(C175,3,3),Feuil1!E:F,2,FALSE) -> Tarpaulins, covers, nets, and films for DIY | G175: =VLOOKUP(MID(C175,6,2),Feuil1!I:J,2,FALSE) -> Biosourced materials or non-synthetic textiles >50% | H175: =VLOOKUP(MID(C175,8,3),Feuil1!M:N,2,FALSE) -> Elements of all sizes and weights | I175: € / ton | J175: 215 | K175: =VLOOKUP(J175,'Codes éco-part'!C:E,3,FALSE) -> 498
A176: DIY and gardening products EPR | B176: 3 | C176: 21104050000 | E176: =VLOOKUP(MID(C176,1,2),Feuil1!A:B,2,FALSE) -> DIY products | F176: =VLOOKUP(MID(C176,3,3),Feuil1!E:F,2,FALSE) -> Tarpaulins, covers, nets, and films for DIY | G176: =VLOOKUP(MID(C176,6,2),Feuil1!I:J,2,FALSE) -> Plastics or other synthetic materials >50% | H176: =VLOOKUP(MID(C176,8,3),Feuil1!M:N,2,FALSE) -> Elements of all sizes and weights | I176: € / ton | J176: 215 | K176: =VLOOKUP(J176,'Codes éco-part'!C:E,3,FALSE) -> 498
A177: DIY and gardening products EPR | B177: 3 | C177: 21104060000 | E177: =VLOOKUP(MID(C177,1,2),Feuil1!A:B,2,FALSE) -> DIY products | F177: =VLOOKUP(MID(C177,3,3),Feuil1!E:F,2,FALSE) -> Tarpaulins, covers, nets, and films for DIY | G177: =VLOOKUP(MID(C177,6,2),Feuil1!I:J,2,FALSE) -> Materials of animal origin >50% | H177: =VLOOKUP(MID(C177,8,3),Feuil1!M:N,2,FALSE) -> Elements of all sizes and weights | I177: € / ton | J177: 215 | K177: =VLOOKUP(J177,'Codes éco-part'!C:E,3,FALSE) -> 498
A178: DIY and gardening products EPR | B178: 3 | C178: 21104190000 | E178: =VLOOKUP(MID(C178,1,2),Feuil1!A:B,2,FALSE) -> DIY products | F178: =VLOOKUP(MID(C178,3,3),Feuil1!E:F,2,FALSE) -> Tarpaulins, covers, nets, and films for DIY | G178: =VLOOKUP(MID(C178,6,2),Feuil1!I:J,2,FALSE) -> Cardboard >50% and other materials (excl. glass) | H178: =VLOOKUP(MID(C178,8,3),Feuil1!M:N,2,FALSE) -> Elements of all sizes and weights | I178: € / ton | J178: 215 | K178: =VLOOKUP(J178,'Codes éco-part'!C:E,3,FALSE) -> 498
A179: DIY and gardening products EPR | B179: 3 | C179: 21104400000 | E179: =VLOOKUP(MID(C179,1,2),Feuil1!A:B,2,FALSE) -> DIY products | F179: =VLOOKUP(MID(C179,3,3),Feuil1!E:F,2,FALSE) -> Tarpaulins, covers, nets, and films for DIY | G179: =VLOOKUP(MID(C179,6,2),Feuil1!I:J,2,FALSE) -> Assembly of synthetic rubber or latex >50% and other materials | H179: =VLOOKUP(MID(C179,8,3),Feuil1!M:N,2,FALSE) -> Elements of all sizes and weights | I179: € / ton | J179: 215 | K179: =VLOOKUP(J179,'Codes éco-part'!C:E,3,FALSE) -> 498
A180: DIY and gardening products EPR | B180: 3 | C180: 21104410000 | E180: =VLOOKUP(MID(C180,1,2),Feuil1!A:B,2,FALSE) -> DIY products | F180: =VLOOKUP(MID(C180,3,3),Feuil1!E:F,2,FALSE) -> Tarpaulins, covers, nets, and films for DIY | G180: =VLOOKUP(MID(C180,6,2),Feuil1!I:J,2,FALSE) -> Plastic (single-resin) >90% | H180: =VLOOKUP(MID(C180,8,3),Feuil1!M:N,2,FALSE) -> Elements of all sizes and weights | I180: € / ton | J180: 165 | K180: =VLOOKUP(J180,'Codes éco-part'!C:E,3,FALSE) -> 496
A181: DIY and gardening products EPR | B181: 3 | C181: 21104420000 | E181: =VLOOKUP(MID(C181,1,2),Feuil1!A:B,2,FALSE) -> DIY products | F181: =VLOOKUP(MID(C181,3,3),Feuil1!E:F,2,FALSE) -> Tarpaulins, covers, nets, and films for DIY | G181: =VLOOKUP(MID(C181,6,2),Feuil1!I:J,2,FALSE) -> Polyethylene terephthalate (PET) >90% | H181: =VLOOKUP(MID(C181,8,3),Feuil1!M:N,2,FALSE) -> Elements of all sizes and weights | I181: € / ton | J181: 165 | K181: =VLOOKUP(J181,'Codes éco-part'!C:E,3,FALSE) -> 496
A182: DIY and gardening products EPR | B182: 3 | C182: 21104450000 | E182: =VLOOKUP(MID(C182,1,2),Feuil1!A:B,2,FALSE) -> DIY products | F182: =VLOOKUP(MID(C182,3,3),Feuil1!E:F,2,FALSE) -> Tarpaulins, covers, nets, and films for DIY | G182: =VLOOKUP(MID(C182,6,2),Feuil1!I:J,2,FALSE) -> PE or PP or PP/PE mix >90% | H182: =VLOOKUP(MID(C182,8,3),Feuil1!M:N,2,FALSE) -> Elements of all sizes and weights | I182: € / ton | J182: 165 | K182: =VLOOKUP(J182,'Codes éco-part'!C:E,3,FALSE) -> 496
A183: DIY and gardening products EPR | B183: 3 | C183: 21104460000 | E183: =VLOOKUP(MID(C183,1,2),Feuil1!A:B,2,FALSE) -> DIY products | F183: =VLOOKUP(MID(C183,3,3),Feuil1!E:F,2,FALSE) -> Tarpaulins, covers, nets, and films for DIY | G183: =VLOOKUP(MID(C183,6,2),Feuil1!I:J,2,FALSE) -> ABS >90% | H183: =VLOOKUP(MID(C183,8,3),Feuil1!M:N,2,FALSE) -> Elements of all sizes and weights | I183: € / ton | J183: 165 | K183: =VLOOKUP(J183,'Codes éco-part'!C:E,3,FALSE) -> 496
A184: DIY and gardening products EPR | B184: 3 | C184: 21104470000 | E184: =VLOOKUP(MID(C184,1,2),Feuil1!A:B,2,FALSE) -> DIY products | F184: =VLOOKUP(MID(C184,3,3),Feuil1!E:F,2,FALSE) -> Tarpaulins, covers, nets, and films for DIY | G184: =VLOOKUP(MID(C184,6,2),Feuil1!I:J,2,FALSE) -> Polystyrene >90% | H184: =VLOOKUP(MID(C184,8,3),Feuil1!M:N,2,FALSE) -> Elements of all sizes and weights | I184: € / ton | J184: 165 | K184: =VLOOKUP(J184,'Codes éco-part'!C:E,3,FALSE) -> 496
A185: DIY and gardening products EPR | B185: 3 | C185: 21104480000 | E185: =VLOOKUP(MID(C185,1,2),Feuil1!A:B,2,FALSE) -> DIY products | F185: =VLOOKUP(MID(C185,3,3),Feuil1!E:F,2,FALSE) -> Tarpaulins, covers, nets, and films for DIY | G185: =VLOOKUP(MID(C185,6,2),Feuil1!I:J,2,FALSE) -> PVC >90% | H185: =VLOOKUP(MID(C185,8,3),Feuil1!M:N,2,FALSE) -> Elements of all sizes and weights | I185: € / ton | J185: 165 | K185: =VLOOKUP(J185,'Codes éco-part'!C:E,3,FALSE) -> 496
A186: DIY and gardening products EPR | B186: 3 | C186: 21104490000 | E186: =VLOOKUP(MID(C186,1,2),Feuil1!A:B,2,FALSE) -> DIY products | F186: =VLOOKUP(MID(C186,3,3),Feuil1!E:F,2,FALSE) -> Tarpaulins, covers, nets, and films for DIY | G186: =VLOOKUP(MID(C186,6,2),Feuil1!I:J,2,FALSE) -> Synthetic rubber >90% | H186: =VLOOKUP(MID(C186,8,3),Feuil1!M:N,2,FALSE) -> Elements of all sizes and weights | I186: € / ton | J186: 165 | K186: =VLOOKUP(J186,'Codes éco-part'!C:E,3,FALSE) -> 496
A187: DIY and gardening products EPR | B187: 3 | C187: 21104550000 | E187: =VLOOKUP(MID(C187,1,2),Feuil1!A:B,2,FALSE) -> DIY products | F187: =VLOOKUP(MID(C187,3,3),Feuil1!E:F,2,FALSE) -> Tarpaulins, covers, nets, and films for DIY | G187: =VLOOKUP(MID(C187,6,2),Feuil1!I:J,2,FALSE) -> Biosourced materials or non-synthetic textiles >90% | H187: =VLOOKUP(MID(C187,8,3),Feuil1!M:N,2,FALSE) -> Elements of all sizes and weights | I187: € / ton | J187: 50 | K187: =VLOOKUP(J187,'Codes éco-part'!C:E,3,FALSE) -> 173
A188: DIY and gardening products EPR | B188: 3 | C188: 21104630000 | E188: =VLOOKUP(MID(C188,1,2),Feuil1!A:B,2,FALSE) -> DIY products | F188: =VLOOKUP(MID(C188,3,3),Feuil1!E:F,2,FALSE) -> Tarpaulins, covers, nets, and films for DIY | G188: =VLOOKUP(MID(C188,6,2),Feuil1!I:J,2,FALSE) -> Natural rubber >90% | H188: =VLOOKUP(MID(C188,8,3),Feuil1!M:N,2,FALSE) -> Elements of all sizes and weights | I188: € / ton | J188: 50 | K188: =VLOOKUP(J188,'Codes éco-part'!C:E,3,FALSE) -> 173
A189: DIY and gardening products EPR | B189: 3 | C189: 21104640000 | E189: =VLOOKUP(MID(C189,1,2),Feuil1!A:B,2,FALSE) -> DIY products | F189: =VLOOKUP(MID(C189,3,3),Feuil1!E:F,2,FALSE) -> Tarpaulins, covers, nets, and films for DIY | G189: =VLOOKUP(MID(C189,6,2),Feuil1!I:J,2,FALSE) -> Natural rubber >50% | H189: =VLOOKUP(MID(C189,8,3),Feuil1!M:N,2,FALSE) -> Elements of all sizes and weights | I189: € / ton | J189: 215 | K189: =VLOOKUP(J189,'Codes éco-part'!C:E,3,FALSE) -> 498
A190: DIY and gardening products EPR | B190: 3 | C190: 21104650000 | E190: =VLOOKUP(MID(C190,1,2),Feuil1!A:B,2,FALSE) -> DIY products | F190: =VLOOKUP(MID(C190,3,3),Feuil1!E:F,2,FALSE) -> Tarpaulins, covers, nets, and films for DIY | G190: =VLOOKUP(MID(C190,6,2),Feuil1!I:J,2,FALSE) -> Synthetic fibres or materials >90% | H190: =VLOOKUP(MID(C190,8,3),Feuil1!M:N,2,FALSE) -> Elements of all sizes and weights | I190: € / ton | J190: 165 | K190: =VLOOKUP(J190,'Codes éco-part'!C:E,3,FALSE) -> 496
A191: DIY and gardening products EPR | B191: 3 | C191: 21104670000 | E191: =VLOOKUP(MID(C191,1,2),Feuil1!A:B,2,FALSE) -> DIY products | F191: =VLOOKUP(MID(C191,3,3),Feuil1!E:F,2,FALSE) -> Tarpaulins, covers, nets, and films for DIY | G191: =VLOOKUP(MID(C191,6,2),Feuil1!I:J,2,FALSE) -> Assembly of synthetic fibres and/or materials >50% and other materials | H191: =VLOOKUP(MID(C191,8,3),Feuil1!M:N,2,FALSE) -> Elements of all sizes and weights | I191: € / ton | J191: 215 | K191: =VLOOKUP(J191,'Codes éco-part'!C:E,3,FALSE) -> 498
A192: DIY and gardening products EPR | B192: 3 | C192: 21104820000 | E192: =VLOOKUP(MID(C192,1,2),Feuil1!A:B,2,FALSE) -> DIY products | F192: =VLOOKUP(MID(C192,3,3),Feuil1!E:F,2,FALSE) -> Tarpaulins, covers, nets, and films for DIY | G192: =VLOOKUP(MID(C192,6,2),Feuil1!I:J,2,FALSE) -> Assembly of 3 or more materials, with no material representing >50% | H192: =VLOOKUP(MID(C192,8,3),Feuil1!M:N,2,FALSE) -> Elements of all sizes and weights | I192: € / ton | J192: 215 | K192: =VLOOKUP(J192,'Codes éco-part'!C:E,3,FALSE) -> 498
A193: DIY and gardening products EPR | B193: 4 | C193: 22150000000 | E193: =VLOOKUP(MID(C193,1,2),Feuil1!A:B,2,FALSE) -> Garden upkeep and landscaping | F193: =VLOOKUP(MID(C193,3,3),Feuil1!E:F,2,FALSE) -> Garden upkeep hand tools and small accessories | G193: =VLOOKUP(MID(C193,6,2),Feuil1!I:J,2,FALSE) -> Unknown or unspecified by the company | H193: =VLOOKUP(MID(C193,8,3),Feuil1!M:N,2,FALSE) -> Elements of all sizes and weights | I193: € / ton | J193: 215 | K193: =VLOOKUP(J193,'Codes éco-part'!C:E,3,FALSE) -> 498
A194: DIY and gardening products EPR | B194: 4 | C194: 22150010000 | E194: =VLOOKUP(MID(C194,1,2),Feuil1!A:B,2,FALSE) -> Garden upkeep and landscaping | F194: =VLOOKUP(MID(C194,3,3),Feuil1!E:F,2,FALSE) -> Garden upkeep hand tools and small accessories | G194: =VLOOKUP(MID(C194,6,2),Feuil1!I:J,2,FALSE) -> Assembly of wood and/or wood derivatives >50% and other materials or composite wood (excl. glass) | H194: =VLOOKUP(MID(C194,8,3),Feuil1!M:N,2,FALSE) -> Elements of all sizes and weights | I194: € / ton | J194: 45 | K194: =VLOOKUP(J194,'Codes éco-part'!C:E,3,FALSE) -> 169
A195: DIY and gardening products EPR | B195: 4 | C195: 22150020000 | E195: =VLOOKUP(MID(C195,1,2),Feuil1!A:B,2,FALSE) -> Garden upkeep and landscaping | F195: =VLOOKUP(MID(C195,3,3),Feuil1!E:F,2,FALSE) -> Garden upkeep hand tools and small accessories | G195: =VLOOKUP(MID(C195,6,2),Feuil1!I:J,2,FALSE) -> Assembly of metal >50% and other materials | H195: =VLOOKUP(MID(C195,8,3),Feuil1!M:N,2,FALSE) -> Elements of all sizes and weights | I195: € / ton | J195: 10 | K195: =VLOOKUP(J195,'Codes éco-part'!C:E,3,FALSE) -> 138
A196: DIY and gardening products EPR | B196: 4 | C196: 22150040000 | E196: =VLOOKUP(MID(C196,1,2),Feuil1!A:B,2,FALSE) -> Garden upkeep and landscaping | F196: =VLOOKUP(MID(C196,3,3),Feuil1!E:F,2,FALSE) -> Garden upkeep hand tools and small accessories | G196: =VLOOKUP(MID(C196,6,2),Feuil1!I:J,2,FALSE) -> Biosourced materials or non-synthetic textiles >50% | H196: =VLOOKUP(MID(C196,8,3),Feuil1!M:N,2,FALSE) -> Elements of all sizes and weights | I196: € / ton | J196: 215 | K196: =VLOOKUP(J196,'Codes éco-part'!C:E,3,FALSE) -> 498
A197: DIY and gardening products EPR | B197: 4 | C197: 22150050000 | E197: =VLOOKUP(MID(C197,1,2),Feuil1!A:B,2,FALSE) -> Garden upkeep and landscaping | F197: =VLOOKUP(MID(C197,3,3),Feuil1!E:F,2,FALSE) -> Garden upkeep hand tools and small accessories | G197: =VLOOKUP(MID(C197,6,2),Feuil1!I:J,2,FALSE) -> Plastics or other synthetic materials >50% | H197: =VLOOKUP(MID(C197,8,3),Feuil1!M:N,2,FALSE) -> Elements of all sizes and weights | I197: € / ton | J197: 215 | K197: =VLOOKUP(J197,'Codes éco-part'!C:E,3,FALSE) -> 498
A198: DIY and gardening products EPR | B198: 4 | C198: 22150060000 | E198: =VLOOKUP(MID(C198,1,2),Feuil1!A:B,2,FALSE) -> Garden upkeep and landscaping | F198: =VLOOKUP(MID(C198,3,3),Feuil1!E:F,2,FALSE) -> Garden upkeep hand tools and small accessories | G198: =VLOOKUP(MID(C198,6,2),Feuil1!I:J,2,FALSE) -> Materials of animal origin >50% | H198: =VLOOKUP(MID(C198,8,3),Feuil1!M:N,2,FALSE) -> Elements of all sizes and weights | I198: € / ton | J198: 215 | K198: =VLOOKUP(J198,'Codes éco-part'!C:E,3,FALSE) -> 498
A199: DIY and gardening products EPR | B199: 4 | C199: 22150190000 | E199: =VLOOKUP(MID(C199,1,2),Feuil1!A:B,2,FALSE) -> Garden upkeep and landscaping | F199: =VLOOKUP(MID(C199,3,3),Feuil1!E:F,2,FALSE) -> Garden upkeep hand tools and small accessories | G199: =VLOOKUP(MID(C199,6,2),Feuil1!I:J,2,FALSE) -> Cardboard >50% and other materials (excl. glass) | H199: =VLOOKUP(MID(C199,8,3),Feuil1!M:N,2,FALSE) -> Elements of all sizes and weights | I199: € / ton | J199: 215 | K199: =VLOOKUP(J199,'Codes éco-part'!C:E,3,FALSE) -> 498
A200: DIY and gardening products EPR | B200: 4 | C200: 22150200000 | E200: =VLOOKUP(MID(C200,1,2),Feuil1!A:B,2,FALSE) -> Garden upkeep and landscaping | F200: =VLOOKUP(MID(C200,3,3),Feuil1!E:F,2,FALSE) -> Garden upkeep hand tools and small accessories | G200: =VLOOKUP(MID(C200,6,2),Feuil1!I:J,2,FALSE) -> Solid wood and related products certified >75% | H200: =VLOOKUP(MID(C200,8,3),Feuil1!M:N,2,FALSE) -> Elements of all sizes and weights | I200: € / ton | J200: 45 | K200: =VLOOKUP(J200,'Codes éco-part'!C:E,3,FALSE) -> 169
... 4778 more rows

Sheet Feuil1 (hidden)
A2: Department code | B2: Department | C2: Department code | E2: Product code | F2: Department | G2: Product code | I2: Material code | J2: Materials | K2: Material code | M2: Measurement code | N2: Calculation method | O2: Measurement code
A3: 21 | B3: DIY products | C3: 21
A4: 22 | B4: Garden upkeep and landscaping | C4: 22 | E4: 100 | F4: Hand tools and their accessories | G4: 100 | I4: 28 | J4: Metal >90% | K4: 28 | M4: 000 | N4: Elements of all sizes and weights | O4: 000
E5: 101 | F5: Large non-electric, non-combustion items and machines, and their accessories | G5: 101 | I5: 02 | J5: Assembly of metal >50% and other materials | K5: 02 | M5: 020 | N5: Must not exceed 0.5 kg | O5: 020
E6: 102 | F6: Tools and supports for working at height | G6: 102 | I6: 52 | J6: Solid wood and related products certified >90% | K6: 52 | M6: 021 | N6: Between 0.5 kg and < 1 kg | O6: 021
E7: 103 | F7: Personal protection equipment and accessories for DIY | G7: 103 | I7: 20 | J7: Solid wood and related products certified >75% | K7: 20 | M7: 022 | N7: Between 1 kg and < 2 kg | O7: 022
E8: 104 | F8: Tarpaulins, covers, nets, and films for DIY | G8: 104 | I8: 53 | J8: Solid wood and related products >90% | K8: 53 | M8: 052 | N8: Between 2 kg and < 3 kg | O8: 052
E9: 105 | F9: Buckets, troughs and containers | G9: 105 | I9: 21 | J9: Solid wood and related products >75% | K9: 21 | M9: 053 | N9: Between 3 kg and < 5 kg | O9: 053
E10: 150 | F10: Garden upkeep hand tools and small accessories | G10: 150 | I10: 59 | J10: Chipboard or OSB certified >90% | K10: 59 | M10: 054 | N10: Between 5 kg and < 7 kg | O10: 054
E11: 151 | F11: Personal protection equipment and accessories for gardening | G11: 151 | I11: 60 | J11: Chipboard or OSB certified >75% | K11: 60 | M11: 055 | N11: Between 7 kg and < 10 kg | O11: 055
E12: 152 | F12: Flower pots and containers | G12: 152 | I12: 61 | J12: Chipboard or OSB >90% | K12: 61 | M12: 056 | N12: Between 10 kg and < 15 kg | O12: 056
E13: 153 | F13: Tarpaulins, covers, nets, and films for gardening | G13: 153 | I13: 25 | J13: Chipboard or OSB >75% | K13: 25 | M13: 057 | N13: Between 15 kg and < 20 kg | O13: 057
E14: 154 | F14: Outdoor equipment and accessories (excl. tarpaulins, nets, and covers) | G14: 154 | I14: 62 | J14: Wood derivatives >90% | K14: 62 | M14: 058 | N14: Between 20 kg and < 25 kg | O14: 058
E15: 155 | F15: Non-masonry outdoor structures | G15: 155 | I15: 01 | J15: Assembly of wood and/or wood derivatives >50% and other materials or composite wood (excl. glass) | K15: 01 | M15: 059 | N15: Between 25 kg and < 30 kg | O15: 059
I16: 19 | J16: Cardboard >50% and other materials (excl. glass) | K16: 19 | M16: 027 | N16: Between 30 kg and < 40 kg | O16: 027
I17: 55 | J17: Biosourced materials or non-synthetic textiles >90% | K17: 55 | M17: 060 | N17: Between 40 kg and < 50 kg | O17: 060
I18: 04 | J18: Biosourced materials or non-synthetic textiles >50% | K18: 04 | M18: 090 | N18: Set of 10 | O18: 090
I19: 63 | J19: Natural rubber >90% | K19: 63
I20: 64 | J20: Natural rubber >50% | K20: 64
I21: 06 | J21: Materials of animal origin >50% | K21: 06
I22: 41 | J22: Plastic (single-resin) >90% | K22: 41
I23: 45 | J23: PE or PP or PP/PE mix >90% | K23: 45
I24: 48 | J24: PVC >90% | K24: 48
I25: 42 | J25: Polyethylene terephthalate (PET) >90% | K25: 42
I26: 46 | J26: ABS >90% | K26: 46
I27: 47 | J27: Polystyrene >90% | K27: 47
I28: 05 | J28: Plastics or other synthetic materials >50% | K28: 05
I29: 49 | J29: Synthetic rubber >90% | K29: 49
I30: 10 | J30: Elements containing latex | K30: 10
I31: 40 | J31: Assembly of synthetic rubber or latex >50% and other materials | K31: 40
I32: 65 | J32: Synthetic fibres or materials >90% | K32: 65
I33: 66 | J33: Textile and polyester padding >90% | K33: 66
I34: 09 | J34: Elements containing foam | K34: 09
I35: 11 | J35: Textile elements containing springs | K35: 11
I36: 67 | J36: Assembly of synthetic fibres and/or materials >50% and other materials | K36: 67
I37: 68 | J37: Glass >90% | K37: 68
I38: 70 | J38: Assembly of glass >50% and metal | K38: 70
I39: 71 | J39: Assembly of glass >50% and inert substances | K39: 71
I40: 72 | J40: Assembly of glass >50% and wood or wood derivatives | K40: 72
I41: 73 | J41: Assembly of glass >50% and plastic | K41: 73
I42: 69 | J42: Mirror >90% | K42: 69
I43: 75 | J43: Plaster >90% | K43: 75
I44: 76 | J44: Plaster >50% | K44: 76
I45: 77 | J45: Rockwool >90% | K45: 77
I46: 78 | J46: Glass wool >90% | K46: 78
I47: 79 | J47: Assembly of glass wool or rockwool >50% and other materials | K47: 79
I48: 80 | J48: Bitumen membranes >90% | K48: 80
I49: 81 | J49: Assembly of wood, wood derivatives, and metal with a combination representing >90% | K49: 81
I50: 82 | J50: Assembly of 3 or more materials, with no material representing >50% | K50: 82
I51: 00 | J51: Unknown or unspecified by the company | K51: 00
I52: 83 | J52: Liquid products, incl. hazardous products >90% | K52: 83
I53: 08 | J53: Assembly of materials with inert substances >50% | K53: 08
I54: 15 | J54: Composites and other reconstituted mineral materials >50% | K54: 15
I55: 84 | J55: Slate >90% | K55: 84
I56: 85 | J56: Non-stone aggregate >90% | K56: 85
I57: 86 | J57: Limestone >90% | K57: 86
I58: 87 | J58: Lava stone >90% | K58: 87
I59: 88 | J59: Bituminous mix >90% | K59: 88
I60: 89 | J60: Raw earth or terracotta >90% | K60: 89
I61: 74 | J61: Concrete >90% | K61: 74
I62: 96 | J62: Cellular concrete >90% | K62: 96
I63: 90 | J63: Cement >90% | K63: 90
I64: 91 | J64: Granite >90% | K64: 91
I65: 97 | J65: Ceramic >90% | K65: 97
I66: 92 | J66: Mortar >90% | K66: 92
I67: 93 | J67: Additives >90% | K67: 93
I68: 94 | J68: Sandstone >90% | K68: 94
I69: 95 | J69: Lime >90% | K69: 95
I70: 98 | J70: Artificial stone >90% | K70: 98
